Departmental Family,Entity,Date,Expense type,Expense area,Supplier,Transaction Number,Amount,Description,,
Department for Education,DEPARTMENT FOR EDUCATION,03/05/2016,Professional Services Consultancy and Contingent Labour,Human Resources Group,MINISTRY OF JUSTICE,4000236354,28968.00,"Fees / expenses of professionals such as auditors, accountants, lawyers, etc. engaged to provide advice or opinion on how to affect something",,
Department for Education,DEPARTMENT FOR EDUCATION,03/05/2016,Travel,Finance and Commercial Group,REDFERN TRAVEL LTD,4000236346,370924.61,"Staff business travel including air, coach, ferry, rail, taxi and car hire",,
Department for Education,NATIONAL COLLEGE FOR TEACHING AND LEADERSHIP AGENCY,03/05/2016,Communications,Operations Directorate,CARAT,4000236349,115169.48,Marketing services,,
Department for Education,DEPARTMENT FOR EDUCATION,03/05/2016,Grants,Children's Services Special Educational Needs Group,THE FAMILY FUND TRUST,4000236355,2397000.00,Grants to educational establishments or not for profit organisations including other businesses,,
Department for Education,DEPARTMENT FOR EDUCATION,03/05/2016,Professional Services Consultancy and Contingent Labour,Information Technology Group,LIBERATA UK LTD,4000236356,31176.00,Costs related to temporary workers,,
Department for Education,DEPARTMENT FOR EDUCATION,03/05/2016,ICT,Information Technology Group,LOCKHEED MARTIN,4000236347,41800.97,ICT Software,,
Department for Education,DEPARTMENT FOR EDUCATION,03/05/2016,Professional Services Other,Strategic Analysis and Research Group,RM EDUCATION,4000236359,222879.00,Research and evaluation activities,,
Department for Education,NATIONAL COLLEGE FOR TEACHING AND LEADERSHIP AGENCY,04/05/2016,Professional Services Other,Delivery Directorate,TEACHING LEADERS,4000236540,31594.00,"Fees / expenses of professionals, for example to implement advice or changes",,
Department for Education,NATIONAL COLLEGE FOR TEACHING AND LEADERSHIP AGENCY,04/05/2016,Grants,Delivery Directorate,HIBERNIA COLLEGE UK,4000236368,221617.25,Grants to educational establishments or not for profit organisations including other businesses,,
Department for Education,NATIONAL COLLEGE FOR TEACHING AND LEADERSHIP AGENCY,04/05/2016,Grants,Operations Directorate,HIBERNIA COLLEGE UK,4000236368,62550.00,Grants to educational establishments or not for profit organisations including other businesses,,
Department for Education,NATIONAL COLLEGE FOR TEACHING AND LEADERSHIP AGENCY,04/05/2016,Grants,Operations Directorate,BROMLEY SCHOOLS COLLEGIATE,4000236381,36450.00,Grants to educational establishments or not for profit organisations including other businesses,,
Department for Education,NATIONAL COLLEGE FOR TEACHING AND LEADERSHIP AGENCY,04/05/2016,Grants,Operations Directorate,BOURNEMOUTH POOLE & DORSET EAST SECONDARY,4000236382,32310.00,Grants to educational establishments or not for profit organisations including other businesses,,
Department for Education,NATIONAL COLLEGE FOR TEACHING AND LEADERSHIP AGENCY,04/05/2016,Grants,Operations Directorate,HARRIS CITY ACADEMY,4000236383,27630.00,Grants to educational establishments or not for profit organisations including other businesses,,
Department for Education,NATIONAL COLLEGE FOR TEACHING AND LEADERSHIP AGENCY,04/05/2016,Grants,Operations Directorate,KINGS COLLEGE GUILDFORD,4000236390,317160.00,Grants to educational establishments or not for profit organisations including other businesses,,
Department for Education,NATIONAL COLLEGE FOR TEACHING AND LEADERSHIP AGENCY,04/05/2016,Grants,Operations Directorate,UCL INSTITUTE OF EDUCATION,4000236394,695160.00,Grants to educational establishments or not for profit organisations including other businesses,,
Department for Education,NATIONAL COLLEGE FOR TEACHING AND LEADERSHIP AGENCY,04/05/2016,Grants,Operations Directorate,UCL INSTITUTE OF EDUCATION,4000236394,49346.00,Grants to educational establishments or not for profit organisations including other businesses,,
Department for Education,NATIONAL COLLEGE FOR TEACHING AND LEADERSHIP AGENCY,04/05/2016,Grants,Delivery Directorate,UCL INSTITUTE OF EDUCATION,4000236394,17430.00,Grants to educational establishments or not for profit organisations including other businesses,,
Department for Education,NATIONAL COLLEGE FOR TEACHING AND LEADERSHIP AGENCY,04/05/2016,Grants,Operations Directorate,PENINSULA TEACHER TRAINING CORNWALL SCITT,4000236396,25650.00,Grants to educational establishments or not for profit organisations including other businesses,,
Department for Education,NATIONAL COLLEGE FOR TEACHING AND LEADERSHIP AGENCY,04/05/2016,Grants,Operations Directorate,LIVERPOOL JOHN MOORES UNIVERSITY,4000236400,157590.00,Grants to educational establishments or not for profit organisations including other businesses,,
Department for Education,NATIONAL COLLEGE FOR TEACHING AND LEADERSHIP AGENCY,04/05/2016,Grants,Delivery Directorate,BIRMINGHAM CITY UNIVERSITY,4000236401,7680.00,Grants to educational establishments or not for profit organisations including other businesses,,
Department for Education,NATIONAL COLLEGE FOR TEACHING AND LEADERSHIP AGENCY,04/05/2016,Grants,Operations Directorate,BIRMINGHAM CITY UNIVERSITY,4000236401,158220.00,Grants to educational establishments or not for profit organisations including other businesses,,
Department for Education,NATIONAL COLLEGE FOR TEACHING AND LEADERSHIP AGENCY,04/05/2016,Grants,Operations Directorate,BIRMINGHAM CITY UNIVERSITY,4000236401,15620.00,Grants to educational establishments or not for profit organisations including other businesses,,
Department for Education,NATIONAL COLLEGE FOR TEACHING AND LEADERSHIP AGENCY,04/05/2016,Grants,Operations Directorate,UNIVERSITY OF WARWICK,4000236407,200700.00,Grants to educational establishments or not for profit organisations including other businesses,,
Department for Education,NATIONAL COLLEGE FOR TEACHING AND LEADERSHIP AGENCY,04/05/2016,Grants,Operations Directorate,UNIVERSITY OF WARWICK,4000236407,14425.40,Grants to educational establishments or not for profit organisations including other businesses,,
Department for Education,NATIONAL COLLEGE FOR TEACHING AND LEADERSHIP AGENCY,04/05/2016,Grants,Delivery Directorate,UNIVERSITY OF WARWICK,4000236407,20400.00,Grants to educational establishments or not for profit organisations including other businesses,,
Department for Education,DEPARTMENT FOR EDUCATION,04/05/2016,Grants,Academies Delivery Group,STREETSBROOK INFANT & NURSERY SCHOOL,4000236410,25000.00,Grants to educational establishments or not for profit organisations including other businesses,,
Department for Education,NATIONAL COLLEGE FOR TEACHING AND LEADERSHIP AGENCY,04/05/2016,Grants,Delivery Directorate,UNIVERSITY OF HULL,4000236411,25067.05,Grants to educational establishments or not for profit organisations including other businesses,,
Department for Education,NATIONAL COLLEGE FOR TEACHING AND LEADERSHIP AGENCY,04/05/2016,Grants,Operations Directorate,UNIVERSITY OF HULL,4000236411,3213.00,Grants to educational establishments or not for profit organisations including other businesses,,
Department for Education,NATIONAL COLLEGE FOR TEACHING AND LEADERSHIP AGENCY,04/05/2016,Grants,Operations Directorate,UNIVERSITY OF HULL,4000236411,192150.00,Grants to educational establishments or not for profit organisations including other businesses,,
Department for Education,NATIONAL COLLEGE FOR TEACHING AND LEADERSHIP AGENCY,04/05/2016,Grants,Operations Directorate,UNIVERSITY OF HULL,4000236411,4605.00,Grants to educational establishments or not for profit organisations including other businesses,,
Department for Education,NATIONAL COLLEGE FOR TEACHING AND LEADERSHIP AGENCY,04/05/2016,Grants,Delivery Directorate,UNIVERSITY OF HULL,4000236411,6300.00,Grants to educational establishments or not for profit organisations including other businesses,,
Department for Education,NATIONAL COLLEGE FOR TEACHING AND LEADERSHIP AGENCY,04/05/2016,Grants,Operations Directorate,UNIVERSITY OF EAST ANGLIA,4000236415,212940.00,Grants to educational establishments or not for profit organisations including other businesses,,
Department for Education,NATIONAL COLLEGE FOR TEACHING AND LEADERSHIP AGENCY,04/05/2016,Grants,Operations Directorate,UNIVERSITY OF DERBY,4000236416,2295.00,Grants to educational establishments or not for profit organisations including other businesses,,
Department for Education,NATIONAL COLLEGE FOR TEACHING AND LEADERSHIP AGENCY,04/05/2016,Grants,Operations Directorate,UNIVERSITY OF DERBY,4000236416,112600.00,Grants to educational establishments or not for profit organisations including other businesses,,
Department for Education,NATIONAL COLLEGE FOR TEACHING AND LEADERSHIP AGENCY,04/05/2016,Grants,Operations Directorate,UNIVERSITY OF DERBY,4000236416,332.20,Grants to educational establishments or not for profit organisations including other businesses,,
Department for Education,NATIONAL COLLEGE FOR TEACHING AND LEADERSHIP AGENCY,04/05/2016,Grants,Delivery Directorate,UNIVERSITY OF DERBY,4000236416,19890.00,Grants to educational establishments or not for profit organisations including other businesses,,
Department for Education,NATIONAL COLLEGE FOR TEACHING AND LEADERSHIP AGENCY,04/05/2016,Grants,Operations Directorate,STAFFORDSHIRE UNIVERSITY,4000236417,41220.00,Grants to educational establishments or not for profit organisations including other businesses,,
Department for Education,NATIONAL COLLEGE FOR TEACHING AND LEADERSHIP AGENCY,04/05/2016,Grants,Operations Directorate,STAFFORDSHIRE UNIVERSITY,4000236417,5940.00,Grants to educational establishments or not for profit organisations including other businesses,,
Department for Education,NATIONAL COLLEGE FOR TEACHING AND LEADERSHIP AGENCY,04/05/2016,Grants,Delivery Directorate,STAFFORDSHIRE UNIVERSITY,4000236417,8820.00,Grants to educational establishments or not for profit organisations including other businesses,,
Department for Education,NATIONAL COLLEGE FOR TEACHING AND LEADERSHIP AGENCY,04/05/2016,Grants,Operations Directorate,LEEDS BECKETT UNIVERSITY,4000236418,918.00,Grants to educational establishments or not for profit organisations including other businesses,,
Department for Education,NATIONAL COLLEGE FOR TEACHING AND LEADERSHIP AGENCY,04/05/2016,Grants,Operations Directorate,LEEDS BECKETT UNIVERSITY,4000236418,52385.00,Grants to educational establishments or not for profit organisations including other businesses,,
Department for Education,NATIONAL COLLEGE FOR TEACHING AND LEADERSHIP AGENCY,04/05/2016,Grants,Delivery Directorate,LEEDS BECKETT UNIVERSITY,4000236418,6210.00,Grants to educational establishments or not for profit organisations including other businesses,,
Department for Education,NATIONAL COLLEGE FOR TEACHING AND LEADERSHIP AGENCY,04/05/2016,Grants,Operations Directorate,UNIVERSITY OF CAMBRIDGE,4000236425,281340.00,Grants to educational establishments or not for profit organisations including other businesses,,
Department for Education,DEPARTMENT FOR EDUCATION,04/05/2016,Grants,Adoption and Children in Care Division,WHO CARES TRUST,4000236428,65007.66,Grants to educational establishments or not for profit organisations including other businesses,,
Department for Education,NATIONAL COLLEGE FOR TEACHING AND LEADERSHIP AGENCY,04/05/2016,Grants,Delivery Directorate,SUFFOLK COUNTY COUNCIL,4000236429,2666.67,Grants to educational establishments or not for profit organisations including other businesses,,
Department for Education,NATIONAL COLLEGE FOR TEACHING AND LEADERSHIP AGENCY,04/05/2016,Grants,Operations Directorate,SUFFOLK COUNTY COUNCIL,4000236429,44280.00,Grants to educational establishments or not for profit organisations including other businesses,,
Department for Education,NATIONAL COLLEGE FOR TEACHING AND LEADERSHIP AGENCY,04/05/2016,Grants,Operations Directorate,SUFFOLK COUNTY COUNCIL,4000236429,3705.00,Grants to educational establishments or not for profit organisations including other businesses,,
Department for Education,NATIONAL COLLEGE FOR TEACHING AND LEADERSHIP AGENCY,04/05/2016,Grants,Operations Directorate,UNIVERSITY OF BEDFORDSHIRE,4000236431,1709.10,Grants to educational establishments or not for profit organisations including other businesses,,
Department for Education,NATIONAL COLLEGE FOR TEACHING AND LEADERSHIP AGENCY,04/05/2016,Grants,Operations Directorate,UNIVERSITY OF BEDFORDSHIRE,4000236431,62730.00,Grants to educational establishments or not for profit organisations including other businesses,,
Department for Education,NATIONAL COLLEGE FOR TEACHING AND LEADERSHIP AGENCY,04/05/2016,Grants,Delivery Directorate,UNIVERSITY OF BEDFORDSHIRE,4000236431,36540.00,Grants to educational establishments or not for profit organisations including other businesses,,
Department for Education,NATIONAL COLLEGE FOR TEACHING AND LEADERSHIP AGENCY,04/05/2016,Grants,Operations Directorate,LOUGHBOROUGH UNIVERSITY ENTERPRISE LTD,4000236432,26550.00,Grants to educational establishments or not for profit organisations including other businesses,,
Department for Education,NATIONAL COLLEGE FOR TEACHING AND LEADERSHIP AGENCY,04/05/2016,Grants,Operations Directorate,NOTLEY HIGH SCHOOL & BRAINTREE SIXTH FORM,4000236433,29700.00,Grants to educational establishments or not for profit organisations including other businesses,,
Department for Education,NATIONAL COLLEGE FOR TEACHING AND LEADERSHIP AGENCY,04/05/2016,Grants,Delivery Directorate,BRADFORD COLLEGE,4000236434,77000.96,Grants to educational establishments or not for profit organisations including other businesses,,
Department for Education,NATIONAL COLLEGE FOR TEACHING AND LEADERSHIP AGENCY,04/05/2016,Grants,Operations Directorate,BRADFORD COLLEGE,4000236434,99540.00,Grants to educational establishments or not for profit organisations including other businesses,,
Department for Education,NATIONAL COLLEGE FOR TEACHING AND LEADERSHIP AGENCY,04/05/2016,Grants,Operations Directorate,BRADFORD COLLEGE,4000236434,77695.00,Grants to educational establishments or not for profit organisations including other businesses,,
Department for Education,NATIONAL COLLEGE FOR TEACHING AND LEADERSHIP AGENCY,04/05/2016,Grants,Operations Directorate,BRADFORD COLLEGE,4000236434,7590.00,Grants to educational establishments or not for profit organisations including other businesses,,
Department for Education,NATIONAL COLLEGE FOR TEACHING AND LEADERSHIP AGENCY,04/05/2016,Grants,Operations Directorate,UNIVERSITY OF BRISTOL,4000236435,243720.00,Grants to educational establishments or not for profit organisations including other businesses,,
Department for Education,NATIONAL COLLEGE FOR TEACHING AND LEADERSHIP AGENCY,04/05/2016,Grants,Operations Directorate,LONDON METROPOLITAN UNIVERSITY,4000236438,132210.00,Grants to educational establishments or not for profit organisations including other businesses,,
Department for Education,NATIONAL COLLEGE FOR TEACHING AND LEADERSHIP AGENCY,04/05/2016,Grants,Operations Directorate,LONDON METROPOLITAN UNIVERSITY,4000236438,47770.00,Grants to educational establishments or not for profit organisations including other businesses,,
Department for Education,NATIONAL COLLEGE FOR TEACHING AND LEADERSHIP AGENCY,04/05/2016,Grants,Delivery Directorate,LONDON METROPOLITAN UNIVERSITY,4000236438,4480.00,Grants to educational establishments or not for profit organisations including other businesses,,
Department for Education,NATIONAL COLLEGE FOR TEACHING AND LEADERSHIP AGENCY,04/05/2016,Grants,Delivery Directorate,NOTTINGHAMSHIRE TORCH SCITT,4000236446,3200.00,Grants to educational establishments or not for profit organisations including other businesses,,
Department for Education,NATIONAL COLLEGE FOR TEACHING AND LEADERSHIP AGENCY,04/05/2016,Grants,Operations Directorate,NOTTINGHAMSHIRE TORCH SCITT,4000236446,23220.00,Grants to educational establishments or not for profit organisations including other businesses,,
Department for Education,DEPARTMENT FOR EDUCATION,04/05/2016,Grants,"Children's Services, Equalities and Communication Safeguarding Group",BEHIND CLOSED DOORS,4000236447,45130.38,Grants to educational establishments or not for profit organisations including other businesses,,
Department for Education,NATIONAL COLLEGE FOR TEACHING AND LEADERSHIP AGENCY,04/05/2016,Grants,Operations Directorate,PADDINGTON ACADEMY,4000236448,42660.00,Grants to educational establishments or not for profit organisations including other businesses,,
Department for Education,NATIONAL COLLEGE FOR TEACHING AND LEADERSHIP AGENCY,04/05/2016,Grants,Operations Directorate,THE UNIVERSITY OF MANCHESTER,4000236449,330030.00,Grants to educational establishments or not for profit organisations including other businesses,,
Department for Education,NATIONAL COLLEGE FOR TEACHING AND LEADERSHIP AGENCY,04/05/2016,Grants,Operations Directorate,THE UNIVERSITY OF MANCHESTER,4000236449,1577.00,Grants to educational establishments or not for profit organisations including other businesses,,
Department for Education,NATIONAL COLLEGE FOR TEACHING AND LEADERSHIP AGENCY,04/05/2016,Grants,Operations Directorate,UNIVERSITY OF LEICESTER,4000236450,176850.00,Grants to educational establishments or not for profit organisations including other businesses,,
Department for Education,NATIONAL COLLEGE FOR TEACHING AND LEADERSHIP AGENCY,04/05/2016,Grants,Delivery Directorate,EDGE HILL UNIVERSITY,4000236452,35759.97,Grants to educational establishments or not for profit organisations including other businesses,,
Department for Education,NATIONAL COLLEGE FOR TEACHING AND LEADERSHIP AGENCY,04/05/2016,Grants,Operations Directorate,EDGE HILL UNIVERSITY,4000236452,552600.00,Grants to educational establishments or not for profit organisations including other businesses,,
Department for Education,NATIONAL COLLEGE FOR TEACHING AND LEADERSHIP AGENCY,04/05/2016,Grants,Operations Directorate,EDGE HILL UNIVERSITY,4000236452,28100.00,Grants to educational establishments or not for profit organisations including other businesses,,
Department for Education,NATIONAL COLLEGE FOR TEACHING AND LEADERSHIP AGENCY,04/05/2016,Grants,Operations Directorate,EDGE HILL UNIVERSITY,4000236452,33880.00,Grants to educational establishments or not for profit organisations including other businesses,,
Department for Education,NATIONAL COLLEGE FOR TEACHING AND LEADERSHIP AGENCY,04/05/2016,Grants,Delivery Directorate,EDGE HILL UNIVERSITY,4000236452,85680.00,Grants to educational establishments or not for profit organisations including other businesses,,
Department for Education,NATIONAL COLLEGE FOR TEACHING AND LEADERSHIP AGENCY,04/05/2016,Grants,Delivery Directorate,LIVERPOOL HOPE UNIVERSITY,4000236453,8800.00,Grants to educational establishments or not for profit organisations including other businesses,,
Department for Education,NATIONAL COLLEGE FOR TEACHING AND LEADERSHIP AGENCY,04/05/2016,Grants,Operations Directorate,LIVERPOOL HOPE UNIVERSITY,4000236453,1101.60,Grants to educational establishments or not for profit organisations including other businesses,,
Department for Education,NATIONAL COLLEGE FOR TEACHING AND LEADERSHIP AGENCY,04/05/2016,Grants,Operations Directorate,LIVERPOOL HOPE UNIVERSITY,4000236453,281250.00,Grants to educational establishments or not for profit organisations including other businesses,,
Department for Education,NATIONAL COLLEGE FOR TEACHING AND LEADERSHIP AGENCY,04/05/2016,Grants,Operations Directorate,UNIVERSITY OF GLOUCESTERSHIRE,4000236454,68040.00,Grants to educational establishments or not for profit organisations including other businesses,,
Department for Education,NATIONAL COLLEGE FOR TEACHING AND LEADERSHIP AGENCY,04/05/2016,Grants,Delivery Directorate,UNIVERSITY OF GLOUCESTERSHIRE,4000236454,28980.00,Grants to educational establishments or not for profit organisations including other businesses,,
Department for Education,NATIONAL COLLEGE FOR TEACHING AND LEADERSHIP AGENCY,04/05/2016,Grants,Delivery Directorate,UNIVERSITY OF SHEFFIELD,4000236458,320.00,Grants to educational establishments or not for profit organisations including other businesses,,
Department for Education,NATIONAL COLLEGE FOR TEACHING AND LEADERSHIP AGENCY,04/05/2016,Grants,Operations Directorate,UNIVERSITY OF SHEFFIELD,4000236458,154440.00,Grants to educational establishments or not for profit organisations including other businesses,,
Department for Education,NATIONAL COLLEGE FOR TEACHING AND LEADERSHIP AGENCY,04/05/2016,Grants,Operations Directorate,UNIVERSITY OF SHEFFIELD,4000236458,1577.00,Grants to educational establishments or not for profit organisations including other businesses,,
Department for Education,DEPARTMENT FOR EDUCATION,04/05/2016,Grants,Academies Delivery Group,HAYWOOD ACADEMY,4000236459,50000.00,Grants to educational establishments or not for profit organisations including other businesses,,
Department for Education,NATIONAL COLLEGE FOR TEACHING AND LEADERSHIP AGENCY,04/05/2016,Grants,Delivery Directorate,NOTTINGHAM TRENT UNIVERSITY,4000236460,6628.57,Grants to educational establishments or not for profit organisations including other businesses,,
Department for Education,NATIONAL COLLEGE FOR TEACHING AND LEADERSHIP AGENCY,04/05/2016,Grants,Operations Directorate,NOTTINGHAM TRENT UNIVERSITY,4000236460,129600.00,Grants to educational establishments or not for profit organisations including other businesses,,
Department for Education,NATIONAL COLLEGE FOR TEACHING AND LEADERSHIP AGENCY,04/05/2016,Grants,Operations Directorate,NOTTINGHAM TRENT UNIVERSITY,4000236460,2695.00,Grants to educational establishments or not for profit organisations including other businesses,,
Department for Education,NATIONAL COLLEGE FOR TEACHING AND LEADERSHIP AGENCY,04/05/2016,Grants,Delivery Directorate,NOTTINGHAM TRENT UNIVERSITY,4000236460,7560.00,Grants to educational establishments or not for profit organisations including other businesses,,
Department for Education,NATIONAL COLLEGE FOR TEACHING AND LEADERSHIP AGENCY,04/05/2016,Grants,Delivery Directorate,UNIVERSITY OF WORCESTER,4000236462,1600.00,Grants to educational establishments or not for profit organisations including other businesses,,
Department for Education,NATIONAL COLLEGE FOR TEACHING AND LEADERSHIP AGENCY,04/05/2016,Grants,Operations Directorate,UNIVERSITY OF WORCESTER,4000236462,170280.00,Grants to educational establishments or not for profit organisations including other businesses,,
Department for Education,NATIONAL COLLEGE FOR TEACHING AND LEADERSHIP AGENCY,04/05/2016,Grants,Delivery Directorate,UNIVERSITY OF WORCESTER,4000236462,12280.00,Grants to educational establishments or not for profit organisations including other businesses,,
Department for Education,NATIONAL COLLEGE FOR TEACHING AND LEADERSHIP AGENCY,04/05/2016,Grants,Operations Directorate,UNIVERSITY OF HERTFORDSHIRE,4000236464,111420.00,Grants to educational establishments or not for profit organisations including other businesses,,
Department for Education,NATIONAL COLLEGE FOR TEACHING AND LEADERSHIP AGENCY,04/05/2016,Grants,Delivery Directorate,LINCOLNSHIRE TEACHING SCHOOL ALLIANCE,4000236471,4133.34,Grants to educational establishments or not for profit organisations including other businesses,,
Department for Education,NATIONAL COLLEGE FOR TEACHING AND LEADERSHIP AGENCY,04/05/2016,Grants,Operations Directorate,LINCOLNSHIRE TEACHING SCHOOL ALLIANCE,4000236471,27540.00,Grants to educational establishments or not for profit organisations including other businesses,,
Department for Education,NATIONAL COLLEGE FOR TEACHING AND LEADERSHIP AGENCY,04/05/2016,Grants,Operations Directorate,LINCOLNSHIRE TEACHING SCHOOL ALLIANCE,4000236471,5500.00,Grants to educational establishments or not for profit organisations including other businesses,,
Department for Education,DEPARTMENT FOR EDUCATION,04/05/2016,Professional Services Other,Early Years Group,HM REVENUE & CUSTOMS,4000236474,26136.00,Payment for resource costs incurred in February 2016 required for HMRC to develop a joint application and eligibility checking application (JOCA) for the planned extension of free hours childcare entitlement using HMRC's tax-free childcare infrastructure. The Department for Education have an agreement with HMRC to cover the resource costs for this work.,,
Department for Education,DEPARTMENT FOR EDUCATION,04/05/2016,Grants,Academies Delivery Group,DERBY DIOCESAN ACADEMY TRUST,4000236475,80000.00,Grants to educational establishments or not for profit organisations including other businesses,,
Department for Education,NATIONAL COLLEGE FOR TEACHING AND LEADERSHIP AGENCY,04/05/2016,Grants,Operations Directorate,UNIVERSITY OF EXETER,4000236477,320650.00,Grants to educational establishments or not for profit organisations including other businesses,,
Department for Education,NATIONAL COLLEGE FOR TEACHING AND LEADERSHIP AGENCY,04/05/2016,Grants,Operations Directorate,DONCASTER MBC,4000236480,25290.00,Grants to educational establishments or not for profit organisations including other businesses,,
Department for Education,NATIONAL COLLEGE FOR TEACHING AND LEADERSHIP AGENCY,04/05/2016,Grants,Operations Directorate,LEEDS CITY COUNCIL,4000236481,32310.00,Grants to educational establishments or not for profit organisations including other businesses,,
Department for Education,NATIONAL COLLEGE FOR TEACHING AND LEADERSHIP AGENCY,04/05/2016,Grants,Operations Directorate,NOTRE DAME HIGH SCHOOL,4000236483,33300.00,Grants to educational establishments or not for profit organisations including other businesses,,
Department for Education,NATIONAL COLLEGE FOR TEACHING AND LEADERSHIP AGENCY,04/05/2016,Grants,Operations Directorate,UNIVERSITY OF NORTHUMBRIA,4000236490,88020.00,Grants to educational establishments or not for profit organisations including other businesses,,
Department for Education,NATIONAL COLLEGE FOR TEACHING AND LEADERSHIP AGENCY,04/05/2016,Grants,Delivery Directorate,UNIVERSITY OF NORTHUMBRIA,4000236490,18450.00,Grants to educational establishments or not for profit organisations including other businesses,,
Department for Education,DEPARTMENT FOR EDUCATION,04/05/2016,Grants,Academies Delivery Group,WICKERSLEY PARTNERSHIP TRUST,4000236498,80000.00,Grants to educational establishments or not for profit organisations including other businesses,,
Department for Education,DEPARTMENT FOR EDUCATION,04/05/2016,Grants,Academies Delivery Group,HEWORTH CE PRIMARY SCHOOL,4000236499,27000.00,Grants to educational establishments or not for profit organisations including other businesses,,
Department for Education,DEPARTMENT FOR EDUCATION,04/05/2016,Grants,Academies Delivery Group,ST JOHN THE BAPTIST SCHOOL,4000236510,100000.00,Grants to educational establishments or not for profit organisations including other businesses,,
Department for Education,NATIONAL COLLEGE FOR TEACHING AND LEADERSHIP AGENCY,04/05/2016,Grants,Operations Directorate,ST JOHN THE BAPTIST SCHOOL,4000236510,20430.00,Grants to educational establishments or not for profit organisations including other businesses,,
Department for Education,NATIONAL COLLEGE FOR TEACHING AND LEADERSHIP AGENCY,04/05/2016,Grants,Operations Directorate,UNIVERSITY OF THE WEST OF ENGLAND,4000236511,155385.00,Grants to educational establishments or not for profit organisations including other businesses,,
Department for Education,NATIONAL COLLEGE FOR TEACHING AND LEADERSHIP AGENCY,04/05/2016,Grants,Delivery Directorate,UNIVERSITY OF THE WEST OF ENGLAND,4000236511,10080.00,Grants to educational establishments or not for profit organisations including other businesses,,
Department for Education,NATIONAL COLLEGE FOR TEACHING AND LEADERSHIP AGENCY,04/05/2016,Grants,Operations Directorate,UNIVERSITY OF PORTSMOUTH,4000236515,140040.00,Grants to educational establishments or not for profit organisations including other businesses,,
Department for Education,NATIONAL COLLEGE FOR TEACHING AND LEADERSHIP AGENCY,04/05/2016,Grants,Operations Directorate,UNIVERSITY OF PORTSMOUTH,4000236515,1430.00,Grants to educational establishments or not for profit organisations including other businesses,,
Department for Education,NATIONAL COLLEGE FOR TEACHING AND LEADERSHIP AGENCY,04/05/2016,Grants,Delivery Directorate,UNIVERSITY OF PORTSMOUTH,4000236515,10080.00,Grants to educational establishments or not for profit organisations including other businesses,,
Department for Education,NATIONAL COLLEGE FOR TEACHING AND LEADERSHIP AGENCY,04/05/2016,Grants,Delivery Directorate,UNIVERSITY OF EAST LONDON,4000236518,29400.00,Grants to educational establishments or not for profit organisations including other businesses,,
Department for Education,NATIONAL COLLEGE FOR TEACHING AND LEADERSHIP AGENCY,04/05/2016,Grants,Operations Directorate,UNIVERSITY OF EAST LONDON,4000236518,307800.00,Grants to educational establishments or not for profit organisations including other businesses,,
Department for Education,NATIONAL COLLEGE FOR TEACHING AND LEADERSHIP AGENCY,04/05/2016,Grants,Delivery Directorate,UNIVERSITY OF OXFORD,4000236520,1066.67,Grants to educational establishments or not for profit organisations including other businesses,,
Department for Education,NATIONAL COLLEGE FOR TEACHING AND LEADERSHIP AGENCY,04/05/2016,Grants,Operations Directorate,UNIVERSITY OF OXFORD,4000236520,235080.00,Grants to educational establishments or not for profit organisations including other businesses,,
Department for Education,NATIONAL COLLEGE FOR TEACHING AND LEADERSHIP AGENCY,04/05/2016,Grants,Operations Directorate,UNIVERSITY OF OXFORD,4000236520,3705.00,Grants to educational establishments or not for profit organisations including other businesses,,
Department for Education,NATIONAL COLLEGE FOR TEACHING AND LEADERSHIP AGENCY,04/05/2016,Grants,Operations Directorate,YORK ST JOHN UNIVERSITY,4000236521,75600.00,Grants to educational establishments or not for profit organisations including other businesses,,
Department for Education,DEPARTMENT FOR EDUCATION,04/05/2016,Grants,Free School Group,WOODLAND ACADEMY TRUST,4000236522,66000.00,Grants to educational establishments or not for profit organisations including other businesses,,
Department for Education,DEPARTMENT FOR EDUCATION,04/05/2016,Grants,Academies Delivery Group,FULHAM PRIMARY SCHOOL,4000236524,25000.00,Grants to educational establishments or not for profit organisations including other businesses,,
Department for Education,NATIONAL COLLEGE FOR TEACHING AND LEADERSHIP AGENCY,04/05/2016,Grants,Delivery Directorate,CANTERBURY CHRIST CHURCH UNIVERSITY,4000236536,98733.41,Grants to educational establishments or not for profit organisations including other businesses,,
Department for Education,NATIONAL COLLEGE FOR TEACHING AND LEADERSHIP AGENCY,04/05/2016,Grants,Operations Directorate,CANTERBURY CHRIST CHURCH UNIVERSITY,4000236536,306810.00,Grants to educational establishments or not for profit organisations including other businesses,,
Department for Education,NATIONAL COLLEGE FOR TEACHING AND LEADERSHIP AGENCY,04/05/2016,Grants,Operations Directorate,CANTERBURY CHRIST CHURCH UNIVERSITY,4000236536,304490.00,Grants to educational establishments or not for profit organisations including other businesses,,
Department for Education,NATIONAL COLLEGE FOR TEACHING AND LEADERSHIP AGENCY,04/05/2016,Grants,Operations Directorate,CANTERBURY CHRIST CHURCH UNIVERSITY,4000236536,30030.00,Grants to educational establishments or not for profit organisations including other businesses,,
Department for Education,NATIONAL COLLEGE FOR TEACHING AND LEADERSHIP AGENCY,04/05/2016,Grants,Delivery Directorate,CANTERBURY CHRIST CHURCH UNIVERSITY,4000236536,17100.00,Grants to educational establishments or not for profit organisations including other businesses,,
Department for Education,NATIONAL COLLEGE FOR TEACHING AND LEADERSHIP AGENCY,04/05/2016,Grants,Operations Directorate,THE ARTHUR TERRY SCHOOL SCITT,4000236538,31320.00,Grants to educational establishments or not for profit organisations including other businesses,,
Department for Education,NATIONAL COLLEGE FOR TEACHING AND LEADERSHIP AGENCY,04/05/2016,Grants,Operations Directorate,UNIVERSITY OF YORK,4000236543,171720.00,Grants to educational establishments or not for profit organisations including other businesses,,
Department for Education,NATIONAL COLLEGE FOR TEACHING AND LEADERSHIP AGENCY,04/05/2016,Grants,Operations Directorate,UNIVERSITY OF NEWCASTLE UPON TYNE,4000236544,133470.00,Grants to educational establishments or not for profit organisations including other businesses,,
Department for Education,DEPARTMENT FOR EDUCATION,04/05/2016,Grants,Academies Delivery Group,HARBOURSIDE LEARNING PARTNERSHIP,4000236554,90000.00,Grants to educational establishments or not for profit organisations including other businesses,,
Department for Education,DEPARTMENT FOR EDUCATION,04/05/2016,Grants,Free School Group,SOUTH GLOUCESTERSHIRE & STROUD ACADEMY TRUST,4000236555,90000.00,Grants to educational establishments or not for profit organisations including other businesses,,
Department for Education,NATIONAL COLLEGE FOR TEACHING AND LEADERSHIP AGENCY,04/05/2016,Grants,Operations Directorate,THE OAKS SCITT,4000236560,72180.00,Grants to educational establishments or not for profit organisations including other businesses,,
Department for Education,DEPARTMENT FOR EDUCATION,04/05/2016,Grants,Academies Delivery Group,SUTHERLAND PRIMARY SCHOOL,4000236565,90000.00,Grants to educational establishments or not for profit organisations including other businesses,,
Department for Education,NATIONAL COLLEGE FOR TEACHING AND LEADERSHIP AGENCY,04/05/2016,Grants,Delivery Directorate,UNIVERSITY OF WOLVERHAMPTON,4000236568,20628.58,Grants to educational establishments or not for profit organisations including other businesses,,
Department for Education,NATIONAL COLLEGE FOR TEACHING AND LEADERSHIP AGENCY,04/05/2016,Grants,Operations Directorate,UNIVERSITY OF WOLVERHAMPTON,4000236568,200880.00,Grants to educational establishments or not for profit organisations including other businesses,,
Department for Education,NATIONAL COLLEGE FOR TEACHING AND LEADERSHIP AGENCY,04/05/2016,Grants,Operations Directorate,UNIVERSITY OF WOLVERHAMPTON,4000236568,11115.00,Grants to educational establishments or not for profit organisations including other businesses,,
Department for Education,NATIONAL COLLEGE FOR TEACHING AND LEADERSHIP AGENCY,04/05/2016,Grants,Operations Directorate,UNIVERSITY OF WOLVERHAMPTON,4000236568,8910.00,Grants to educational establishments or not for profit organisations including other businesses,,
Department for Education,NATIONAL COLLEGE FOR TEACHING AND LEADERSHIP AGENCY,04/05/2016,Grants,Delivery Directorate,UNIVERSITY OF WOLVERHAMPTON,4000236568,20160.00,Grants to educational establishments or not for profit organisations including other businesses,,
Department for Education,NATIONAL COLLEGE FOR TEACHING AND LEADERSHIP AGENCY,04/05/2016,Grants,Operations Directorate,UNIVERSITY OF DURHAM,4000236569,165060.00,Grants to educational establishments or not for profit organisations including other businesses,,
Department for Education,NATIONAL COLLEGE FOR TEACHING AND LEADERSHIP AGENCY,04/05/2016,Grants,Operations Directorate,LEEDS TRINITY UNIVERSITY COLLEGE,4000236572,2754.00,Grants to educational establishments or not for profit organisations including other businesses,,
Department for Education,NATIONAL COLLEGE FOR TEACHING AND LEADERSHIP AGENCY,04/05/2016,Grants,Operations Directorate,LEEDS TRINITY UNIVERSITY COLLEGE,4000236572,204750.00,Grants to educational establishments or not for profit organisations including other businesses,,
Department for Education,NATIONAL COLLEGE FOR TEACHING AND LEADERSHIP AGENCY,04/05/2016,Grants,Delivery Directorate,LEEDS TRINITY UNIVERSITY COLLEGE,4000236572,11340.00,Grants to educational establishments or not for profit organisations including other businesses,,
Department for Education,NATIONAL COLLEGE FOR TEACHING AND LEADERSHIP AGENCY,04/05/2016,Grants,Delivery Directorate,UNIVERSITY OF SUNDERLAND,4000236573,12840.00,Grants to educational establishments or not for profit organisations including other businesses,,
Department for Education,NATIONAL COLLEGE FOR TEACHING AND LEADERSHIP AGENCY,04/05/2016,Grants,Operations Directorate,UNIVERSITY OF SUNDERLAND,4000236573,119250.00,Grants to educational establishments or not for profit organisations including other businesses,,
Department for Education,NATIONAL COLLEGE FOR TEACHING AND LEADERSHIP AGENCY,04/05/2016,Grants,Operations Directorate,UNIVERSITY OF SUNDERLAND,4000236573,4620.00,Grants to educational establishments or not for profit organisations including other businesses,,
Department for Education,NATIONAL COLLEGE FOR TEACHING AND LEADERSHIP AGENCY,04/05/2016,Grants,Delivery Directorate,UNIVERSITY OF SUNDERLAND,4000236573,19260.00,Grants to educational establishments or not for profit organisations including other businesses,,
Department for Education,NATIONAL COLLEGE FOR TEACHING AND LEADERSHIP AGENCY,04/05/2016,Grants,Operations Directorate,MIDDLESEX UNIVERSITY,4000236577,124547.00,Grants to educational establishments or not for profit organisations including other businesses,,
Department for Education,NATIONAL COLLEGE FOR TEACHING AND LEADERSHIP AGENCY,04/05/2016,Grants,Delivery Directorate,MIDDLESEX UNIVERSITY,4000236577,44070.00,Grants to educational establishments or not for profit organisations including other businesses,,
Department for Education,DEPARTMENT FOR EDUCATION,04/05/2016,Grants,Free School Group,CALLYWITH COLLEGE TRUST,4000236581,75000.00,Grants to educational establishments or not for profit organisations including other businesses,,
Department for Education,DEPARTMENT FOR EDUCATION,04/05/2016,Grants,Free School Group,LIONHEART ACADEMIES TRUST,4000236582,50000.00,Grants to educational establishments or not for profit organisations including other businesses,,
Department for Education,DEPARTMENT FOR EDUCATION,04/05/2016,Grants,Free School Group,HABERDASHERS ASKES FEDERATION TRUST,4000236583,60000.00,Grants to educational establishments or not for profit organisations including other businesses,,
Department for Education,DEPARTMENT FOR EDUCATION,04/05/2016,Grants,Academies Delivery Group,OAKWORTH PRIMARY SCHOOL,4000236584,75000.00,Grants to educational establishments or not for profit organisations including other businesses,,
Department for Education,NATIONAL COLLEGE FOR TEACHING AND LEADERSHIP AGENCY,04/05/2016,Grants,Operations Directorate,KENT & MEDWAY TRAINING,4000236594,60570.00,Grants to educational establishments or not for profit organisations including other businesses,,
Department for Education,NATIONAL COLLEGE FOR TEACHING AND LEADERSHIP AGENCY,04/05/2016,Grants,Operations Directorate,UNIVERSITY OF HUDDERSFIELD,4000236599,69930.00,Grants to educational establishments or not for profit organisations including other businesses,,
Department for Education,NATIONAL COLLEGE FOR TEACHING AND LEADERSHIP AGENCY,04/05/2016,Grants,Operations Directorate,UNIVERSITY OF HUDDERSFIELD,4000236599,13915.00,Grants to educational establishments or not for profit organisations including other businesses,,
Department for Education,NATIONAL COLLEGE FOR TEACHING AND LEADERSHIP AGENCY,04/05/2016,Grants,Delivery Directorate,UNIVERSITY OF HUDDERSFIELD,4000236599,16920.00,Grants to educational establishments or not for profit organisations including other businesses,,
Department for Education,NATIONAL COLLEGE FOR TEACHING AND LEADERSHIP AGENCY,04/05/2016,Grants,Operations Directorate,SOUTHEND HIGH SCHOOL FOR GIRLS,4000236600,29160.00,Grants to educational establishments or not for profit organisations including other businesses,,
Department for Education,NATIONAL COLLEGE FOR TEACHING AND LEADERSHIP AGENCY,04/05/2016,Grants,Delivery Directorate,UNIVERSITY OF BIRMINGHAM,4000236601,20019.00,Grants to educational establishments or not for profit organisations including other businesses,,
Department for Education,NATIONAL COLLEGE FOR TEACHING AND LEADERSHIP AGENCY,04/05/2016,Grants,Operations Directorate,UNIVERSITY OF BIRMINGHAM,4000236601,284130.00,Grants to educational establishments or not for profit organisations including other businesses,,
Department for Education,NATIONAL COLLEGE FOR TEACHING AND LEADERSHIP AGENCY,04/05/2016,Grants,Delivery Directorate,PILGRIM SCITT,4000236602,1200.00,Grants to educational establishments or not for profit organisations including other businesses,,
Department for Education,NATIONAL COLLEGE FOR TEACHING AND LEADERSHIP AGENCY,04/05/2016,Grants,Operations Directorate,PILGRIM SCITT,4000236602,26190.00,Grants to educational establishments or not for profit organisations including other businesses,,
Department for Education,NATIONAL COLLEGE FOR TEACHING AND LEADERSHIP AGENCY,04/05/2016,Grants,Operations Directorate,PILGRIM SCITT,4000236602,2810.00,Grants to educational establishments or not for profit organisations including other businesses,,
Department for Education,NATIONAL COLLEGE FOR TEACHING AND LEADERSHIP AGENCY,04/05/2016,Grants,Operations Directorate,NORTH BEDS SCITT CONSORTIUM,4000236605,41670.00,Grants to educational establishments or not for profit organisations including other businesses,,
Department for Education,NATIONAL COLLEGE FOR TEACHING AND LEADERSHIP AGENCY,04/05/2016,Grants,Delivery Directorate,NEWMAN COLLEGE,4000236606,6057.13,Grants to educational establishments or not for profit organisations including other businesses,,
Department for Education,NATIONAL COLLEGE FOR TEACHING AND LEADERSHIP AGENCY,04/05/2016,Grants,Operations Directorate,NEWMAN COLLEGE,4000236606,150660.00,Grants to educational establishments or not for profit organisations including other businesses,,
Department for Education,NATIONAL COLLEGE FOR TEACHING AND LEADERSHIP AGENCY,04/05/2016,Grants,Operations Directorate,NEWMAN COLLEGE,4000236606,8310.00,Grants to educational establishments or not for profit organisations including other businesses,,
Department for Education,NATIONAL COLLEGE FOR TEACHING AND LEADERSHIP AGENCY,04/05/2016,Grants,Delivery Directorate,NEWMAN COLLEGE,4000236606,10440.00,Grants to educational establishments or not for profit organisations including other businesses,,
Department for Education,DEPARTMENT FOR EDUCATION,04/05/2016,Grants,Free School Group,TWYNHAM LEARNING,4000236609,25000.00,Grants to educational establishments or not for profit organisations including other businesses,,
Department for Education,NATIONAL COLLEGE FOR TEACHING AND LEADERSHIP AGENCY,04/05/2016,Grants,Operations Directorate,SOUTH WEST TEACHER TRAINING,4000236621,26730.00,Grants to educational establishments or not for profit organisations including other businesses,,
Department for Education,NATIONAL COLLEGE FOR TEACHING AND LEADERSHIP AGENCY,04/05/2016,Grants,Delivery Directorate,MANCHESTER METROPOLITAN UNIVERSITY,4000236622,43200.00,Grants to educational establishments or not for profit organisations including other businesses,,
Department for Education,NATIONAL COLLEGE FOR TEACHING AND LEADERSHIP AGENCY,04/05/2016,Grants,Operations Directorate,MANCHESTER METROPOLITAN UNIVERSITY,4000236622,546840.00,Grants to educational establishments or not for profit organisations including other businesses,,
Department for Education,NATIONAL COLLEGE FOR TEACHING AND LEADERSHIP AGENCY,04/05/2016,Grants,Delivery Directorate,MANCHESTER METROPOLITAN UNIVERSITY,4000236622,23940.00,Grants to educational establishments or not for profit organisations including other businesses,,
Department for Education,NATIONAL COLLEGE FOR TEACHING AND LEADERSHIP AGENCY,04/05/2016,Grants,Operations Directorate,THE KIRKLEES PARTNERSHIP,4000236635,25560.00,Grants to educational establishments or not for profit organisations including other businesses,,
Department for Education,NATIONAL COLLEGE FOR TEACHING AND LEADERSHIP AGENCY,04/05/2016,Grants,Operations Directorate,THE COLLEGE OF ST MARK & ST JOHN,4000236636,46035.00,Grants to educational establishments or not for profit organisations including other businesses,,
Department for Education,NATIONAL COLLEGE FOR TEACHING AND LEADERSHIP AGENCY,04/05/2016,Grants,Delivery Directorate,THE COLLEGE OF ST MARK & ST JOHN,4000236636,18540.00,Grants to educational establishments or not for profit organisations including other businesses,,
Department for Education,NATIONAL COLLEGE FOR TEACHING AND LEADERSHIP AGENCY,04/05/2016,Grants,Delivery Directorate,UNIVERSITY OF ROEHAMPTON,4000236640,4480.00,Grants to educational establishments or not for profit organisations including other businesses,,
Department for Education,NATIONAL COLLEGE FOR TEACHING AND LEADERSHIP AGENCY,04/05/2016,Grants,Operations Directorate,UNIVERSITY OF ROEHAMPTON,4000236640,118195.00,Grants to educational establishments or not for profit organisations including other businesses,,
Department for Education,NATIONAL COLLEGE FOR TEACHING AND LEADERSHIP AGENCY,04/05/2016,Grants,Operations Directorate,UNIVERSITY OF ROEHAMPTON,4000236640,3705.00,Grants to educational establishments or not for profit organisations including other businesses,,
Department for Education,NATIONAL COLLEGE FOR TEACHING AND LEADERSHIP AGENCY,04/05/2016,Grants,Operations Directorate,ARK SCHOOLS,4000236642,26190.00,Grants to educational establishments or not for profit organisations including other businesses,,
Department for Education,NATIONAL COLLEGE FOR TEACHING AND LEADERSHIP AGENCY,04/05/2016,Grants,Operations Directorate,DURHAM SECONDARY APPLIED SCITT,4000236643,56700.00,Grants to educational establishments or not for profit organisations including other businesses,,
Department for Education,NATIONAL COLLEGE FOR TEACHING AND LEADERSHIP AGENCY,04/05/2016,Grants,Delivery Directorate,UNIVERSITY OF GREENWICH,4000236646,10346.67,Grants to educational establishments or not for profit organisations including other businesses,,
Department for Education,NATIONAL COLLEGE FOR TEACHING AND LEADERSHIP AGENCY,04/05/2016,Grants,Operations Directorate,UNIVERSITY OF GREENWICH,4000236646,42020.00,Grants to educational establishments or not for profit organisations including other businesses,,
Department for Education,DEPARTMENT FOR EDUCATION,04/05/2016,Grants,Academies Delivery Group,DIOCESE OF SOUTHWELL & NOTTINGHAM MULTI ACADEMY TRUST,4000236647,60000.00,Grants to educational establishments or not for profit organisations including other businesses,,
Department for Education,NATIONAL COLLEGE FOR TEACHING AND LEADERSHIP AGENCY,04/05/2016,Grants,Operations Directorate,KING EDWARDS CONSORTIUM,4000236648,26280.00,Grants to educational establishments or not for profit organisations including other businesses,,
Department for Education,NATIONAL COLLEGE FOR TEACHING AND LEADERSHIP AGENCY,04/05/2016,Grants,Operations Directorate,HAVERING BEACON PARTNERSHIP,4000236651,26640.00,Grants to educational establishments or not for profit organisations including other businesses,,
Department for Education,NATIONAL COLLEGE FOR TEACHING AND LEADERSHIP AGENCY,04/05/2016,Grants,Delivery Directorate,GRAND UNION TRAINING PARTNERSHIP,4000236653,960.00,Grants to educational establishments or not for profit organisations including other businesses,,
Department for Education,NATIONAL COLLEGE FOR TEACHING AND LEADERSHIP AGENCY,04/05/2016,Grants,Operations Directorate,GRAND UNION TRAINING PARTNERSHIP,4000236653,41130.00,Grants to educational establishments or not for profit organisations including other businesses,,
Department for Education,NATIONAL COLLEGE FOR TEACHING AND LEADERSHIP AGENCY,04/05/2016,Grants,Operations Directorate,OXFORD BROOKES UNIVERSITY,4000236655,46800.00,Grants to educational establishments or not for profit organisations including other businesses,,
Department for Education,NATIONAL COLLEGE FOR TEACHING AND LEADERSHIP AGENCY,04/05/2016,Grants,Operations Directorate,OXFORD BROOKES UNIVERSITY,4000236655,2241.80,Grants to educational establishments or not for profit organisations including other businesses,,
Department for Education,NATIONAL COLLEGE FOR TEACHING AND LEADERSHIP AGENCY,04/05/2016,Grants,Delivery Directorate,OXFORD BROOKES UNIVERSITY,4000236655,6720.00,Grants to educational establishments or not for profit organisations including other businesses,,
Department for Education,NATIONAL COLLEGE FOR TEACHING AND LEADERSHIP AGENCY,04/05/2016,Grants,Operations Directorate,THE MORLEY ACADEMY,4000236659,64530.00,Grants to educational establishments or not for profit organisations including other businesses,,
Department for Education,NATIONAL COLLEGE FOR TEACHING AND LEADERSHIP AGENCY,04/05/2016,Grants,Operations Directorate,BISHOP GROSSETESTE COLLEGE,4000236660,124650.00,Grants to educational establishments or not for profit organisations including other businesses,,
Department for Education,NATIONAL COLLEGE FOR TEACHING AND LEADERSHIP AGENCY,04/05/2016,Grants,Delivery Directorate,BISHOP GROSSETESTE COLLEGE,4000236660,7780.00,Grants to educational establishments or not for profit organisations including other businesses,,
Department for Education,NATIONAL COLLEGE FOR TEACHING AND LEADERSHIP AGENCY,04/05/2016,Grants,Operations Directorate,BILLERICAY EDUCATIONAL CONSORTIUM,4000236662,45000.00,Grants to educational establishments or not for profit organisations including other businesses,,
Department for Education,NATIONAL COLLEGE FOR TEACHING AND LEADERSHIP AGENCY,04/05/2016,Grants,Delivery Directorate,BATH SPA UNIVERSITY,4000236663,14400.00,Grants to educational establishments or not for profit organisations including other businesses,,
Department for Education,NATIONAL COLLEGE FOR TEACHING AND LEADERSHIP AGENCY,04/05/2016,Grants,Operations Directorate,BATH SPA UNIVERSITY,4000236663,209250.00,Grants to educational establishments or not for profit organisations including other businesses,,
Department for Education,NATIONAL COLLEGE FOR TEACHING AND LEADERSHIP AGENCY,04/05/2016,Grants,Operations Directorate,BATH SPA UNIVERSITY,4000236663,66000.00,Grants to educational establishments or not for profit organisations including other businesses,,
Department for Education,NATIONAL COLLEGE FOR TEACHING AND LEADERSHIP AGENCY,04/05/2016,Grants,Delivery Directorate,BATH SPA UNIVERSITY,4000236663,32490.00,Grants to educational establishments or not for profit organisations including other businesses,,
Department for Education,DEPARTMENT FOR EDUCATION,04/05/2016,Grants,Academies Delivery Group,WOLVERHAM PRIMARY SCHOOL,4000236667,25000.00,Grants to educational establishments or not for profit organisations including other businesses,,
Department for Education,DEPARTMENT FOR EDUCATION,04/05/2016,Grants,Academies Delivery Group,SCISSETT CE A FIRST SCHOOL CF ACCOUNT,4000236671,80000.00,Grants to educational establishments or not for profit organisations including other businesses,,
Department for Education,NATIONAL COLLEGE FOR TEACHING AND LEADERSHIP AGENCY,04/05/2016,Grants,Operations Directorate,NEWCASTLE COLLEGE GROUP,4000236674,47300.00,Grants to educational establishments or not for profit organisations including other businesses,,
Department for Education,NATIONAL COLLEGE FOR TEACHING AND LEADERSHIP AGENCY,04/05/2016,Grants,Operations Directorate,UNIVERSITY OF BOLTON,4000236675,79090.00,Grants to educational establishments or not for profit organisations including other businesses,,
Department for Education,NATIONAL COLLEGE FOR TEACHING AND LEADERSHIP AGENCY,04/05/2016,Grants,Operations Directorate,GOLDSMITH COLLEGE,4000236678,161910.00,Grants to educational establishments or not for profit organisations including other businesses,,
Department for Education,NATIONAL COLLEGE FOR TEACHING AND LEADERSHIP AGENCY,04/05/2016,Grants,Delivery Directorate,BRUNEL UNIVERSITY,4000236683,4600.00,Grants to educational establishments or not for profit organisations including other businesses,,
Department for Education,NATIONAL COLLEGE FOR TEACHING AND LEADERSHIP AGENCY,04/05/2016,Grants,Operations Directorate,BRUNEL UNIVERSITY,4000236683,123840.00,Grants to educational establishments or not for profit organisations including other businesses,,
Department for Education,NATIONAL COLLEGE FOR TEACHING AND LEADERSHIP AGENCY,04/05/2016,Grants,Delivery Directorate,ST MARYS UNIVERSITY COLLEGE,4000236687,38236.22,Grants to educational establishments or not for profit organisations including other businesses,,
Department for Education,NATIONAL COLLEGE FOR TEACHING AND LEADERSHIP AGENCY,04/05/2016,Grants,Operations Directorate,ST MARYS UNIVERSITY COLLEGE,4000236687,215280.00,Grants to educational establishments or not for profit organisations including other businesses,,
Department for Education,NATIONAL COLLEGE FOR TEACHING AND LEADERSHIP AGENCY,04/05/2016,Grants,Operations Directorate,ST MARYS UNIVERSITY COLLEGE,4000236687,35375.00,Grants to educational establishments or not for profit organisations including other businesses,,
Department for Education,NATIONAL COLLEGE FOR TEACHING AND LEADERSHIP AGENCY,04/05/2016,Grants,Operations Directorate,UNIVERSITY OF NORTHAMPTON,4000236688,25920.00,Grants to educational establishments or not for profit organisations including other businesses,,
Department for Education,NATIONAL COLLEGE FOR TEACHING AND LEADERSHIP AGENCY,04/05/2016,Grants,Delivery Directorate,UNIVERSITY OF NORTHAMPTON,4000236688,21680.00,Grants to educational establishments or not for profit organisations including other businesses,,
Department for Education,NATIONAL COLLEGE FOR TEACHING AND LEADERSHIP AGENCY,04/05/2016,Grants,Operations Directorate,SHEFFIELD HALLAM UNIVERSITY,4000236693,359820.00,Grants to educational establishments or not for profit organisations including other businesses,,
Department for Education,NATIONAL COLLEGE FOR TEACHING AND LEADERSHIP AGENCY,04/05/2016,Grants,Operations Directorate,SHEFFIELD HALLAM UNIVERSITY,4000236693,10227.80,Grants to educational establishments or not for profit organisations including other businesses,,
Department for Education,NATIONAL COLLEGE FOR TEACHING AND LEADERSHIP AGENCY,04/05/2016,Grants,Delivery Directorate,SHEFFIELD HALLAM UNIVERSITY,4000236693,20880.00,Grants to educational establishments or not for profit organisations including other businesses,,
Department for Education,NATIONAL COLLEGE FOR TEACHING AND LEADERSHIP AGENCY,04/05/2016,Grants,Operations Directorate,LEICESTERSHIRE SECONDARY SCITT,4000236700,34650.00,Grants to educational establishments or not for profit organisations including other businesses,,
Department for Education,NATIONAL COLLEGE FOR TEACHING AND LEADERSHIP AGENCY,04/05/2016,Grants,Delivery Directorate,UNIVERSITY OF CHICHESTER,4000236705,8000.00,Grants to educational establishments or not for profit organisations including other businesses,,
Department for Education,NATIONAL COLLEGE FOR TEACHING AND LEADERSHIP AGENCY,04/05/2016,Grants,Operations Directorate,UNIVERSITY OF CHICHESTER,4000236705,109318.00,Grants to educational establishments or not for profit organisations including other businesses,,
Department for Education,NATIONAL COLLEGE FOR TEACHING AND LEADERSHIP AGENCY,04/05/2016,Grants,Delivery Directorate,UNIVERSITY OF CHICHESTER,4000236705,11340.00,Grants to educational establishments or not for profit organisations including other businesses,,
Department for Education,NATIONAL COLLEGE FOR TEACHING AND LEADERSHIP AGENCY,04/05/2016,Grants,Delivery Directorate,UNIVERSITY OF CHESTER,4000236707,4466.67,Grants to educational establishments or not for profit organisations including other businesses,,
Department for Education,NATIONAL COLLEGE FOR TEACHING AND LEADERSHIP AGENCY,04/05/2016,Grants,Operations Directorate,UNIVERSITY OF CHESTER,4000236707,213120.00,Grants to educational establishments or not for profit organisations including other businesses,,
Department for Education,NATIONAL COLLEGE FOR TEACHING AND LEADERSHIP AGENCY,04/05/2016,Grants,Operations Directorate,UNIVERSITY OF CHESTER,4000236707,15720.00,Grants to educational establishments or not for profit organisations including other businesses,,
Department for Education,NATIONAL COLLEGE FOR TEACHING AND LEADERSHIP AGENCY,04/05/2016,Grants,Delivery Directorate,UNIVERSITY OF CHESTER,4000236707,3780.00,Grants to educational establishments or not for profit organisations including other businesses,,
Department for Education,NATIONAL COLLEGE FOR TEACHING AND LEADERSHIP AGENCY,04/05/2016,Grants,Delivery Directorate,UNIVERSITY OF CUMBRIA,4000236708,5800.00,Grants to educational establishments or not for profit organisations including other businesses,,
Department for Education,NATIONAL COLLEGE FOR TEACHING AND LEADERSHIP AGENCY,04/05/2016,Grants,Operations Directorate,UNIVERSITY OF CUMBRIA,4000236708,183.60,Grants to educational establishments or not for profit organisations including other businesses,,
Department for Education,NATIONAL COLLEGE FOR TEACHING AND LEADERSHIP AGENCY,04/05/2016,Grants,Operations Directorate,UNIVERSITY OF CUMBRIA,4000236708,356074.00,Grants to educational establishments or not for profit organisations including other businesses,,
Department for Education,NATIONAL COLLEGE FOR TEACHING AND LEADERSHIP AGENCY,04/05/2016,Grants,Operations Directorate,MINSTHORPE COMMUNITY COLLEGE,4000236709,31500.00,Grants to educational establishments or not for profit organisations including other businesses,,
Department for Education,NATIONAL COLLEGE FOR TEACHING AND LEADERSHIP AGENCY,04/05/2016,Grants,Operations Directorate,GLOUCESTERSHIRE ITE PARTNERSHIP,4000236711,34470.00,Grants to educational establishments or not for profit organisations including other businesses,,
Department for Education,NATIONAL COLLEGE FOR TEACHING AND LEADERSHIP AGENCY,04/05/2016,Grants,Operations Directorate,EAST LINCOLNSHIRE DRB,4000236713,33300.00,Grants to educational establishments or not for profit organisations including other businesses,,
Department for Education,NATIONAL COLLEGE FOR TEACHING AND LEADERSHIP AGENCY,04/05/2016,Grants,Operations Directorate,UNIVERSITY OF BRIGHTON,4000236714,358.90,Grants to educational establishments or not for profit organisations including other businesses,,
Department for Education,NATIONAL COLLEGE FOR TEACHING AND LEADERSHIP AGENCY,04/05/2016,Grants,Operations Directorate,UNIVERSITY OF BRIGHTON,4000236714,231660.00,Grants to educational establishments or not for profit organisations including other businesses,,
Department for Education,NATIONAL COLLEGE FOR TEACHING AND LEADERSHIP AGENCY,04/05/2016,Grants,Operations Directorate,UNIVERSITY OF BRIGHTON,4000236714,3630.00,Grants to educational establishments or not for profit organisations including other businesses,,
Department for Education,NATIONAL COLLEGE FOR TEACHING AND LEADERSHIP AGENCY,04/05/2016,Grants,Delivery Directorate,UNIVERSITY OF BRIGHTON,4000236714,18900.00,Grants to educational establishments or not for profit organisations including other businesses,,
Department for Education,NATIONAL COLLEGE FOR TEACHING AND LEADERSHIP AGENCY,04/05/2016,Grants,Operations Directorate,CHEADLE HULME HIGH SCHOOL,4000236717,26370.00,Grants to educational establishments or not for profit organisations including other businesses,,
Department for Education,NATIONAL COLLEGE FOR TEACHING AND LEADERSHIP AGENCY,04/05/2016,Grants,Operations Directorate,UNIVERSITY OF NOTTINGHAM,4000236719,272880.00,Grants to educational establishments or not for profit organisations including other businesses,,
Department for Education,NATIONAL COLLEGE FOR TEACHING AND LEADERSHIP AGENCY,04/05/2016,Grants,Operations Directorate,UNIVERSITY OF NOTTINGHAM,4000236719,3705.00,Grants to educational establishments or not for profit organisations including other businesses,,
Department for Education,NATIONAL COLLEGE FOR TEACHING AND LEADERSHIP AGENCY,04/05/2016,Grants,Delivery Directorate,BIRMINGHAM CITY UNIVERSITY,4000236726,24266.73,Grants to educational establishments or not for profit organisations including other businesses,,
Department for Education,NATIONAL COLLEGE FOR TEACHING AND LEADERSHIP AGENCY,04/05/2016,Grants,Operations Directorate,BIRMINGHAM CITY UNIVERSITY,4000236726,89040.00,Grants to educational establishments or not for profit organisations including other businesses,,
Department for Education,DEPARTMENT FOR EDUCATION,04/05/2016,Grants,Academies Delivery Group,DISCOVERY SCHOOLS ACADEMIES TRUST,4000236728,40000.00,Grants to educational establishments or not for profit organisations including other businesses,,
Department for Education,NATIONAL COLLEGE FOR TEACHING AND LEADERSHIP AGENCY,04/05/2016,Grants,Delivery Directorate,LANCASTER ROYAL GRAMMAR SCHOOL,4000236732,92000.00,Grants to educational establishments or not for profit organisations including other businesses,,
Department for Education,NATIONAL COLLEGE FOR TEACHING AND LEADERSHIP AGENCY,04/05/2016,Grants,Operations Directorate,GEORGE SPENCER TRAINING SCHOOL,4000236737,26370.00,Grants to educational establishments or not for profit organisations including other businesses,,
Department for Education,NATIONAL COLLEGE FOR TEACHING AND LEADERSHIP AGENCY,04/05/2016,Grants,Operations Directorate,E QUALITAS PROFESSIONAL SERVICES LTD,4000236739,26550.00,Grants to educational establishments or not for profit organisations including other businesses,,
Department for Education,NATIONAL COLLEGE FOR TEACHING AND LEADERSHIP AGENCY,04/05/2016,Grants,Delivery Directorate,E QUALITAS PROFESSIONAL SERVICES LTD,4000236739,72540.00,Grants to educational establishments or not for profit organisations including other businesses,,
Department for Education,NATIONAL COLLEGE FOR TEACHING AND LEADERSHIP AGENCY,04/05/2016,Grants,Operations Directorate,EDUCATION MANAGEMENT DIRECT LTD,4000236740,25380.00,Grants to educational establishments or not for profit organisations including other businesses,,
Department for Education,NATIONAL COLLEGE FOR TEACHING AND LEADERSHIP AGENCY,04/05/2016,Grants,Operations Directorate,KINGSTON UNIVERSITY,4000236746,119430.00,Grants to educational establishments or not for profit organisations including other businesses,,
Department for Education,NATIONAL COLLEGE FOR TEACHING AND LEADERSHIP AGENCY,04/05/2016,Grants,Delivery Directorate,KINGSTON UNIVERSITY,4000236746,23940.00,Grants to educational establishments or not for profit organisations including other businesses,,
Department for Education,NATIONAL COLLEGE FOR TEACHING AND LEADERSHIP AGENCY,04/05/2016,Grants,Operations Directorate,SHOTTON HALL SCITT,4000236750,68670.00,Grants to educational establishments or not for profit organisations including other businesses,,
Department for Education,NATIONAL COLLEGE FOR TEACHING AND LEADERSHIP AGENCY,04/05/2016,Grants,Operations Directorate,SUTTON SCITT,4000236752,45990.00,Grants to educational establishments or not for profit organisations including other businesses,,
Department for Education,NATIONAL COLLEGE FOR TEACHING AND LEADERSHIP AGENCY,04/05/2016,Grants,Operations Directorate,UNIVERSITY OF GREENWICH,4000236761,191941.00,Grants to educational establishments or not for profit organisations including other businesses,,
Department for Education,NATIONAL COLLEGE FOR TEACHING AND LEADERSHIP AGENCY,04/05/2016,Grants,Operations Directorate,UNIVERSITY OF GREENWICH,4000236761,17160.00,Grants to educational establishments or not for profit organisations including other businesses,,
Department for Education,NATIONAL COLLEGE FOR TEACHING AND LEADERSHIP AGENCY,04/05/2016,Grants,Delivery Directorate,UNIVERSITY OF GREENWICH,4000236761,11320.00,Grants to educational establishments or not for profit organisations including other businesses,,
Department for Education,NATIONAL COLLEGE FOR TEACHING AND LEADERSHIP AGENCY,04/05/2016,Grants,Operations Directorate,ESSEX COUNTY COUNCIL,4000236764,47520.00,Grants to educational establishments or not for profit organisations including other businesses,,
Department for Education,NATIONAL COLLEGE FOR TEACHING AND LEADERSHIP AGENCY,04/05/2016,Grants,Operations Directorate,CHILTERN TRAINING GROUP,4000236766,35910.00,Grants to educational establishments or not for profit organisations including other businesses,,
Department for Education,NATIONAL COLLEGE FOR TEACHING AND LEADERSHIP AGENCY,04/05/2016,Grants,Operations Directorate,CARMEL TEACHER TRAINING PARTNERSHIP,4000236767,73530.00,Grants to educational establishments or not for profit organisations including other businesses,,
Department for Education,NATIONAL COLLEGE FOR TEACHING AND LEADERSHIP AGENCY,04/05/2016,Grants,Delivery Directorate,THE UNIVERSITY OF READING,4000236768,30533.31,Grants to educational establishments or not for profit organisations including other businesses,,
Department for Education,NATIONAL COLLEGE FOR TEACHING AND LEADERSHIP AGENCY,04/05/2016,Grants,Operations Directorate,THE UNIVERSITY OF READING,4000236768,205830.00,Grants to educational establishments or not for profit organisations including other businesses,,
Department for Education,NATIONAL COLLEGE FOR TEACHING AND LEADERSHIP AGENCY,04/05/2016,Grants,Operations Directorate,THE UNIVERSITY OF READING,4000236768,46835.00,Grants to educational establishments or not for profit organisations including other businesses,,
Department for Education,NATIONAL COLLEGE FOR TEACHING AND LEADERSHIP AGENCY,04/05/2016,Grants,Delivery Directorate,THE UNIVERSITY OF READING,4000236768,25110.00,Grants to educational establishments or not for profit organisations including other businesses,,
Department for Education,DEPARTMENT FOR EDUCATION,04/05/2016,Grants,Academies Delivery Group,PENDLE EDUCATION TRUST,4000236783,45000.00,Grants to educational establishments or not for profit organisations including other businesses,,
Department for Education,DEPARTMENT FOR EDUCATION,04/05/2016,Grants,Academies Delivery Group,MULBERRY SCHOOL FOR GIRLS,4000236792,25000.00,Grants to educational establishments or not for profit organisations including other businesses,,
Department for Education,NATIONAL COLLEGE FOR TEACHING AND LEADERSHIP AGENCY,04/05/2016,Grants,Delivery Directorate,UNIVERSITY OF SOUTHAMPTON,4000236793,26039.93,Grants to educational establishments or not for profit organisations including other businesses,,
Department for Education,NATIONAL COLLEGE FOR TEACHING AND LEADERSHIP AGENCY,04/05/2016,Grants,Operations Directorate,UNIVERSITY OF SOUTHAMPTON,4000236793,195300.00,Grants to educational establishments or not for profit organisations including other businesses,,
Department for Education,NATIONAL COLLEGE FOR TEACHING AND LEADERSHIP AGENCY,04/05/2016,Grants,Operations Directorate,UNIVERSITY OF SOUTHAMPTON,4000236793,12230.00,Grants to educational establishments or not for profit organisations including other businesses,,
Department for Education,NATIONAL COLLEGE FOR TEACHING AND LEADERSHIP AGENCY,04/05/2016,Grants,Operations Directorate,UNIVERSITY OF SOUTHAMPTON,4000236793,5660.60,Grants to educational establishments or not for profit organisations including other businesses,,
Department for Education,NATIONAL COLLEGE FOR TEACHING AND LEADERSHIP AGENCY,04/05/2016,Grants,Delivery Directorate,CORNWALL SCITT,4000236795,600.00,Grants to educational establishments or not for profit organisations including other businesses,,
Department for Education,NATIONAL COLLEGE FOR TEACHING AND LEADERSHIP AGENCY,04/05/2016,Grants,Operations Directorate,CORNWALL SCITT,4000236795,57330.00,Grants to educational establishments or not for profit organisations including other businesses,,
Department for Education,NATIONAL COLLEGE FOR TEACHING AND LEADERSHIP AGENCY,04/05/2016,Grants,Operations Directorate,CORNWALL SCITT,4000236795,2810.00,Grants to educational establishments or not for profit organisations including other businesses,,
Department for Education,NATIONAL COLLEGE FOR TEACHING AND LEADERSHIP AGENCY,04/05/2016,Grants,Operations Directorate,UNIVERSITY OF WINCHESTER,4000236796,52200.00,Grants to educational establishments or not for profit organisations including other businesses,,
Department for Education,NATIONAL COLLEGE FOR TEACHING AND LEADERSHIP AGENCY,04/05/2016,Grants,Delivery Directorate,UNIVERSITY OF WINCHESTER,4000236796,25380.00,Grants to educational establishments or not for profit organisations including other businesses,,
Department for Education,NATIONAL COLLEGE FOR TEACHING AND LEADERSHIP AGENCY,04/05/2016,Grants,Operations Directorate,UNIVERSITY OF PLYMOUTH,4000236802,81720.00,Grants to educational establishments or not for profit organisations including other businesses,,
Department for Education,NATIONAL COLLEGE FOR TEACHING AND LEADERSHIP AGENCY,04/05/2016,Grants,Delivery Directorate,UNIVERSITY OF PLYMOUTH,4000236802,21870.00,Grants to educational establishments or not for profit organisations including other businesses,,
Department for Education,NATIONAL COLLEGE FOR TEACHING AND LEADERSHIP AGENCY,04/05/2016,Grants,Delivery Directorate,UNIVERSITY OF SUSSEX,4000236803,26640.00,Grants to educational establishments or not for profit organisations including other businesses,,
Department for Education,NATIONAL COLLEGE FOR TEACHING AND LEADERSHIP AGENCY,04/05/2016,Grants,Operations Directorate,UNIVERSITY OF SUSSEX,4000236803,153500.00,Grants to educational establishments or not for profit organisations including other businesses,,
Department for Education,NATIONAL COLLEGE FOR TEACHING AND LEADERSHIP AGENCY,04/05/2016,Grants,Delivery Directorate,UNIVERSITY OF SUSSEX,4000236804,88320.93,Grants to educational establishments or not for profit organisations including other businesses,,
Department for Education,NATIONAL COLLEGE FOR TEACHING AND LEADERSHIP AGENCY,04/05/2016,Grants,Operations Directorate,UNIVERSITY OF SUSSEX,4000236804,264870.00,Grants to educational establishments or not for profit organisations including other businesses,,
Department for Education,NATIONAL COLLEGE FOR TEACHING AND LEADERSHIP AGENCY,04/05/2016,Grants,Delivery Directorate,UNIVERSITY OF SUSSEX,4000236804,15570.00,Grants to educational establishments or not for profit organisations including other businesses,,
Department for Education,DEPARTMENT FOR EDUCATION,04/05/2016,Professional Services Consultancy and Contingent Labour,Information Technology Group,CADENCE PARTNERSHIP LLP,4000236366,49237.44,Costs related to temporary workers,,
Department for Education,DEPARTMENT FOR EDUCATION,04/05/2016,ICT,Information Technology Group,INSIGHT DIRECT UK LTD,4000236461,26190.64,ICT Software,,
Department for Education,DEPARTMENT FOR EDUCATION,04/05/2016,Facilities,Property Asset Management Group,INTERSERVE FACILITIES MANAGEMENT LTD,4000236587,69150.10,"Building maintenance and repair, including repainting, replacing flooring, etc.",,
Department for Education,DEPARTMENT FOR EDUCATION,04/05/2016,Professional Services Other,Strategic Analysis and Research Group,LOUGHBOROUGH UNIVERSITY ENTERPRISE LTD,4000236432,3895.41,Research and evaluation activities,,
Department for Education,DEPARTMENT FOR EDUCATION,04/05/2016,Professional Services Other,"Children's Services, Equalities and Communication Safeguarding Group",BEHAVIOURAL INSIGHTS LTD,4000236778,22228.40,Research and evaluation activities,,
Department for Education,NATIONAL COLLEGE FOR TEACHING AND LEADERSHIP AGENCY,05/05/2016,Professional Services Other,Delivery Directorate,TEACHING LEADERS,4000236898,339024.00,"Fees / expenses of professionals, for example to implement advice or changes",,
Department for Education,DEPARTMENT FOR EDUCATION,05/05/2016,Programme costs,"Assessment, Curriculum and General Qualifications Group",HOPSCOTCH CONSULTING LTD,4000236818,29502.30,Funding to deliver policies (excluding consultancy) paid to third parties via a service delivery contract,,
Department for Education,DEPARTMENT FOR EDUCATION,05/05/2016,Programme costs,Adoption and Children in Care Division,CARERS TRUST,4000236858,130793.40,Funding to deliver policies (excluding consultancy) paid to third parties via a service delivery contract,,
Department for Education,DEPARTMENT FOR EDUCATION,05/05/2016,Programme costs,Children's Services Special Educational Needs Group,NATIONAL CHILDRENS BUREAU,4000236882,1900000.80,Funding to deliver policies (excluding consultancy) paid to third parties via a service delivery contract,,
Department for Education,DEPARTMENT FOR EDUCATION,05/05/2016,Grants,"Children's Services, Equalities and Communication Safeguarding Group",STAFFORDSHIRE COUNCIL,4000236887,84615.00,Grants to local authorities / other establishments within aggregate external funding or aggregate exchequer grant,,
Department for Education,DEPARTMENT FOR EDUCATION,05/05/2016,Miscellaneous Expenditure,Finance and Commercial Group,N/A � Risk Protection Arrangement (RPA) member,005921-000325-LL-01,69439.53,Property claim paid out to an academy trust by Gallagher Bassett on behalf of the Department as part of the Department's Risk Protection Arrangement (RPA).,,
Department for Education,DEPARTMENT FOR EDUCATION,05/05/2016,Miscellaneous Expenditure,Finance and Commercial Group,N/A � Risk Protection Arrangement (RPA) member,005921-000579-RB-01,289835.60,Property claim paid out to an academy trust by Gallagher Bassett on behalf of the Department as part of the Department's Risk Protection Arrangement (RPA).,,
Department for Education,DEPARTMENT FOR EDUCATION,05/05/2016,Miscellaneous Expenditure,Finance and Commercial Group,N/A � Risk Protection Arrangement (RPA) member,005921-000579-RC-01,110000.00,Property claim paid out to an academy trust by Gallagher Bassett on behalf of the Department as part of the Department's Risk Protection Arrangement (RPA).,,
Department for Education,DEPARTMENT FOR EDUCATION,05/05/2016,Miscellaneous Expenditure,Finance and Commercial Group,N/A � Risk Protection Arrangement (RPA) member,005921-000579-TE-01,40000.00,Property claim paid out to an academy trust by Gallagher Bassett on behalf of the Department as part of the Department's Risk Protection Arrangement (RPA).,,
Department for Education,DEPARTMENT FOR EDUCATION,06/05/2016,Grants,Government Equalities Office,DURHAM COUNTY COUNCIL,4000236924,28880.00,Grants to local authorities / other establishments within aggregate external funding or aggregate exchequer grant,,
Department for Education,DEPARTMENT FOR EDUCATION,06/05/2016,Grants,Children's Services Special Educational Needs Group,CONTACT A FAMILY,4000236933,62638.00,Grants to educational establishments or not for profit organisations including other businesses,,
Department for Education,DEPARTMENT FOR EDUCATION,06/05/2016,Grants,Vocational Qualifications Division,BISHOP CHALLONER CATHOLIC COLLEGE,4000236939,35000.00,Grants to educational establishments or not for profit organisations including other businesses.,,
Department for Education,DEPARTMENT FOR EDUCATION,06/05/2016,Grants,Vocational Qualifications Division,BISHOP CHALLONER CATHOLIC COLLEGE,4000236939,35000.00,Duplicate payment made in error for grants to educational establishments or not for profit organisations including other businesses. This amount was fully refunded.,,
Department for Education,DEPARTMENT FOR EDUCATION,06/05/2016,Grants,Children's Services Special Educational Needs Group,THE PLACE2BE,4000236940,149455.00,Grants to educational establishments or not for profit organisations including other businesses,,
Department for Education,DEPARTMENT FOR EDUCATION,06/05/2016,Programme costs,Children's Services Special Educational Needs Group,NCB,4000236947,87495.60,Funding to deliver policies (excluding consultancy) paid to third parties via a service delivery contract,,
Department for Education,DEPARTMENT FOR EDUCATION,06/05/2016,Grants,"Children's Services, Equalities and Communication Safeguarding Group",NORFOLK COUNTY COUNCIL,4000236964,44950.34,Grants to local authorities / other establishments within aggregate external funding or aggregate exchequer grant,,
Department for Education,DEPARTMENT FOR EDUCATION,06/05/2016,Grants,"Children's Services, Equalities and Communication Safeguarding Group",THE FRONTLINE ORGANISATION,4000236966,260796.06,Grants to educational establishments or not for profit organisations including other businesses,,
Department for Education,DEPARTMENT FOR EDUCATION,06/05/2016,Grants,"Children's Services, Equalities and Communication Safeguarding Group",THE FRONTLINE ORGANISATION,4000236966,612755.84,Grants to educational establishments or not for profit organisations including other businesses,,
Department for Education,DEPARTMENT FOR EDUCATION,06/05/2016,Grants,Early Years Group,FAMILY ACTION,4000236971,111529.22,Grants to educational establishments or not for profit organisations including other businesses,,
Department for Education,DEPARTMENT FOR EDUCATION,06/05/2016,Grants,Adoption and Children in Care Division,CONSORTIUM OF VOLUNTARY ADOPTION AGENCIES UK LTD,4000236973,60000.00,Grants to educational establishments or not for profit organisations including other businesses,,
Department for Education,DEPARTMENT FOR EDUCATION,06/05/2016,Grants,Children's Services Special Educational Needs Group,YMCA,4000236974,110785.00,Grants to educational establishments or not for profit organisations including other businesses,,
Department for Education,DEPARTMENT FOR EDUCATION,06/05/2016,Programme costs,Post 16 and Disadvantage Group,MAGIC BREAKFAST,4000236981,31175.78,Funding to deliver policies (excluding consultancy) paid to third parties via a service delivery contract,,
Department for Education,DEPARTMENT FOR EDUCATION,06/05/2016,Grants,Vocational Qualifications Division,STOCKTON RIVERSIDE COLLEGE,4000236985,45032.25,Grants to educational establishments or not for profit organisations including other businesses,,
Department for Education,DEPARTMENT FOR EDUCATION,06/05/2016,Programme costs,Systems and Accountability Group,RM EDUCATION PLC,4000236991,39969.17,Funding to deliver policies (excluding consultancy) paid to third parties via a service delivery contract,,
Department for Education,DEPARTMENT FOR EDUCATION,06/05/2016,Grants,Children's Services Special Educational Needs Group,YOUTH ACCESS,4000237000,130989.40,Grants to educational establishments or not for profit organisations including other businesses,,
Department for Education,DEPARTMENT FOR EDUCATION,06/05/2016,Programme costs,Systems and Accountability Group,RESEARCH MACHINES PLC,4000237006,499724.40,Funding to deliver policies (excluding consultancy) paid to third parties via a service delivery contract,,
Department for Education,NATIONAL COLLEGE FOR TEACHING AND LEADERSHIP AGENCY,06/05/2016,Programme costs,Operations Directorate,HESA,4000237007,26190.00,Funding to deliver policies (excluding consultancy) paid to third parties via a service delivery contract,,
Department for Education,DEPARTMENT FOR EDUCATION,06/05/2016,Grants,Children's Services Special Educational Needs Group,TREEHOUSE SCHOOL,4000237009,94798.09,Grants to educational establishments or not for profit organisations including other businesses,,
Department for Education,DEPARTMENT FOR EDUCATION,06/05/2016,Programme costs,Adoption and Children in Care Division,DELOITTE,4000237010,56579.63,Funding to deliver policies (excluding consultancy) paid to third parties via a service delivery contract,,
Department for Education,DEPARTMENT FOR EDUCATION,06/05/2016,Grants,"Assessment, Curriculum and General Qualifications Group",STEMNET,4000237011,30467.32,Grants to educational establishments or not for profit organisations including other businesses,,
Department for Education,DEPARTMENT FOR EDUCATION,06/05/2016,Grants,Children's Services Special Educational Needs Group,YOUNG MINDS,4000237012,78948.75,Grants to educational establishments or not for profit organisations including other businesses,,
Department for Education,DEPARTMENT FOR EDUCATION,06/05/2016,Grants,Early Years Group,INSTITUTE OF WELLBEING LTD,4000237013,39679.35,Grants to educational establishments or not for profit organisations including other businesses,,
Department for Education,DEPARTMENT FOR EDUCATION,06/05/2016,Grants,Children's Services Special Educational Needs Group,NASEN,4000237021,160358.29,Grants to educational establishments or not for profit organisations including other businesses,,
Department for Education,DEPARTMENT FOR EDUCATION,06/05/2016,Office Solutions,Change Team,IRON MOUNTAIN (UK) LTD,4000237023,25364.00,Document Storage,,
Department for Education,DEPARTMENT FOR EDUCATION,06/05/2016,Professional Services Consultancy and Contingent Labour,Information Technology Group,RUSSAM GMS LTD,4000236987,17136.00,Costs related to temporary workers,,
Department for Education,DEPARTMENT FOR EDUCATION,06/05/2016,ICT,Information Technology Group,LIBERATA UK LTD,4000236928,40319.76,ICT Services,,
Department for Education,DEPARTMENT FOR EDUCATION,06/05/2016,Professional Services Consultancy and Contingent Labour,Information Technology Group,RUSSAM GMS LTD,4000236987,11118.00,Costs related to temporary workers,,
Department for Education,DEPARTMENT FOR EDUCATION,06/05/2016,Professional Services Consultancy and Contingent Labour,Information Technology Group,RUSSAM GMS LTD,4000236987,51247.74,Costs related to temporary workers,,
Department for Education,DEPARTMENT FOR EDUCATION,06/05/2016,ICT,Information Technology Group,VODAFONE,4000236989,101793.44,Telecoms facilities and services - telecom rentals,,
Department for Education,DEPARTMENT FOR EDUCATION,09/05/2016,Professional Services Consultancy and Contingent Labour,Information Technology Group,ALPINE CONSORTIUM,4000237058,13299.80,Costs related to temporary workers,,
Department for Education,DEPARTMENT FOR EDUCATION,09/05/2016,Professional Services Consultancy and Contingent Labour,Information Technology Group,ALPINE CONSORTIUM,4000237058,12960.00,Costs related to temporary workers,,
Department for Education,DEPARTMENT FOR EDUCATION,09/05/2016,Programme costs,"Children's Services, Equalities and Communication Safeguarding Group",ACHIEVING FOR CHILDREN,4000237050,28815.45,Funding to deliver policies (excluding consultancy) paid to third parties via a service delivery contract,,
Department for Education,NATIONAL COLLEGE FOR TEACHING AND LEADERSHIP AGENCY,09/05/2016,Programme costs,Operations Directorate,TEXUNA TECHNOLOGIES,4000237077,27453.52,Funding to deliver policies (excluding consultancy) paid to third parties via a service delivery contract,,
Department for Education,DEPARTMENT FOR EDUCATION,09/05/2016,Personnel Related,"Children's Services, Equalities and Communication Directorate Support",HM TREASURY,4000237090,5145.73,Staff subscriptions including publications and organisation subscription charges,,
Department for Education,DEPARTMENT FOR EDUCATION,09/05/2016,Personnel Related,Strategic Analysis and Research Group,HM TREASURY,4000237090,10332.61,Staff subscriptions including publications and organisation subscription charges,,
Department for Education,DEPARTMENT FOR EDUCATION,09/05/2016,Personnel Related,"Strategy, Performance and Implementation Group",HM TREASURY,4000237090,8798.20,Staff subscriptions including publications and organisation subscription charges,,
Department for Education,DEPARTMENT FOR EDUCATION,09/05/2016,Personnel Related,Systems and Accountability Group,HM TREASURY,4000237090,25076.70,Staff subscriptions including publications and organisation subscription charges,,
Department for Education,DEPARTMENT FOR EDUCATION,09/05/2016,Personnel Related,Education Funding Group,HM TREASURY,4000237090,18112.31,Staff subscriptions including publications and organisation subscription charges,,
Department for Education,NATIONAL COLLEGE FOR TEACHING AND LEADERSHIP AGENCY,09/05/2016,Personnel Related,Delivery Directorate,HM TREASURY,4000237090,805.00,Staff subscriptions including publications and organisation subscription charges,,
Department for Education,DEPARTMENT FOR EDUCATION,09/05/2016,Programme costs,"Assessment, Curriculum and General Qualifications Group",TRIBAL EDUCATION LIMITED,4000237092,154254.00,Funding to deliver policies (excluding consultancy) paid to third parties via a service delivery contract,,
Department for Education,DEPARTMENT FOR EDUCATION,09/05/2016,Professional Services Consultancy and Contingent Labour,Information Technology Group,METHODS PROFESSIONAL SERVICES LTD,4000237041,12348.00,Costs related to temporary workers,,
Department for Education,DEPARTMENT FOR EDUCATION,09/05/2016,Professional Services Consultancy and Contingent Labour,Information Technology Group,METHODS PROFESSIONAL SERVICES LTD,4000237041,10560.00,Costs related to temporary workers,,
Department for Education,DEPARTMENT FOR EDUCATION,09/05/2016,ICT,Information Technology Group,LOCKHEED MARTIN,4000237047,31195.51,ICT Services,,
Department for Education,DEPARTMENT FOR EDUCATION,09/05/2016,Facilities,Property Asset Management Group,METHODS PROFESSIONAL SERVICES LTD,4000237041,9432.00,Programme management for construction work,,
Department for Education,DEPARTMENT FOR EDUCATION,10/05/2016,Professional Services Consultancy and Contingent Labour,Legal Advisers Office,GOVERNMENT LEGAL DEPARTMENT,4000237110,949420.00,Legal advisory services from the Government Legal Department including the provision of external specialist advice and opinion,,
Department for Education,DEPARTMENT FOR EDUCATION,10/05/2016,Learning and Development,Children in Care Division,HOME OFFICE,4000237115,23000.00,Staff training and development including materials and courses,,
Department for Education,DEPARTMENT FOR EDUCATION,10/05/2016,Grants,Adoption and Children in Care Division,ADOPTION UK,4000237141,26000.00,Grants to educational establishments or not for profit organisations including other businesses,,
Department for Education,DEPARTMENT FOR EDUCATION,10/05/2016,Grants,Adoption and Children in Care Division,THE SHARE FOUNDATION 3RD PARTY TRUST,4000237142,73800.00,Grants to educational establishments or not for profit organisations including other businesses,,
Department for Education,DEPARTMENT FOR EDUCATION,10/05/2016,Grants,Children's Services Special Educational Needs Group,METRO CHARITY,4000237143,57886.22,Grants to educational establishments or not for profit organisations including other businesses,,
Department for Education,DEPARTMENT FOR EDUCATION,10/05/2016,Grants,Children's Services Special Educational Needs Group,BRITISH REFUGEE COUNCIL,4000237144,39189.71,Grants to educational establishments or not for profit organisations including other businesses,,
Department for Education,DEPARTMENT FOR EDUCATION,10/05/2016,Grants,Children's Services Special Educational Needs Group,GET CONNECTED HELPLINE,4000237145,30544.00,Grants to educational establishments or not for profit organisations including other businesses,,
Department for Education,DEPARTMENT FOR EDUCATION,10/05/2016,Grants,"Children's Services, Equalities and Communication Safeguarding Group",ROTHERHAM MBC,4000237148,250000.00,Grants to educational establishments or not for profit organisations including other businesses,,
Department for Education,DEPARTMENT FOR EDUCATION,10/05/2016,Grants,Children's Services Special Educational Needs Group,COUNCIL FOR DISABLED CHILDREN,4000237152,100298.23,Grants to educational establishments or not for profit organisations including other businesses,,
Department for Education,DEPARTMENT FOR EDUCATION,10/05/2016,Grants,Children's Services Strategy Group,THE CHILDRENS PARTNERSHIP,4000237158,149420.22,Grants to educational establishments or not for profit organisations including other businesses,,
Department for Education,DEPARTMENT FOR EDUCATION,10/05/2016,Grants,Early Years Group,NATIONAL CHILDMINDING ASSOC,4000237165,124228.96,Grants to educational establishments or not for profit organisations including other businesses,,
Department for Education,DEPARTMENT FOR EDUCATION,10/05/2016,Grants,Early Years Group,I CAN CHARITY,4000237166,50132.97,Grants to educational establishments or not for profit organisations including other businesses,,
Department for Education,DEPARTMENT FOR EDUCATION,10/05/2016,Professional Services Other,Children's Services Special Educational Needs Group,THE ANNA FREUD CENTRE,4000237170,102800.00,Costs for the Mental Health Single Point of Contact pilot run dually with NHS England.,,
Department for Education,DEPARTMENT FOR EDUCATION,10/05/2016,Programme costs,"Children's Services, Equalities and Communication Safeguarding Group",PSHE ASSOCIATION,4000237172,29675.00,Funding to deliver policies (excluding consultancy) paid to third parties via a service delivery contract,,
Department for Education,DEPARTMENT FOR EDUCATION,11/05/2016,Grants,Government Equalities Office,EQUALITY & HUMAN RIGHTS COMMISSION,2100023,1316583.00,Current grants paid to organisations including arms length bodies and educational establishments,,
Department for Education,DEPARTMENT FOR EDUCATION,11/05/2016,Grants,Government Equalities Office,DEPARTMENT FOR CULTURE MEDIA & SPORT,2100024,301500.00,Current grant funding to other government departments for DfE's contribution to jointly funded programmes ,,
Department for Education,DEPARTMENT FOR EDUCATION,11/05/2016,Miscellaneous Expenditure,Finance and Commercial Group,HM TREASURY,2100025,42190.59,Annual payment to the Consolidated Fund for Department for Education additional receipts in previous financial year.,,
Department for Education,DEPARTMENT FOR EDUCATION,11/05/2016,Grants,Adoption and Children in Care Division,SHEFFIELD CITY COUNCIL,4000237180,135000.00,Grants to local authorities / other establishments within aggregate external funding or aggregate exchequer grant,,
Department for Education,DEPARTMENT FOR EDUCATION,11/05/2016,Grants,System Reform Group,SHEFFIELD CITY COUNCIL,4000237180,4608.00,Grants to local authorities / other establishments within aggregate external funding or aggregate exchequer grant,,
Department for Education,DEPARTMENT FOR EDUCATION,11/05/2016,Grants,Adoption and Children in Care Division,SUNDERLAND CITY COUNCIL,4000237181,81000.00,Grants to local authorities / other establishments within aggregate external funding or aggregate exchequer grant,,
Department for Education,DEPARTMENT FOR EDUCATION,11/05/2016,Grants,System Reform Group,SUNDERLAND CITY COUNCIL,4000237181,4183.00,Grants to local authorities / other establishments within aggregate external funding or aggregate exchequer grant,,
Department for Education,DEPARTMENT FOR EDUCATION,11/05/2016,Grants,Adoption and Children in Care Division,DONCASTER MBC,4000237182,210000.00,Grants to local authorities / other establishments within aggregate external funding or aggregate exchequer grant,,
Department for Education,DEPARTMENT FOR EDUCATION,11/05/2016,Grants,System Reform Group,DONCASTER MBC,4000237182,10850.00,Grants to local authorities / other establishments within aggregate external funding or aggregate exchequer grant,,
Department for Education,DEPARTMENT FOR EDUCATION,11/05/2016,Grants,System Reform Group,LEICESTERSHIRE COUNTY COUNCIL,4000237184,29592.00,Grants to local authorities / other establishments within aggregate external funding or aggregate exchequer grant,,
Department for Education,DEPARTMENT FOR EDUCATION,11/05/2016,Grants,Adoption and Children in Care Division,PORTSMOUTH CITY COUNCIL,4000237186,81000.00,Grants to local authorities / other establishments within aggregate external funding or aggregate exchequer grant,,
Department for Education,DEPARTMENT FOR EDUCATION,11/05/2016,Grants,System Reform Group,PORTSMOUTH CITY COUNCIL,4000237186,1125.00,Grants to local authorities / other establishments within aggregate external funding or aggregate exchequer grant,,
Department for Education,DEPARTMENT FOR EDUCATION,11/05/2016,Grants,System Reform Group,HAMPSHIRE COUNTY COUNCIL,4000237187,33458.00,Grants to local authorities / other establishments within aggregate external funding or aggregate exchequer grant,,
Department for Education,DEPARTMENT FOR EDUCATION,11/05/2016,Grants,System Reform Group,EAST SUSSEX COUNTY COUNCIL,4000237188,40608.00,Grants to local authorities / other establishments within aggregate external funding or aggregate exchequer grant,,
Department for Education,DEPARTMENT FOR EDUCATION,11/05/2016,Grants,Children's Services Special Educational Needs Group,TOGETHER FOR SHORT LIVES,4000237192,53688.96,Grants to educational establishments or not for profit organisations including other businesses,,
Department for Education,DEPARTMENT FOR EDUCATION,11/05/2016,Grants,Adoption and Children in Care Division,WALSALL MBC,4000237196,130000.00,Grants to local authorities / other establishments within aggregate external funding or aggregate exchequer grant,,
Department for Education,DEPARTMENT FOR EDUCATION,11/05/2016,Grants,System Reform Group,WALSALL MBC,4000237196,1858.00,Grants to local authorities / other establishments within aggregate external funding or aggregate exchequer grant,,
Department for Education,DEPARTMENT FOR EDUCATION,11/05/2016,Grants,Adoption and Children in Care Division,BRIGHTON & HOVE CITY COUNCIL,4000237199,97000.00,Grants to local authorities / other establishments within aggregate external funding or aggregate exchequer grant,,
Department for Education,DEPARTMENT FOR EDUCATION,11/05/2016,Grants,System Reform Group,BRIGHTON & HOVE CITY COUNCIL,4000237199,4300.00,Grants to local authorities / other establishments within aggregate external funding or aggregate exchequer grant,,
Department for Education,DEPARTMENT FOR EDUCATION,11/05/2016,Grants,System Reform Group,DURHAM COUNTY COUNCIL,4000237201,81800.00,Grants to local authorities / other establishments within aggregate external funding or aggregate exchequer grant,,
Department for Education,DEPARTMENT FOR EDUCATION,11/05/2016,Grants,Adoption and Children in Care Division,POOLE BOROUGH COUNCIL,4000237203,77400.00,Grants to local authorities / other establishments within aggregate external funding or aggregate exchequer grant,,
Department for Education,DEPARTMENT FOR EDUCATION,11/05/2016,Grants,System Reform Group,POOLE BOROUGH COUNCIL,4000237203,933.00,Grants to local authorities / other establishments within aggregate external funding or aggregate exchequer grant,,
Department for Education,DEPARTMENT FOR EDUCATION,11/05/2016,Grants,Adoption and Children in Care Division,CAMBRIDGE EDUCATION,4000237207,1500000.00,Grants to educational establishments or not for profit organisations including other businesses,,
Department for Education,DEPARTMENT FOR EDUCATION,11/05/2016,Grants,Adoption and Children in Care Division,LONDON BOROUGH OF GREENWICH,4000237211,27000.00,Grants to local authorities / other establishments within aggregate external funding or aggregate exchequer grant,,
Department for Education,DEPARTMENT FOR EDUCATION,11/05/2016,Grants,System Reform Group,LONDON BOROUGH OF GREENWICH,4000237211,233.00,Grants to local authorities / other establishments within aggregate external funding or aggregate exchequer grant,,
Department for Education,DEPARTMENT FOR EDUCATION,11/05/2016,Grants,Adoption and Children in Care Division,LONDON BOROUGH OF HAMMERSMITH & FULHAM COUNCIL,4000237212,54000.00,Grants to local authorities / other establishments within aggregate external funding or aggregate exchequer grant,,
Department for Education,DEPARTMENT FOR EDUCATION,11/05/2016,Grants,System Reform Group,LONDON BOROUGH OF HAMMERSMITH & FULHAM COUNCIL,4000237212,242.00,Grants to local authorities / other establishments within aggregate external funding or aggregate exchequer grant,,
Department for Education,DEPARTMENT FOR EDUCATION,11/05/2016,Grants,Adoption and Children in Care Division,DORSET COUNTY COUNCIL,4000237213,43000.00,Grants to local authorities / other establishments within aggregate external funding or aggregate exchequer grant,,
Department for Education,DEPARTMENT FOR EDUCATION,11/05/2016,Grants,System Reform Group,DORSET COUNTY COUNCIL,4000237213,31783.00,Grants to local authorities / other establishments within aggregate external funding or aggregate exchequer grant,,
Department for Education,DEPARTMENT FOR EDUCATION,11/05/2016,Grants,Adoption and Children in Care Division,DERBY CITY COUNCIL,4000237214,253000.00,Grants to local authorities / other establishments within aggregate external funding or aggregate exchequer grant,,
Department for Education,DEPARTMENT FOR EDUCATION,11/05/2016,Grants,System Reform Group,DERBY CITY COUNCIL,4000237214,6900.00,Grants to local authorities / other establishments within aggregate external funding or aggregate exchequer grant,,
Department for Education,DEPARTMENT FOR EDUCATION,11/05/2016,Grants,Adoption and Children in Care Division,DERBYSHIRE COUNTY COUNCIL,4000237215,81000.00,Grants to local authorities / other establishments within aggregate external funding or aggregate exchequer grant,,
Department for Education,DEPARTMENT FOR EDUCATION,11/05/2016,Grants,System Reform Group,DERBYSHIRE COUNTY COUNCIL,4000237215,66250.00,Grants to local authorities / other establishments within aggregate external funding or aggregate exchequer grant,,
Department for Education,DEPARTMENT FOR EDUCATION,11/05/2016,Grants,Adoption and Children in Care Division,THE ROYAL BOROUGH OF KENSINGTON & CHELSEA COUNCIL,4000237224,27000.00,Grants to local authorities / other establishments within aggregate external funding or aggregate exchequer grant,,
Department for Education,DEPARTMENT FOR EDUCATION,11/05/2016,Grants,System Reform Group,THE ROYAL BOROUGH OF KENSINGTON & CHELSEA COUNCIL,4000237224,25.00,Grants to local authorities / other establishments within aggregate external funding or aggregate exchequer grant,,
Department for Education,DEPARTMENT FOR EDUCATION,11/05/2016,Grants,Adoption and Children in Care Division,WARWICKSHIRE COUNTY COUNCIL,4000237226,43000.00,Grants to local authorities / other establishments within aggregate external funding or aggregate exchequer grant,,
Department for Education,DEPARTMENT FOR EDUCATION,11/05/2016,Grants,System Reform Group,WARWICKSHIRE COUNTY COUNCIL,4000237226,14375.00,Grants to local authorities / other establishments within aggregate external funding or aggregate exchequer grant,,
Department for Education,DEPARTMENT FOR EDUCATION,11/05/2016,Grants,System Reform Group,NORTH YORKSHIRE COUNTY COUNCIL,4000237230,26233.00,Grants to local authorities / other establishments within aggregate external funding or aggregate exchequer grant,,
Department for Education,DEPARTMENT FOR EDUCATION,11/05/2016,Grants,Adoption and Children in Care Division,SURREY COUNTY COUNCIL,4000237237,87000.00,Grants to local authorities / other establishments within aggregate external funding or aggregate exchequer grant,,
Department for Education,DEPARTMENT FOR EDUCATION,11/05/2016,Grants,System Reform Group,SURREY COUNTY COUNCIL,4000237237,16392.00,Grants to local authorities / other establishments within aggregate external funding or aggregate exchequer grant,,
Department for Education,DEPARTMENT FOR EDUCATION,11/05/2016,Grants,Government Equalities Office,NATIONAL CHILDRENS BUREAU,4000237241,47580.00,Grants to educational establishments or not for profit organisations including other businesses,,
Department for Education,DEPARTMENT FOR EDUCATION,11/05/2016,Grants,Adoption and Children in Care Division,NATIONAL CHILDRENS BUREAU,4000237241,37454.14,Grants to educational establishments or not for profit organisations including other businesses,,
Department for Education,DEPARTMENT FOR EDUCATION,11/05/2016,Grants,Adoption and Children in Care Division,NORTH EAST LINCOLNSHIRE COUNCIL,4000237242,27000.00,Grants to local authorities / other establishments within aggregate external funding or aggregate exchequer grant,,
Department for Education,DEPARTMENT FOR EDUCATION,11/05/2016,Grants,System Reform Group,NORTH EAST LINCOLNSHIRE COUNCIL,4000237242,1008.00,Grants to local authorities / other establishments within aggregate external funding or aggregate exchequer grant,,
Department for Education,DEPARTMENT FOR EDUCATION,11/05/2016,Grants,System Reform Group,NORFOLK COUNTY COUNCIL,4000237253,58008.00,Grants to local authorities / other establishments within aggregate external funding or aggregate exchequer grant,,
Department for Education,DEPARTMENT FOR EDUCATION,11/05/2016,Grants,System Reform Group,SOMERSET COUNTY COUNCIL,4000237255,29842.00,Grants to local authorities / other establishments within aggregate external funding or aggregate exchequer grant,,
Department for Education,DEPARTMENT FOR EDUCATION,11/05/2016,Grants,Adoption and Children in Care Division,REDCAR & CLEVELAND BOROUGH COUNCIL,4000237256,43000.00,Grants to local authorities / other establishments within aggregate external funding or aggregate exchequer grant,,
Department for Education,DEPARTMENT FOR EDUCATION,11/05/2016,Grants,System Reform Group,REDCAR & CLEVELAND BOROUGH COUNCIL,4000237256,11683.00,Grants to local authorities / other establishments within aggregate external funding or aggregate exchequer grant,,
Department for Education,DEPARTMENT FOR EDUCATION,11/05/2016,Grants,Adoption and Children in Care Division,SANDWELL MBC,4000237265,70000.00,Grants to local authorities / other establishments within aggregate external funding or aggregate exchequer grant,,
Department for Education,DEPARTMENT FOR EDUCATION,11/05/2016,Grants,System Reform Group,SANDWELL MBC,4000237265,2092.00,Grants to local authorities / other establishments within aggregate external funding or aggregate exchequer grant,,
Department for Education,DEPARTMENT FOR EDUCATION,11/05/2016,Grants,Adoption and Children in Care Division,OXFORDSHIRE COUNTY COUNCIL,4000237266,27000.00,Grants to local authorities / other establishments within aggregate external funding or aggregate exchequer grant,,
Department for Education,DEPARTMENT FOR EDUCATION,11/05/2016,Grants,System Reform Group,OXFORDSHIRE COUNTY COUNCIL,4000237266,24883.00,Grants to local authorities / other establishments within aggregate external funding or aggregate exchequer grant,,
Department for Education,DEPARTMENT FOR EDUCATION,11/05/2016,Grants,System Reform Group,NORTHAMPTONSHIRE COUNTY COUNCIL,4000237268,29933.00,Grants to local authorities / other establishments within aggregate external funding or aggregate exchequer grant,,
Department for Education,DEPARTMENT FOR EDUCATION,11/05/2016,Grants,System Reform Group,LINCOLNSHIRE COUNTY COUNCIL,4000237269,55150.00,Grants to local authorities / other establishments within aggregate external funding or aggregate exchequer grant,,
Department for Education,DEPARTMENT FOR EDUCATION,11/05/2016,Grants,Adoption and Children in Care Division,BRISTOL CITY COUNCIL,4000237271,54000.00,Grants to local authorities / other establishments within aggregate external funding or aggregate exchequer grant,,
Department for Education,DEPARTMENT FOR EDUCATION,11/05/2016,Grants,System Reform Group,BRISTOL CITY COUNCIL,4000237271,3142.00,Grants to local authorities / other establishments within aggregate external funding or aggregate exchequer grant,,
Department for Education,DEPARTMENT FOR EDUCATION,11/05/2016,Grants,Adoption and Children in Care Division,BATH & NORTH EAST SOMERSET COUNCIL,4000237272,27000.00,Grants to local authorities / other establishments within aggregate external funding or aggregate exchequer grant,,
Department for Education,DEPARTMENT FOR EDUCATION,11/05/2016,Grants,System Reform Group,BATH & NORTH EAST SOMERSET COUNCIL,4000237272,8325.00,Grants to local authorities / other establishments within aggregate external funding or aggregate exchequer grant,,
Department for Education,DEPARTMENT FOR EDUCATION,11/05/2016,Grants,Adoption and Children in Care Division,CENTRAL BEDFORDSHIRE COUNCIL,4000237274,27000.00,Grants to local authorities / other establishments within aggregate external funding or aggregate exchequer grant,,
Department for Education,DEPARTMENT FOR EDUCATION,11/05/2016,Grants,System Reform Group,CENTRAL BEDFORDSHIRE COUNCIL,4000237274,13958.00,Grants to local authorities / other establishments within aggregate external funding or aggregate exchequer grant,,
Department for Education,DEPARTMENT FOR EDUCATION,11/05/2016,Grants,Adoption and Children in Care Division,DUDLEY MBC,4000237275,54000.00,Grants to local authorities / other establishments within aggregate external funding or aggregate exchequer grant,,
Department for Education,DEPARTMENT FOR EDUCATION,11/05/2016,Grants,System Reform Group,DUDLEY MBC,4000237275,850.00,Grants to local authorities / other establishments within aggregate external funding or aggregate exchequer grant,,
Department for Education,DEPARTMENT FOR EDUCATION,11/05/2016,Grants,System Reform Group,GLOUCESTERSHIRE COUNTY COUNCIL,4000237279,35142.00,Grants to local authorities / other establishments within aggregate external funding or aggregate exchequer grant,,
Department for Education,DEPARTMENT FOR EDUCATION,11/05/2016,Grants,System Reform Group,CORNWALL COUNCIL,4000237281,42792.00,Grants to local authorities / other establishments within aggregate external funding or aggregate exchequer grant,,
Department for Education,DEPARTMENT FOR EDUCATION,11/05/2016,Grants,Adoption and Children in Care Division,NOTTINGHAMSHIRE COUNTY COUNCIL,4000237294,346000.00,Grants to local authorities / other establishments within aggregate external funding or aggregate exchequer grant,,
Department for Education,DEPARTMENT FOR EDUCATION,11/05/2016,Grants,System Reform Group,NOTTINGHAMSHIRE COUNTY COUNCIL,4000237294,32875.00,Grants to local authorities / other establishments within aggregate external funding or aggregate exchequer grant,,
Department for Education,DEPARTMENT FOR EDUCATION,11/05/2016,Grants,System Reform Group,LANCASHIRE COUNTY COUNCIL,4000237303,50442.00,Grants to local authorities / other establishments within aggregate external funding or aggregate exchequer grant,,
Department for Education,DEPARTMENT FOR EDUCATION,11/05/2016,Grants,System Reform Group,MEDWAY COUNCIL,4000237304,32238.00,Grants to local authorities / other establishments within aggregate external funding or aggregate exchequer grant,,
Department for Education,DEPARTMENT FOR EDUCATION,11/05/2016,Grants,Adoption and Children in Care Division,KENT COUNTY COUNCIL,4000237305,27000.00,Grants to local authorities / other establishments within aggregate external funding or aggregate exchequer grant,,
Department for Education,DEPARTMENT FOR EDUCATION,11/05/2016,Grants,System Reform Group,KENT COUNTY COUNCIL,4000237305,104167.00,Grants to local authorities / other establishments within aggregate external funding or aggregate exchequer grant,,
Department for Education,DEPARTMENT FOR EDUCATION,11/05/2016,Grants,System Reform Group,WORCESTERSHIRE COUNTY COUNCIL,4000237312,27075.00,Grants to local authorities / other establishments within aggregate external funding or aggregate exchequer grant,,
Department for Education,DEPARTMENT FOR EDUCATION,11/05/2016,Grants,Adoption and Children in Care Division,HEREFORDSHIRE COUNCIL,4000237313,43000.00,Grants to local authorities / other establishments within aggregate external funding or aggregate exchequer grant,,
Department for Education,DEPARTMENT FOR EDUCATION,11/05/2016,Grants,System Reform Group,HEREFORDSHIRE COUNCIL,4000237313,8742.00,Grants to local authorities / other establishments within aggregate external funding or aggregate exchequer grant,,
Department for Education,DEPARTMENT FOR EDUCATION,11/05/2016,Grants,System Reform Group,ESSEX COUNTY COUNCIL,4000237316,50025.00,Grants to local authorities / other establishments within aggregate external funding or aggregate exchequer grant,,
Department for Education,DEPARTMENT FOR EDUCATION,11/05/2016,Programme costs,Children's Services Special Educational Needs Group,MOTT MACDONALD LTD,4000237318,205406.40,Funding to deliver policies (excluding consultancy) paid to third parties via a service delivery contract,,
Department for Education,DEPARTMENT FOR EDUCATION,11/05/2016,Programme costs,Adoption and Children in Care Division,MOTT MACDONALD LTD,4000237318,0.00,Funding to deliver policies (excluding consultancy) paid to third parties via a service delivery contract,,
Department for Education,DEPARTMENT FOR EDUCATION,11/05/2016,Professional Services Consultancy and Contingent Labour,Teachers and Teaching Group,OH ASSIST LTD,4000237323,26362.50,"Fees / expenses of professionals such as auditors, accountants, lawyers, etc. engaged to provide advice or opinion on how to affect something",,
Department for Education,DEPARTMENT FOR EDUCATION,11/05/2016,Grants,Adoption and Children in Care Division,WEST SUSSEX COUNTY COUNCIL,4000237324,103000.00,Grants to local authorities / other establishments within aggregate external funding or aggregate exchequer grant,,
Department for Education,DEPARTMENT FOR EDUCATION,11/05/2016,Grants,System Reform Group,WEST SUSSEX COUNTY COUNCIL,4000237324,32367.00,Grants to local authorities / other establishments within aggregate external funding or aggregate exchequer grant,,
Department for Education,DEPARTMENT FOR EDUCATION,11/05/2016,Programme costs,Adoption and Children in Care Division,CORAM,4000237325,33115.12,Funding to deliver policies (excluding consultancy) paid to third parties via a service delivery contract,,
Department for Education,DEPARTMENT FOR EDUCATION,11/05/2016,Grants,System Reform Group,DEVON COUNTY COUNCIL,4000237329,40775.00,Grants to local authorities / other establishments within aggregate external funding or aggregate exchequer grant,,
Department for Education,DEPARTMENT FOR EDUCATION,11/05/2016,Grants,Adoption and Children in Care Division,WOLVERHAMPTON CITY COUNCIL,4000237331,54000.00,Grants to local authorities / other establishments within aggregate external funding or aggregate exchequer grant,,
Department for Education,DEPARTMENT FOR EDUCATION,11/05/2016,Grants,System Reform Group,WOLVERHAMPTON CITY COUNCIL,4000237331,1900.00,Grants to local authorities / other establishments within aggregate external funding or aggregate exchequer grant,,
Department for Education,DEPARTMENT FOR EDUCATION,11/05/2016,Grants,System Reform Group,SUFFOLK COUNTY COUNCIL,4000237347,42375.00,Grants to local authorities / other establishments within aggregate external funding or aggregate exchequer grant,,
Department for Education,DEPARTMENT FOR EDUCATION,11/05/2016,Grants,Adoption and Children in Care Division,HALTON BOROUGH COUNCIL,4000237348,60000.00,Grants to local authorities / other establishments within aggregate external funding or aggregate exchequer grant,,
Department for Education,DEPARTMENT FOR EDUCATION,11/05/2016,Grants,System Reform Group,HALTON BOROUGH COUNCIL,4000237348,1708.00,Grants to local authorities / other establishments within aggregate external funding or aggregate exchequer grant,,
Department for Education,DEPARTMENT FOR EDUCATION,11/05/2016,Grants,System Reform Group,CAMBRIDGESHIRE COUNTY COUNCIL,4000237350,38842.00,Grants to local authorities / other establishments within aggregate external funding or aggregate exchequer grant,,
Department for Education,DEPARTMENT FOR EDUCATION,11/05/2016,Grants,Adoption and Children in Care Division,CONSORTIUM OF VOLUNTARY ADOPTION AGENCIES UK LTD,4000237360,354567.88,Grants to educational establishments or not for profit organisations including other businesses,,
Department for Education,DEPARTMENT FOR EDUCATION,11/05/2016,Grants,Children's Services Special Educational Needs Group,IMAGO,4000237361,42979.11,Grants to educational establishments or not for profit organisations including other businesses,,
Department for Education,DEPARTMENT FOR EDUCATION,11/05/2016,Grants,"Children's Services, Equalities and Communication Safeguarding Group",RESOLUTIONS CONSULTANCY PTY LTD,4000237362,333810.20,Grants to educational establishments or not for profit organisations including other businesses,,
Department for Education,DEPARTMENT FOR EDUCATION,11/05/2016,Grants,Adoption and Children in Care Division,ROTHERHAM MBC,4000237373,27000.00,Grants to local authorities / other establishments within aggregate external funding or aggregate exchequer grant,,
Department for Education,DEPARTMENT FOR EDUCATION,11/05/2016,Grants,System Reform Group,ROTHERHAM MBC,4000237373,4725.00,Grants to local authorities / other establishments within aggregate external funding or aggregate exchequer grant,,
Department for Education,DEPARTMENT FOR EDUCATION,11/05/2016,Grants,Adoption and Children in Care Division,STOKE ON TRENT CITY COUNCIL,4000237384,205000.00,Grants to local authorities / other establishments within aggregate external funding or aggregate exchequer grant,,
Department for Education,DEPARTMENT FOR EDUCATION,11/05/2016,Grants,System Reform Group,STOKE ON TRENT CITY COUNCIL,4000237384,3175.00,Grants to local authorities / other establishments within aggregate external funding or aggregate exchequer grant,,
Department for Education,DEPARTMENT FOR EDUCATION,11/05/2016,Grants,Adoption and Children in Care Division,LONDON BOROUGH OF BARKING & DAGENHAM COUNCIL,4000237395,27000.00,Grants to local authorities / other establishments within aggregate external funding or aggregate exchequer grant,,
Department for Education,DEPARTMENT FOR EDUCATION,11/05/2016,Grants,System Reform Group,LONDON BOROUGH OF BARKING & DAGENHAM COUNCIL,4000237395,1333.00,Grants to local authorities / other establishments within aggregate external funding or aggregate exchequer grant,,
Department for Education,DEPARTMENT FOR EDUCATION,11/05/2016,Professional Services Consultancy and Contingent Labour,Information Technology Group,PRO CEDURE LTD,4000237342,34560.00,Costs related to temporary workers,,
Department for Education,DEPARTMENT FOR EDUCATION,11/05/2016,Energy and Fuels,Property Asset Management Group,EDF ENERGY LTD,4000237322,94721.91,Electricity supply,,
Department for Education,DEPARTMENT FOR EDUCATION,11/05/2016,Professional Services Consultancy and Contingent Labour,Information Technology Group,RUSSAM GMS LTD,4000237176,28448.84,Costs related to temporary workers,,
Department for Education,DEPARTMENT FOR EDUCATION,11/05/2016,Professional Services Other,Strategic Analysis and Research Group,UNIVERSITY OF EAST ANGLIA,4000237357,30088.00,Research and evaluation activities,,
Department for Education,NATIONAL COLLEGE FOR TEACHING AND LEADERSHIP AGENCY,12/05/2016,Professional Services Other,Operations Directorate,INFERNO LTD,4000237405,367.74,"Fees / expenses of professionals, for example to implement advice or changes",,
Department for Education,DEPARTMENT FOR EDUCATION,12/05/2016,Professional Services Consultancy and Contingent Labour,Information Technology Group,FDM GROUP LTD,4000237489,25500.00,Costs related to temporary workers,,
Department for Education,DEPARTMENT FOR EDUCATION,12/05/2016,Professional Services Consultancy and Contingent Labour,Information Technology Group,METHODS CONSULTING LTD,4000237447,14052.00,Costs related to temporary workers,,
Department for Education,DEPARTMENT FOR EDUCATION,12/05/2016,Professional Services Consultancy and Contingent Labour,Information Technology Group,METHODS CONSULTING LTD,4000237447,17440.20,Costs related to temporary workers,,
Department for Education,NATIONAL COLLEGE FOR TEACHING AND LEADERSHIP AGENCY,12/05/2016,Communications,Operations Directorate,INFERNO LTD,4000237405,20638.01,"Publicity, advertising, media advertising campaigns (excluding recruitment adverts)",,
Department for Education,NATIONAL COLLEGE FOR TEACHING AND LEADERSHIP AGENCY,12/05/2016,Communications,Operations Directorate,INFERNO LTD,4000237405,18665.62,"Publicity, advertising, media advertising campaigns (excluding recruitment adverts)",,
Department for Education,DEPARTMENT FOR EDUCATION,12/05/2016,Programme costs,"Children's Services, Equalities and Communication Safeguarding Group",DAISY BOGG CONSULTANCY,4000237408,36829.98,Funding to deliver policies (excluding consultancy) paid to third parties via a service delivery contract,,
Department for Education,DEPARTMENT FOR EDUCATION,12/05/2016,Grants,Academies Delivery Group,ST CHRISTOPHERS COFE MULTI ACADEMY TRUST,4000237409,180000.00,Grants to educational establishments or not for profit organisations including other businesses,,
Department for Education,DEPARTMENT FOR EDUCATION,12/05/2016,Grants,Academies Delivery Group,DISCOVERY SCHOOLS ACADEMIES TRUST,4000237411,50000.00,Grants to educational establishments or not for profit organisations including other businesses,,
Department for Education,DEPARTMENT FOR EDUCATION,12/05/2016,Grants,"Children's Services, Equalities and Communication Safeguarding Group",NSPCC,4000237412,319336.79,Grants to educational establishments or not for profit organisations including other businesses,,
Department for Education,DEPARTMENT FOR EDUCATION,12/05/2016,Grants,Academies Delivery Group,KENT CATHOLIC SCHOOLS PARTNERSHIP,4000237413,40000.00,Capital grants paid to educational establishments,,
Department for Education,DEPARTMENT FOR EDUCATION,12/05/2016,Grants,"Children's Services, Equalities and Communication Safeguarding Group",LONDON BOROUGH OF GREENWICH,4000237418,157970.00,Grants to local authorities / other establishments within aggregate external funding or aggregate exchequer grant,,
Department for Education,DEPARTMENT FOR EDUCATION,12/05/2016,Grants,Academies Delivery Group,RALPH ALLEN SCHOOL,4000237421,70000.00,Grants to educational establishments or not for profit organisations including other businesses,,
Department for Education,DEPARTMENT FOR EDUCATION,12/05/2016,Grants,Academies Delivery Group,RALPH ALLEN SCHOOL,4000237421,75000.00,Grants to educational establishments or not for profit organisations including other businesses,,
Department for Education,DEPARTMENT FOR EDUCATION,12/05/2016,Grants,Academies Delivery Group,HOWARD OF EFFINGHAM SCHOOL,4000237422,60000.00,Grants to educational establishments or not for profit organisations including other businesses,,
Department for Education,DEPARTMENT FOR EDUCATION,12/05/2016,Grants,Free School Group,GREENWICH ACADEMY TRUST,4000237425,25000.00,Grants to educational establishments or not for profit organisations including other businesses,,
Department for Education,DEPARTMENT FOR EDUCATION,12/05/2016,Grants,Children's Services Special Educational Needs Group,KENT COUNTY COUNCIL,4000237428,231640.56,Grants to educational establishments or not for profit organisations including other businesses,,
Department for Education,DEPARTMENT FOR EDUCATION,12/05/2016,Communications,Communications Group,INTELOGY LTD,4000237429,30345.60,Marketing services,,
Department for Education,NATIONAL COLLEGE FOR TEACHING AND LEADERSHIP AGENCY,12/05/2016,Programme costs,Operations Directorate,UCAS,4000237430,65190.00,Funding to deliver policies (excluding consultancy) paid to third parties via a service delivery contract,,
Department for Education,NATIONAL COLLEGE FOR TEACHING AND LEADERSHIP AGENCY,12/05/2016,Programme costs,Delivery Directorate,EMLC,4000237436,42835.96,Funding to external organisations to deliver policies (excluding consultancy),,
Department for Education,DEPARTMENT FOR EDUCATION,12/05/2016,ICT,Information Technology Group,EDUSERV,4000237437,493157.18,ICT Services,,
Department for Education,DEPARTMENT FOR EDUCATION,12/05/2016,Grants,Academies Delivery Group,BRIGHT TRIBE TRUST LTD,4000237438,50000.00,Grants to educational establishments or not for profit organisations including other businesses,,
Department for Education,DEPARTMENT FOR EDUCATION,12/05/2016,Grants,Free School Group,THE LIPA SIXTH FORM COLLEGE,4000237441,25000.00,Grants to educational establishments or not for profit organisations including other businesses,,
Department for Education,DEPARTMENT FOR EDUCATION,12/05/2016,Grants,Academies Delivery Group,BANHAM COMMUNITY PRIMARY SCHOOL,4000237445,25000.00,Grants to educational establishments or not for profit organisations including other businesses,,
Department for Education,DEPARTMENT FOR EDUCATION,12/05/2016,ICT,Information Technology Group,EDUSERV,4000237437,12873.43,ICT Services - hardware maintenance and support,,
Department for Education,DEPARTMENT FOR EDUCATION,12/05/2016,Grants,Academies Delivery Group,QUEEN ELIZABETH LEARNING TRUST,4000237448,50000.00,Grants to educational establishments or not for profit organisations including other businesses,,
Department for Education,DEPARTMENT FOR EDUCATION,12/05/2016,Grants,Academies Delivery Group,HORTON PARK PRIMARY SCHOOL,4000237449,100000.00,Grants to educational establishments or not for profit organisations including other businesses,,
Department for Education,DEPARTMENT FOR EDUCATION,12/05/2016,Grants,Academies Delivery Group,AIM HIGH ACADEMY TRUST,4000237450,70000.00,Grants to educational establishments or not for profit organisations including other businesses,,
Department for Education,DEPARTMENT FOR EDUCATION,12/05/2016,Grants,Academies Delivery Group,COURT LANE INFANT SCHOOL,4000237451,25000.00,Grants to educational establishments or not for profit organisations including other businesses,,
Department for Education,DEPARTMENT FOR EDUCATION,12/05/2016,Grants,Academies Delivery Group,HALFWAY HOUSES PRIMARY SCHOOL,4000237452,25000.00,Grants to educational establishments or not for profit organisations including other businesses,,
Department for Education,DEPARTMENT FOR EDUCATION,12/05/2016,Grants,Academies Delivery Group,FOCUS ACADEMIES TRUST UK LTD,4000237453,25000.00,Grants to educational establishments or not for profit organisations including other businesses,,
Department for Education,DEPARTMENT FOR EDUCATION,12/05/2016,Grants,Academies Delivery Group,CUDDINGTON COMMUNITY PRIMARY SCHOOL,4000237459,25000.00,Grants to educational establishments or not for profit organisations including other businesses,,
Department for Education,DEPARTMENT FOR EDUCATION,12/05/2016,Grants,Academies Delivery Group,STOWUPLAND HIGH SCHOOL,4000237460,25000.00,Grants to educational establishments or not for profit organisations including other businesses,,
Department for Education,DEPARTMENT FOR EDUCATION,12/05/2016,Grants,Academies Delivery Group,THE LEARNING VILLAGE ACADEMY TRUST,4000237461,70000.00,Grants to educational establishments or not for profit organisations including other businesses,,
Department for Education,DEPARTMENT FOR EDUCATION,12/05/2016,Grants,Academies Delivery Group,THORPE ST ANDREW SCHOOL & SIXTH FORM,4000237462,25000.00,Grants to educational establishments or not for profit organisations including other businesses,,
Department for Education,DEPARTMENT FOR EDUCATION,12/05/2016,Grants,Free School Group,NEW COLLEGE SWINDON TRUST,4000237463,60000.00,Grants to educational establishments or not for profit organisations including other businesses,,
Department for Education,DEPARTMENT FOR EDUCATION,12/05/2016,Grants,Academies Delivery Group,ST MARYS COFE PRIMARY SCHOOL,4000237470,60000.00,Grants to educational establishments or not for profit organisations including other businesses,,
Department for Education,DEPARTMENT FOR EDUCATION,12/05/2016,Grants,Academies Delivery Group,JACKFIELD INFANTS SCHOOL,4000237471,25000.00,Grants to educational establishments or not for profit organisations including other businesses,,
Department for Education,DEPARTMENT FOR EDUCATION,12/05/2016,Grants,Academies Delivery Group,THE DEAN TRUST,4000237480,70000.00,Grants to educational establishments or not for profit organisations including other businesses,,
Department for Education,DEPARTMENT FOR EDUCATION,12/05/2016,Grants,Academies Delivery Group,HORTON GRANGE PRIMARY SCHOOL,4000237487,25000.00,Grants to educational establishments or not for profit organisations including other businesses,,
Department for Education,DEPARTMENT FOR EDUCATION,12/05/2016,Grants,"Children's Services, Equalities and Communication Safeguarding Group",FORWARD,4000237490,34548.98,Grants to educational establishments or not for profit organisations including other businesses,,
Department for Education,DEPARTMENT FOR EDUCATION,12/05/2016,Grants,Academies Delivery Group,DIOCESE OF CHICHESTER ACADEMY TRUST,4000237492,50000.00,Grants to educational establishments or not for profit organisations including other businesses,,
Department for Education,DEPARTMENT FOR EDUCATION,12/05/2016,Grants,Academies Delivery Group,COPTHORNE PRIMARY SCHOOL,4000237496,25000.00,Grants to educational establishments or not for profit organisations including other businesses,,
Department for Education,STANDARDS AND TESTING AGENCY,12/05/2016,Programme costs,Test Operations Division,NATIONAL FOUNDATION FOR EDUCATIONAL RESEARCH,4000237497,48334.39,Funding to deliver policies (excluding consultancy) paid to third parties via a service delivery contract,,
Department for Education,DEPARTMENT FOR EDUCATION,12/05/2016,Grants,Academies Delivery Group,TRANSFORM TRUST,4000237501,65000.00,Grants to educational establishments or not for profit organisations including other businesses,,
Department for Education,DEPARTMENT FOR EDUCATION,12/05/2016,Grants,Free School Group,PETERBOROUGH UTC ACADEMY TRUST,4000237505,40640.00,Grants to educational establishments or not for profit organisations including other businesses,,
Department for Education,DEPARTMENT FOR EDUCATION,12/05/2016,Grants,Academies Delivery Group,IDE PRIMARY SCHOOL,4000237506,25000.00,Grants to educational establishments or not for profit organisations including other businesses,,
Department for Education,DEPARTMENT FOR EDUCATION,12/05/2016,Grants,Academies Delivery Group,DEVON COUNTY COUNCIL,4000237508,165000.00,Grants to educational establishments or not for profit organisations including other businesses,,
Department for Education,DEPARTMENT FOR EDUCATION,12/05/2016,Facilities,Property Asset Management Group,INTERSERVE FACILITIES MANAGEMENT LTD,4000237498,277026.33,"Building maintenance and repair, including repainting, replacing flooring, etc.",,
Department for Education,DEPARTMENT FOR EDUCATION,12/05/2016,Facilities,Property Asset Management Group,INTERSERVE FACILITIES MANAGEMENT LTD,4000237498,37524.55,Property management,,
Department for Education,DEPARTMENT FOR EDUCATION,12/05/2016,Facilities,Property Asset Management Group,METHODS CONSULTING LTD,4000237447,32165.75,Property management,,
Department for Education,DEPARTMENT FOR EDUCATION,13/05/2016,Communications,"Independent Education, Safeguarding in Schools and Counter Extremism Group",HOME OFFICE,2100038,33762.16,"Publicity, advertising, media advertising campaigns (excluding recruitment adverts)",,
Department for Education,DEPARTMENT FOR EDUCATION,13/05/2016,Personnel Related,Human Resources Group,FIDELITI LTD,4000237523,83019.10,Childcare voucher scheme for staff,,
Department for Education,DEPARTMENT FOR EDUCATION,13/05/2016,ICT,Information Technology Group,BRITISH TELECOMMUNICATIONS PLC,1100107,43765.26,Telecoms facilities and services - telecom rentals,,
Department for Education,STANDARDS AND TESTING AGENCY,13/05/2016,Professional Services Other,Test Operations Division,PROLOG,4000237554,19560.00,"Fees / expenses of professionals, for example to implement advice or changes",,
Department for Education,STANDARDS AND TESTING AGENCY,13/05/2016,Professional Services Other,Test Operations Division,PROLOG,4000237554,2540.00,"Fees / expenses of professionals, for example to implement advice or changes",,
Department for Education,DEPARTMENT FOR EDUCATION,13/05/2016,Grants,Adoption and Children in Care Division,CAMBRIDGE EDUCATION,4000237532,2000000.00,Grants to educational establishments or not for profit organisations including other businesses,,
Department for Education,DEPARTMENT FOR EDUCATION,13/05/2016,Grants,Adoption and Children in Care Division,WAKEFIELD MDC,4000237533,41667.00,Grants to local authorities / other establishments within aggregate external funding or aggregate exchequer grant,,
Department for Education,DEPARTMENT FOR EDUCATION,13/05/2016,Grants,Adoption and Children in Care Division,CALDERDALE MBC,4000237534,60000.00,Grants to local authorities / other establishments within aggregate external funding or aggregate exchequer grant,,
Department for Education,DEPARTMENT FOR EDUCATION,13/05/2016,Grants,Adoption and Children in Care Division,CITY OF BRADFORD METROPOLITAN DISTRICT COUNCIL,4000237535,108000.00,Grants to local authorities / other establishments within aggregate external funding or aggregate exchequer grant,,
Department for Education,DEPARTMENT FOR EDUCATION,13/05/2016,Grants,Adoption and Children in Care Division,WIGAN MBC,4000237536,89500.00,Grants to local authorities / other establishments within aggregate external funding or aggregate exchequer grant,,
Department for Education,DEPARTMENT FOR EDUCATION,13/05/2016,Grants,Adoption and Children in Care Division,TAMESIDE MBC,4000237537,86000.00,Grants to local authorities / other establishments within aggregate external funding or aggregate exchequer grant,,
Department for Education,DEPARTMENT FOR EDUCATION,13/05/2016,Grants,Adoption and Children in Care Division,SALFORD CITY COUNCIL,4000237538,70000.00,Grants to local authorities / other establishments within aggregate external funding or aggregate exchequer grant,,
Department for Education,DEPARTMENT FOR EDUCATION,13/05/2016,Grants,Adoption and Children in Care Division,ROCHDALE MBC,4000237539,27000.00,Grants to local authorities / other establishments within aggregate external funding or aggregate exchequer grant,,
Department for Education,DEPARTMENT FOR EDUCATION,13/05/2016,Grants,Adoption and Children in Care Division,MANCHESTER CITY COUNCIL,4000237540,157000.00,Grants to local authorities / other establishments within aggregate external funding or aggregate exchequer grant,,
Department for Education,DEPARTMENT FOR EDUCATION,13/05/2016,Grants,Adoption and Children in Care Division,SEFTON COUNCIL,4000237541,43000.00,Grants to local authorities / other establishments within aggregate external funding or aggregate exchequer grant,,
Department for Education,DEPARTMENT FOR EDUCATION,13/05/2016,Grants,Adoption and Children in Care Division,LIVERPOOL CITY COUNCIL,4000237542,43000.00,Grants to local authorities / other establishments within aggregate external funding or aggregate exchequer grant,,
Department for Education,DEPARTMENT FOR EDUCATION,13/05/2016,Grants,Adoption and Children in Care Division,KNOWSLEY MBC,4000237548,60000.00,Grants to local authorities / other establishments within aggregate external funding or aggregate exchequer grant,,
Department for Education,DEPARTMENT FOR EDUCATION,13/05/2016,Grants,Adoption and Children in Care Division,DUDLEY MBC,4000237549,86000.00,Grants to local authorities / other establishments within aggregate external funding or aggregate exchequer grant,,
Department for Education,DEPARTMENT FOR EDUCATION,13/05/2016,Grants,Adoption and Children in Care Division,BIRMINGHAM CITY COUNCIL,4000237550,431000.00,Grants to local authorities / other establishments within aggregate external funding or aggregate exchequer grant,,
Department for Education,DEPARTMENT FOR EDUCATION,13/05/2016,Grants,Adoption and Children in Care Division,LONDON BOROUGH OF WALTHAM FOREST COUNCIL,4000237551,27000.00,Grants to local authorities / other establishments within aggregate external funding or aggregate exchequer grant,,
Department for Education,DEPARTMENT FOR EDUCATION,13/05/2016,Grants,Adoption and Children in Care Division,LONDON BOROUGH OF NEWHAM,4000237552,108000.00,Grants to local authorities / other establishments within aggregate external funding or aggregate exchequer grant,,
Department for Education,DEPARTMENT FOR EDUCATION,13/05/2016,Professional Services Consultancy and Contingent Labour,Information Technology Group,PROLOG,4000237554,21613.17,"Advisory services including fees, travel and expenses",,
Department for Education,DEPARTMENT FOR EDUCATION,13/05/2016,Professional Services Consultancy and Contingent Labour,Information Technology Group,PROLOG,4000237554,793.33,"Advisory services including fees, travel and expenses",,
Department for Education,DEPARTMENT FOR EDUCATION,13/05/2016,Communications,Information Technology Group,PROLOG,4000237554,13057.97,Digital media and web production,,
Department for Education,DEPARTMENT FOR EDUCATION,13/05/2016,Communications,Communications Group,PROLOG,4000237554,14422.80,Marketing services - printing and publication,,
Department for Education,DEPARTMENT FOR EDUCATION,13/05/2016,Communications,Information Technology Group,PROLOG,4000237554,37071.22,Digital media and web production,,
Department for Education,DEPARTMENT FOR EDUCATION,13/05/2016,Communications,Ministerial and Public Communications Group,PROLOG,4000237554,72762.86,Digital media and web production,,
Department for Education,STANDARDS AND TESTING AGENCY,13/05/2016,Print and Print Management,Test Operations Division,PROLOG,4000237554,64097.61,Printing and binding services,,
Department for Education,STANDARDS AND TESTING AGENCY,13/05/2016,Print and Print Management,Test Operations Division,PROLOG,4000237554,108594.60,Printing and binding services,,
Department for Education,NATIONAL COLLEGE FOR TEACHING AND LEADERSHIP AGENCY,13/05/2016,Communications,Operations Directorate,PROLOG,4000237554,1122.00,Digital media and web production,,
Department for Education,NATIONAL COLLEGE FOR TEACHING AND LEADERSHIP AGENCY,13/05/2016,Office Solutions,Operations Directorate,PROLOG,4000237554,605.36,Office Supplies,,
Department for Education,NATIONAL COLLEGE FOR TEACHING AND LEADERSHIP AGENCY,13/05/2016,Communications,Operations Directorate,PROLOG,4000237554,341.93,Marketing services,,
Department for Education,NATIONAL COLLEGE FOR TEACHING AND LEADERSHIP AGENCY,13/05/2016,Office Solutions,Operations Directorate,PROLOG,4000237554,107.20,Document Storage,,
Department for Education,NATIONAL COLLEGE FOR TEACHING AND LEADERSHIP AGENCY,13/05/2016,Office Solutions,Operations Directorate,PROLOG,4000237554,6054.84,Post and courier services,,
Department for Education,DEPARTMENT FOR EDUCATION,13/05/2016,Grants,Adoption and Children in Care Division,LONDON BOROUGH OF LEWISHAM,4000237559,86000.00,Grants to local authorities / other establishments within aggregate external funding or aggregate exchequer grant,,
Department for Education,DEPARTMENT FOR EDUCATION,13/05/2016,Grants,Adoption and Children in Care Division,LONDON BOROUGH OF TOWER HAMLETS COUNCIL,4000237560,27000.00,Grants to local authorities / other establishments within aggregate external funding or aggregate exchequer grant,,
Department for Education,DEPARTMENT FOR EDUCATION,13/05/2016,Grants,Adoption and Children in Care Division,LONDON BOROUGH OF SOUTHWARK COUNCIL,4000237561,97000.00,Grants to local authorities / other establishments within aggregate external funding or aggregate exchequer grant,,
Department for Education,DEPARTMENT FOR EDUCATION,13/05/2016,Grants,Character and Disadvantage Division,COMMANDO JOES,4000237563,90447.19,Grants to educational establishments or not for profit organisations including other businesses,,
Department for Education,DEPARTMENT FOR EDUCATION,13/05/2016,Grants,Adoption and Children in Care Division,NORFOLK COUNTY COUNCIL,4000237577,27000.00,Grants to local authorities / other establishments within aggregate external funding or aggregate exchequer grant,,
Department for Education,DEPARTMENT FOR EDUCATION,13/05/2016,Grants,Adoption and Children in Care Division,NORTHUMBERLAND COUNTY COUNCIL,4000237578,54000.00,Grants to local authorities / other establishments within aggregate external funding or aggregate exchequer grant,,
Department for Education,DEPARTMENT FOR EDUCATION,13/05/2016,Grants,Adoption and Children in Care Division,NORTHAMPTONSHIRE COUNTY COUNCIL,4000237579,54000.00,Grants to local authorities / other establishments within aggregate external funding or aggregate exchequer grant,,
Department for Education,DEPARTMENT FOR EDUCATION,13/05/2016,Grants,Adoption and Children in Care Division,CORNWALL COUNCIL,4000237580,43000.00,Grants to local authorities / other establishments within aggregate external funding or aggregate exchequer grant,,
Department for Education,DEPARTMENT FOR EDUCATION,13/05/2016,Grants,Adoption and Children in Care Division,COVENTRY CITY COUNCIL,4000237581,97000.00,Grants to local authorities / other establishments within aggregate external funding or aggregate exchequer grant,,
Department for Education,DEPARTMENT FOR EDUCATION,13/05/2016,Grants,Adoption and Children in Care Division,BLACKPOOL BOROUGH COUNCIL,4000237582,103000.00,Grants to local authorities / other establishments within aggregate external funding or aggregate exchequer grant,,
Department for Education,DEPARTMENT FOR EDUCATION,13/05/2016,Grants,Adoption and Children in Care Division,LANCASHIRE COUNTY COUNCIL,4000237583,97000.00,Grants to local authorities / other establishments within aggregate external funding or aggregate exchequer grant,,
Department for Education,DEPARTMENT FOR EDUCATION,13/05/2016,Grants,Adoption and Children in Care Division,MEDWAY COUNCIL,4000237584,140000.00,Grants to local authorities / other establishments within aggregate external funding or aggregate exchequer grant,,
Department for Education,DEPARTMENT FOR EDUCATION,13/05/2016,Grants,Adoption and Children in Care Division,WORCESTERSHIRE COUNTY COUNCIL,4000237585,70000.00,Grants to local authorities / other establishments within aggregate external funding or aggregate exchequer grant,,
Department for Education,DEPARTMENT FOR EDUCATION,13/05/2016,Grants,Adoption and Children in Care Division,DEVON COUNTY COUNCIL,4000237587,43000.00,Grants to local authorities / other establishments within aggregate external funding or aggregate exchequer grant,,
Department for Education,DEPARTMENT FOR EDUCATION,13/05/2016,Grants,Adoption and Children in Care Division,STAFFORDSHIRE COUNCIL,4000237588,103000.00,Grants to local authorities / other establishments within aggregate external funding or aggregate exchequer grant,,
Department for Education,DEPARTMENT FOR EDUCATION,13/05/2016,Grants,Adoption and Children in Care Division,DURHAM COUNTY COUNCIL,4000237589,60000.00,Grants to local authorities / other establishments within aggregate external funding or aggregate exchequer grant,,
Department for Education,DEPARTMENT FOR EDUCATION,13/05/2016,Grants,Adoption and Children in Care Division,BUCKINGHAMSHIRE COUNTY COUNCIL,4000237590,113000.00,Grants to local authorities / other establishments within aggregate external funding or aggregate exchequer grant,,
Department for Education,DEPARTMENT FOR EDUCATION,13/05/2016,Grants,Adoption and Children in Care Division,STOCKTON ON TEES,4000237591,86000.00,Grants to local authorities / other establishments within aggregate external funding or aggregate exchequer grant,,
Department for Education,DEPARTMENT FOR EDUCATION,13/05/2016,Grants,Post 16 and Disadvantage Group,GREATER LONDON AUTHORITY,4000237599,150000.00,Grants to local authorities / other establishments within aggregate external funding or aggregate exchequer grant,,
Department for Education,DEPARTMENT FOR EDUCATION,13/05/2016,ICT,Systems and Accountability Group,PROLOG,4000237554,117031.78,ICT Services,,
Department for Education,NATIONAL COLLEGE FOR TEACHING AND LEADERSHIP AGENCY,16/05/2016,Professional Services Other,Operations Directorate,BROWNE JACOBSON SOLICITORS,4000237644,98394.08,"Fees / expenses of professionals, for example to implement advice or changes",,
Department for Education,DEPARTMENT FOR EDUCATION,16/05/2016,Professional Services Consultancy and Contingent Labour,Information Technology Group,METHODS PROFESSIONAL SERVICES LTD,4000237611,23835.60,Costs related to temporary workers,,
Department for Education,DEPARTMENT FOR EDUCATION,16/05/2016,Professional Services Consultancy and Contingent Labour,Information Technology Group,METHODS PROFESSIONAL SERVICES LTD,4000237611,48480.00,Costs related to temporary workers,,
Department for Education,DEPARTMENT FOR EDUCATION,16/05/2016,Grants,Adoption and Children in Care Division,THE SHARE FOUNDATION 3RD PARTY TRUST,4000237622,46000.00,Grants to educational establishments or not for profit organisations including other businesses,,
Department for Education,DEPARTMENT FOR EDUCATION,16/05/2016,Programme costs,Adoption and Children in Care Division,FOSTERTALK LTD,4000237642,80316.27,Funding to deliver policies (excluding consultancy) paid to third parties via a service delivery contract,,
Department for Education,DEPARTMENT FOR EDUCATION,16/05/2016,Programme costs,Adoption and Children in Care Division,CORAM,4000237657,37500.00,Funding to deliver policies (excluding consultancy) paid to third parties via a service delivery contract,,
Department for Education,NATIONAL COLLEGE FOR TEACHING AND LEADERSHIP AGENCY,16/05/2016,Professional Services Other,Operations Directorate,BLAKE MORGAN,4000237610,50033.86,Legal services provided externally (excluding Treasury Solicitor) ,,
Department for Education,DEPARTMENT FOR EDUCATION,16/05/2016,ICT,Information Technology Group,MICROSOFT LTD,4000237663,222447.62,ICT Software,,
Department for Education,DEPARTMENT FOR EDUCATION,16/05/2016,ICT,Information Technology Group,MICROSOFT LTD,4000237663,15645.26,ICT Software,,
Department for Education,DEPARTMENT FOR EDUCATION,16/05/2016,Facilities,Property Asset Management Group,SODEXO LTD,4000237621,79786.30,"Building maintenance and repair, including repainting, replacing flooring, etc.",,
Department for Education,DEPARTMENT FOR EDUCATION,17/05/2016,Professional Services Other,Property Asset Management Group,ARCADIS LLP,4000237727,85567.68,"Fees / expenses of professionals, for example to implement advice or changes",,
Department for Education,DEPARTMENT FOR EDUCATION,17/05/2016,Professional Services Other,Property Asset Management Group,ARCADIS LLP,4000237727,15768.00,"Fees / expenses of professionals, for example to implement advice or changes",,
Department for Education,DEPARTMENT FOR EDUCATION,17/05/2016,Professional Services Other,Property Asset Management Group,ARCADIS LLP,4000237727,3784.32,"Fees / expenses of professionals, for example to implement advice or changes",,
Department for Education,DEPARTMENT FOR EDUCATION,17/05/2016,Professional Services Consultancy and Contingent Labour,Ministerial and Public Communications Group,BROOK STREET UK LTD,4000237740,29574.10,Costs related to temporary workers,,
Department for Education,NATIONAL COLLEGE FOR TEACHING AND LEADERSHIP AGENCY,17/05/2016,Professional Services Consultancy and Contingent Labour,Operations Directorate,BROOK STREET UK LTD,4000237740,11066.61,Costs related to temporary workers,,
Department for Education,DEPARTMENT FOR EDUCATION,17/05/2016,Professional Services Consultancy and Contingent Labour,Information Technology Group,BOTTOMLINE,4000237760,41010.90,Costs related to temporary workers,,
Department for Education,NATIONAL COLLEGE FOR TEACHING AND LEADERSHIP AGENCY,17/05/2016,Professional Services Other,Delivery Directorate,TELEPERFORMANCE LTD,4000237715,35525.00,"Fees / expenses of professionals, for example to implement advice or changes",,
Department for Education,DEPARTMENT FOR EDUCATION,17/05/2016,ICT,Information Technology Group,EDUSERV,4000237751,491208.40,ICT Services,,
Department for Education,DEPARTMENT FOR EDUCATION,17/05/2016,Professional Services Other,Property Asset Management Group,HOME OFFICE,4000237747,68835.00,"Fees / expenses of professionals, for example to implement advice or changes",,
Department for Education,DEPARTMENT FOR EDUCATION,17/05/2016,Programme costs,Adoption and Children in Care Division,CORAM,4000237697,97157.50,Funding to deliver policies (excluding consultancy) paid to third parties via a service delivery contract,,
Department for Education,DEPARTMENT FOR EDUCATION,17/05/2016,Programme costs,Children's Services Special Educational Needs Group,I CAN,4000237702,162500.00,Funding to deliver policies (excluding consultancy) paid to third parties via a service delivery contract,,
Department for Education,DEPARTMENT FOR EDUCATION,17/05/2016,Grants,"Children's Services, Equalities and Communication Safeguarding Group",FAMILY LINKS,4000237705,46747.46,Grants to educational establishments or not for profit organisations including other businesses,,
Department for Education,DEPARTMENT FOR EDUCATION,17/05/2016,Grants,Academies Delivery Group,OAKTHORPE PRIMARY SCHOOL,4000237707,30000.00,Grants to educational establishments or not for profit organisations including other businesses,,
Department for Education,DEPARTMENT FOR EDUCATION,17/05/2016,Grants,Academies Delivery Group,THE BLACK PEAR TRUST,4000237708,70000.00,Grants to educational establishments or not for profit organisations including other businesses,,
Department for Education,DEPARTMENT FOR EDUCATION,17/05/2016,Grants,Academies Delivery Group,KENT CATHOLIC SCHOOLS PARTNERSHIP,4000237719,90000.00,Grants to educational establishments or not for profit organisations including other businesses,,
Department for Education,DEPARTMENT FOR EDUCATION,17/05/2016,Grants,Children's Services Special Educational Needs Group,ACHIEVEMENT FOR ALL 3AS LTD,4000237722,47124.00,Grants to educational establishments or not for profit organisations including other businesses,,
Department for Education,NATIONAL COLLEGE FOR TEACHING AND LEADERSHIP AGENCY,17/05/2016,Grants,Delivery Directorate,THE UNIVERSITY OF MANCHESTER,4000237724,462000.00,Grants to educational establishments or not for profit organisations including other businesses,,
Department for Education,DEPARTMENT FOR EDUCATION,17/05/2016,Grants,"Children's Services, Equalities and Communication Safeguarding Group",SHEFFIELD CITY COUNCIL,4000237725,166766.92,Grants to local authorities / other establishments within aggregate external funding or aggregate exchequer grant,,
Department for Education,DEPARTMENT FOR EDUCATION,17/05/2016,Facilities,Property Asset Management Group,GVA GRIMLEY LTD,4000237718,512223.00,Business rates,,
Department for Education,DEPARTMENT FOR EDUCATION,17/05/2016,Grants,Early Years Group,NATIONAL CHILDRENS BUREAU,4000237738,146053.75,Grants to educational establishments or not for profit organisations including other businesses,,
Department for Education,DEPARTMENT FOR EDUCATION,17/05/2016,Grants,Early Years Group,4CHILDREN,4000237742,86851.41,Grants to educational establishments or not for profit organisations including other businesses,,
Department for Education,DEPARTMENT FOR EDUCATION,17/05/2016,Professional Services Other,Academies Delivery Group,GOVERNMENT LEGAL DEPARTMENT,4000237744,5378.60,Legal services provided by Treasury Solicitor ,,
Department for Education,STANDARDS AND TESTING AGENCY,17/05/2016,Professional Services Consultancy and Contingent Labour,Standards and Testing Agency Admin,GOVERNMENT LEGAL DEPARTMENT,4000237744,18599.51,"Advisory services including fees, travel and expenses",,
Department for Education,DEPARTMENT FOR EDUCATION,17/05/2016,Grants,Early Years Group,PRE SCHOOL LEARNING ALLIANCE,4000237756,133715.62,Grants to educational establishments or not for profit organisations including other businesses,,
Department for Education,DEPARTMENT FOR EDUCATION,17/05/2016,Programme costs,Children's Services Special Educational Needs Group,NCB,4000237759,99995.60,Funding to deliver policies (excluding consultancy) paid to third parties via a service delivery contract,,
Department for Education,NATIONAL COLLEGE FOR TEACHING AND LEADERSHIP AGENCY,17/05/2016,Grants,Delivery Directorate,UNIVERSITY COLLEGE LONDON,4000237782,339166.67,Grants to educational establishments or not for profit organisations including other businesses,,
Department for Education,DEPARTMENT FOR EDUCATION,17/05/2016,Grants,Academies Delivery Group,ALBERT VILLAGE COMMUNITY PRIMARY SCHOOL,4000237791,27000.00,Grants to educational establishments or not for profit organisations including other businesses,,
Department for Education,DEPARTMENT FOR EDUCATION,17/05/2016,Grants,Academies Delivery Group,VISCOUNT BEAUMONTS COFE PRIMARY SCHOOL,4000237793,30000.00,Grants to educational establishments or not for profit organisations including other businesses,,
Department for Education,DEPARTMENT FOR EDUCATION,17/05/2016,Grants,Academies Delivery Group,STOWUPLAND HIGH SCHOOL,4000237794,75000.00,Grants to educational establishments or not for profit organisations including other businesses,,
Department for Education,DEPARTMENT FOR EDUCATION,17/05/2016,Grants,Academies Delivery Group,TOPCLIFFE PRIMARY SCHOOL,4000237795,25000.00,Grants to educational establishments or not for profit organisations including other businesses,,
Department for Education,DEPARTMENT FOR EDUCATION,17/05/2016,Facilities,Property Asset Management Group,INTERSERVE FACILITIES MANAGEMENT LTD,4000237710,74224.63,"Building maintenance and repair, including repainting, replacing flooring, etc.",,
Department for Education,DEPARTMENT FOR EDUCATION,18/05/2016,Professional Services Other,Property Asset Management Group,ARCADIS LLP,4000237801,42011.60,"Fees / expenses of professionals, for example to implement advice or changes",,
Department for Education,NATIONAL COLLEGE FOR TEACHING AND LEADERSHIP AGENCY,18/05/2016,Professional Services Other,Operations Directorate,NABARRO LLP,4000237857,149667.30,"Fees / expenses of professionals, for example to implement advice or changes",,
Department for Education,DEPARTMENT FOR EDUCATION,18/05/2016,Facilities,Property Asset Management Group,GVA GRIMLEY LTD DCLG,4000237842,383792.00,"Business rates. From 2016/17 financial year DCLG and DECC will use the DfE's finance system, reflecting the shared services arrangement for property asset management that already exists across the three departments. DfE will recharge DCLG and DECC on a quarterly basis.",,
Department for Education,DEPARTMENT FOR EDUCATION,18/05/2016,Professional Services Other,Academies Delivery Group,GOVERNMENT LEGAL DEPARTMENT,4000237814,20662.30,Legal services provided by Treasury Solicitor ,,
Department for Education,DEPARTMENT FOR EDUCATION,18/05/2016,Programme costs,"Assessment, Curriculum and General Qualifications Group",MYSCIENCE CO LTD,4000237805,357037.20,Funding to deliver policies (excluding consultancy) paid to third parties via a service delivery contract,,
Department for Education,DEPARTMENT FOR EDUCATION,18/05/2016,Professional Services Other,Teachers and Teaching Group,GOVERNMENT LEGAL DEPARTMENT,4000237814,12564.33,Legal services provided by Treasury Solicitor ,,
Department for Education,DEPARTMENT FOR EDUCATION,18/05/2016,Grants,Academies Delivery Group,THE LAURELS PRIMARY SCHOOL,4000237819,25000.00,Grants to educational establishments or not for profit organisations including other businesses,,
Department for Education,DEPARTMENT FOR EDUCATION,18/05/2016,Grants,Academies Delivery Group,FERNVALE PRIMARY SCHOOL,4000237820,27000.00,Grants to educational establishments or not for profit organisations including other businesses,,
Department for Education,DEPARTMENT FOR EDUCATION,18/05/2016,Grants,Academies Delivery Group,MINISTER IN SHEPPEY CP SCHOOL,4000237827,25000.00,Grants to educational establishments or not for profit organisations including other businesses,,
Department for Education,DEPARTMENT FOR EDUCATION,18/05/2016,Grants,Academies Delivery Group,BURTON GREEN PRIMARY SCHOOL,4000237828,45000.00,Grants to educational establishments or not for profit organisations including other businesses,,
Department for Education,DEPARTMENT FOR EDUCATION,18/05/2016,Grants,Academies Delivery Group,PARKSIDE PRIMARY SCHOOL,4000237840,25000.00,Grants to educational establishments or not for profit organisations including other businesses,,
Department for Education,DEPARTMENT FOR EDUCATION,18/05/2016,Grants,Adoption and Children in Care Division,THE SHARE FOUNDATION 3RD PARTY TRUST,4000237867,35400.00,Grants to educational establishments or not for profit organisations including other businesses,,
Department for Education,DEPARTMENT FOR EDUCATION,18/05/2016,Grants,Academies Delivery Group,THE PIONEER ACADEMY TRUST,4000237876,50000.00,Grants to educational establishments or not for profit organisations including other businesses,,
Department for Education,DEPARTMENT FOR EDUCATION,18/05/2016,Grants,Academies Delivery Group,DERBY DIOCESAN ACADEMY TRUST,4000237877,75000.00,Grants to educational establishments or not for profit organisations including other businesses,,
Department for Education,DEPARTMENT FOR EDUCATION,18/05/2016,Grants,Free School Group,HARROW ACADEMIES TRUST,4000237879,48750.00,Grants to educational establishments or not for profit organisations including other businesses,,
Department for Education,DEPARTMENT FOR EDUCATION,18/05/2016,Grants,Academies Delivery Group,WEST THORNTON PRIMARY ACADEMY,4000237914,25000.00,Grants to educational establishments or not for profit organisations including other businesses,,
Department for Education,DEPARTMENT FOR EDUCATION,18/05/2016,Grants,Academies Delivery Group,DIOCESE OF CANTERBURY ACADEMIES CO LTD,4000237919,70000.00,Grants to educational establishments or not for profit organisations including other businesses,,
Department for Education,DEPARTMENT FOR EDUCATION,18/05/2016,Programme costs,Teachers and Teaching Group,CAPITA LIFE & PENSIONS SERVICES LTD,4000237926,1297654.52,Contract payment to deliver the administration of the Teachers' Pension Scheme.,,
Department for Education,DEPARTMENT FOR EDUCATION,18/05/2016,Facilities,Property Asset Management Group,MACE LTD,4000237888,229563.60,Programme management for construction work,,
Department for Education,DEPARTMENT FOR EDUCATION,18/05/2016,Professional Services Other,Early Years Group,IPSOS MORI,4000237839,48265.00,Research and evaluation activities,,
Department for Education,DEPARTMENT FOR EDUCATION,19/05/2016,Facilities,Property Asset Management Group,CROWN COMMERCIAL SERVICE,4000237972,61037.24,Property management,,
Department for Education,NATIONAL COLLEGE FOR TEACHING AND LEADERSHIP AGENCY,19/05/2016,Professional Services Other,Operations Directorate,EVERSHEDS LLP,4000238007,26320.00,Legal services provided externally (excluding Treasury Solicitor) ,,
Department for Education,DEPARTMENT FOR EDUCATION,19/05/2016,Facilities,Property Asset Management Group,HOME OFFICE,4000237998,3421500.00,Rent,,
Department for Education,DEPARTMENT FOR EDUCATION,19/05/2016,Grants,Academies Delivery Group,MENDLESHAM COMMUNITY PRIMARY,4000237944,25000.00,Grants to educational establishments or not for profit organisations including other businesses,,
Department for Education,DEPARTMENT FOR EDUCATION,19/05/2016,Grants,Academies Delivery Group,BACTON COMMUNITY PRIMARY SCHOOL,4000237945,25000.00,Grants to educational establishments or not for profit organisations including other businesses,,
Department for Education,DEPARTMENT FOR EDUCATION,19/05/2016,Grants,Academies Delivery Group,THE MEADOWS SCHOOL,4000237946,25000.00,Grants to educational establishments or not for profit organisations including other businesses,,
Department for Education,DEPARTMENT FOR EDUCATION,19/05/2016,Grants,Academies Delivery Group,DRB IGNITE MAT,4000237947,25000.00,Grants to educational establishments or not for profit organisations including other businesses,,
Department for Education,DEPARTMENT FOR EDUCATION,19/05/2016,Grants,Academies Delivery Group,WILLOW DENE SCHOOL,4000237948,270000.00,Grants to educational establishments or not for profit organisations including other businesses,,
Department for Education,DEPARTMENT FOR EDUCATION,19/05/2016,Grants,Academies Delivery Group,CHILDER THORTON PRIMARY SCHOOL,4000237949,25000.00,Grants to educational establishments or not for profit organisations including other businesses,,
Department for Education,DEPARTMENT FOR EDUCATION,19/05/2016,Grants,Academies Delivery Group,OAKLEY LOWER SCHOOL,4000237950,25000.00,Grants to educational establishments or not for profit organisations including other businesses,,
Department for Education,DEPARTMENT FOR EDUCATION,19/05/2016,Grants,Academies Delivery Group,HARROLD LOWER SCHOOL,4000237951,25000.00,Grants to educational establishments or not for profit organisations including other businesses,,
Department for Education,DEPARTMENT FOR EDUCATION,19/05/2016,Grants,Academies Delivery Group,ST BENEDICTS SCHOOL CONVERSION FUNDS,4000237952,90000.00,Grants to educational establishments or not for profit organisations including other businesses,,
Department for Education,DEPARTMENT FOR EDUCATION,19/05/2016,Grants,Academies Delivery Group,SPRINGFIELD COMMUNITY SPECIAL SCHOOL,4000237959,25000.00,Grants to educational establishments or not for profit organisations including other businesses,,
Department for Education,DEPARTMENT FOR EDUCATION,19/05/2016,Programme costs,"Assessment, Curriculum and General Qualifications Group",MATHEMATICS IN EDUCATION & INDUSTRY,4000237963,281500.00,Funding to deliver policies (excluding consultancy) paid to third parties via a service delivery contract,,
Department for Education,DEPARTMENT FOR EDUCATION,19/05/2016,Grants,Free School Group,THE ARNEWOOD SCHOOL,4000237966,72484.00,Grants to educational establishments or not for profit organisations including other businesses,,
Department for Education,DEPARTMENT FOR EDUCATION,19/05/2016,Grants,Free School Group,UNIVERSITY OF BRIGHTON ACADEMIES TRUST,4000237969,60000.00,Grants to educational establishments or not for profit organisations including other businesses,,
Department for Education,DEPARTMENT FOR EDUCATION,19/05/2016,Grants,System Reform Group,EDUCATION & EMPLOYERS TASKFORCE,4000237970,90000.00,Grants to educational establishments or not for profit organisations including other businesses,,
Department for Education,DEPARTMENT FOR EDUCATION,19/05/2016,Grants,Children's Services Special Educational Needs Group,PRINCES TRUST VOLUNTEERS PROGRAMME,4000237971,98993.31,Grants to educational establishments or not for profit organisations including other businesses,,
Department for Education,DEPARTMENT FOR EDUCATION,19/05/2016,Grants,Academies Delivery Group,WELLSPRING ACADEMY TRUST,4000237977,25000.00,Grants to educational establishments or not for profit organisations including other businesses,,
Department for Education,DEPARTMENT FOR EDUCATION,19/05/2016,Grants,Academies Delivery Group,TRANSFORM TRUST,4000237980,25000.00,Grants to educational establishments or not for profit organisations including other businesses,,
Department for Education,DEPARTMENT FOR EDUCATION,19/05/2016,Grants,Academies Delivery Group,SOLIHULL MBC,4000237986,25000.00,Grants to educational establishments or not for profit organisations including other businesses,,
Department for Education,NATIONAL COLLEGE FOR TEACHING AND LEADERSHIP AGENCY,19/05/2016,Programme costs,Delivery Directorate,FUTURE LEADERS CHARITABLE TRUST SCHOLARSHIPS,4000237999,112727.00,Funding to deliver policies (excluding consultancy) paid to third parties via a service delivery contract,,
Department for Education,DEPARTMENT FOR EDUCATION,19/05/2016,Grants,Academies Delivery Group,ENQUIRE LEARNING TRUST,4000238016,25000.00,Grants to educational establishments or not for profit organisations including other businesses,,
Department for Education,DEPARTMENT FOR EDUCATION,19/05/2016,Grants,Academies Delivery Group,CARDINAL NEWMAN CATHOLIC PRIMARY SCHOOL,4000238017,25000.00,Grants to educational establishments or not for profit organisations including other businesses,,
Department for Education,DEPARTMENT FOR EDUCATION,19/05/2016,Grants,Post 16 and Disadvantage Group,YOUTH SPORT TRUST,4000238023,30000.00,Grants to educational establishments or not for profit organisations including other businesses,,
Department for Education,DEPARTMENT FOR EDUCATION,19/05/2016,Grants,Academies Delivery Group,LEAD MULTI ACADEMY TRUST,4000238026,80000.00,Grants to educational establishments or not for profit organisations including other businesses,,
Department for Education,DEPARTMENT FOR EDUCATION,19/05/2016,Grants,Academies Delivery Group,SAMUEL WARD ACADEMY TRUST,4000238033,90000.00,Grants to educational establishments or not for profit organisations including other businesses,,
Department for Education,DEPARTMENT FOR EDUCATION,19/05/2016,ICT,Finance and Commercial Group,SHARED SERVICES CONNECTED LTD,4000237996,20930.40,ICT Software,,
Department for Education,DEPARTMENT FOR EDUCATION,19/05/2016,Professional Services Other,Finance and Commercial Group,SHARED SERVICES CONNECTED LTD,4000237996,184143.31,Shared corporate accounting services,,
Department for Education,DEPARTMENT FOR EDUCATION,24/05/2016,ICT,Information Technology Group,CAPGEMINI UK PLC,4000238155,93603.62,ICT Services,,
Department for Education,DEPARTMENT FOR EDUCATION,24/05/2016,ICT,Information Technology Group,CAPGEMINI UK PLC,4000238155,179.47,ICT Services - hardware maintenance and support,,
Department for Education,DEPARTMENT FOR EDUCATION,24/05/2016,ICT,Systems and Accountability Group,CAPGEMINI UK PLC,4000238155,75600.00,ICT Services,,
Department for Education,DEPARTMENT FOR EDUCATION,24/05/2016,Facilities,Property Asset Management Group,BAM CONSTRUCTION LTD,4000238066,1191704.40,Programme management for construction work,,
Department for Education,DEPARTMENT FOR EDUCATION,24/05/2016,Professional Services Other,Adoption and Children in Care Division,CAPGEMINI UK PLC,4000238155,30000.00,"Fees / expenses of professionals, for example to implement advice or changes",,
Department for Education,DEPARTMENT FOR EDUCATION,24/05/2016,Grants,"Children's Services, Equalities and Communication Safeguarding Group",THE FRONTLINE ORGANISATION,4000238064,610472.34,Grants to educational establishments or not for profit organisations including other businesses,,
Department for Education,DEPARTMENT FOR EDUCATION,24/05/2016,Grants,Character and Disadvantage Division,ST JOHN AMBULANCE,4000238072,115126.87,Grants to educational establishments or not for profit organisations including other businesses,,
Department for Education,DEPARTMENT FOR EDUCATION,24/05/2016,Grants,Character and Disadvantage Division,YOUNG ENTERPRISE,4000238073,34232.04,Grants to educational establishments or not for profit organisations including other businesses,,
Department for Education,DEPARTMENT FOR EDUCATION,24/05/2016,Grants,Character and Disadvantage Division,THE CHALLENGE NETWORK,4000238074,81779.00,Grants to educational establishments or not for profit organisations including other businesses,,
Department for Education,DEPARTMENT FOR EDUCATION,24/05/2016,Grants,"Children's Services, Equalities and Communication Safeguarding Group",KIDSCAPE,4000238075,55124.19,Grants to educational establishments or not for profit organisations including other businesses,,
Department for Education,DEPARTMENT FOR EDUCATION,24/05/2016,Grants,"Children's Services, Equalities and Communication Safeguarding Group",DIANA PRINCESS  MEMORIAL AWARD,4000238076,112655.82,Grants to educational establishments or not for profit organisations including other businesses,,
Department for Education,DEPARTMENT FOR EDUCATION,24/05/2016,Grants,Character and Disadvantage Division,CHALLENGER TROOP,4000238078,106605.39,Grants to educational establishments or not for profit organisations including other businesses,,
Department for Education,DEPARTMENT FOR EDUCATION,24/05/2016,Grants,"Assessment, Curriculum and General Qualifications Group",STOKE ON TRENT COLLEGE,4000238086,35748.08,Grants to educational establishments or not for profit organisations including other businesses,,
Department for Education,DEPARTMENT FOR EDUCATION,24/05/2016,Grants,"Children's Services, Equalities and Communication Safeguarding Group",NATIONAL CHILDRENS BUREAU,4000238088,117016.57,Grants to educational establishments or not for profit organisations including other businesses,,
Department for Education,DEPARTMENT FOR EDUCATION,24/05/2016,Grants,"Children's Services, Equalities and Communication Safeguarding Group",MANCHESTER CITY COUNCIL,4000238094,103280.63,Grants to local authorities / other establishments within aggregate external funding or aggregate exchequer grant,,
Department for Education,DEPARTMENT FOR EDUCATION,24/05/2016,Grants,Character and Disadvantage Division,SKILL FORCE DEVELOPMENT,4000238106,33034.00,Grants to educational establishments or not for profit organisations including other businesses,,
Department for Education,DEPARTMENT FOR EDUCATION,24/05/2016,Grants,Character and Disadvantage Division,PSHE ASSOCIATION,4000238109,44144.00,Grants to educational establishments or not for profit organisations including other businesses,,
Department for Education,DEPARTMENT FOR EDUCATION,24/05/2016,Grants,"Children's Services, Equalities and Communication Safeguarding Group",NSPCC,4000238115,500000.00,Grants to educational establishments or not for profit organisations including other businesses,,
Department for Education,DEPARTMENT FOR EDUCATION,24/05/2016,Grants,Children's Services Special Educational Needs Group,REACHFOR,4000238127,75396.31,Grants to educational establishments or not for profit organisations including other businesses,,
Department for Education,DEPARTMENT FOR EDUCATION,24/05/2016,Grants,Character and Disadvantage Division,CADET VOCATIONAL QUALIFICATIONS ORGANISATION LTD,4000238153,82698.25,Grants to educational establishments or not for profit organisations including other businesses,,
Department for Education,NATIONAL COLLEGE FOR TEACHING AND LEADERSHIP AGENCY,24/05/2016,Programme costs,Delivery Directorate,EMLC,4000238154,488771.25,Funding to external organisations to deliver policies (excluding consultancy),,
Department for Education,DEPARTMENT FOR EDUCATION,24/05/2016,ICT,Information Technology Group,MICROSOFT LTD,4000238108,369578.72,ICT Software,,
Department for Education,DEPARTMENT FOR EDUCATION,24/05/2016,Grants,Character and Disadvantage Division,UNIVERSITY OF BIRMINGHAM,4000238159,56231.28,Grants to educational establishments or not for profit organisations including other businesses,,
Department for Education,DEPARTMENT FOR EDUCATION,24/05/2016,Facilities,Property Asset Management Group,NOTTINGHAM CITY COUNCIL,4000238164,32215.00,"Building maintenance and repair, including repainting, replacing flooring, etc.",,
Department for Education,DEPARTMENT FOR EDUCATION,25/05/2016,Facilities,Property Asset Management Group,CAPITA PROPERTY & INFRASTRUCTURE LTD,4000238280,195079.43,"Building maintenance and repair, including repainting, replacing flooring, etc.",,
Department for Education,DEPARTMENT FOR EDUCATION,25/05/2016,Grants,Children's Services Special Educational Needs Group,SOLIHULL MBC,4000238166,31105.00,Grants to local authorities / other establishments within aggregate external funding or aggregate exchequer grant,,
Department for Education,DEPARTMENT FOR EDUCATION,25/05/2016,Grants,Adoption and Children in Care Division,SOLIHULL MBC,4000238166,48074.00,Grants to local authorities outside aggregate external funding or aggregate exchequer grant,,
Department for Education,DEPARTMENT FOR EDUCATION,25/05/2016,Grants,Children's Services Special Educational Needs Group,SOMERSET COUNTY COUNCIL,4000238167,87048.00,Grants to local authorities / other establishments within aggregate external funding or aggregate exchequer grant,,
Department for Education,DEPARTMENT FOR EDUCATION,25/05/2016,Grants,Adoption and Children in Care Division,SOMERSET COUNTY COUNCIL,4000238167,33282.00,Grants to local authorities outside aggregate external funding or aggregate exchequer grant,,
Department for Education,DEPARTMENT FOR EDUCATION,25/05/2016,Grants,Children's Services Special Educational Needs Group,OXFORDSHIRE COUNTY COUNCIL,4000238168,105571.00,Grants to local authorities / other establishments within aggregate external funding or aggregate exchequer grant,,
Department for Education,DEPARTMENT FOR EDUCATION,25/05/2016,Grants,Adoption and Children in Care Division,OXFORDSHIRE COUNTY COUNCIL,4000238168,52512.00,Grants to local authorities outside aggregate external funding or aggregate exchequer grant,,
Department for Education,DEPARTMENT FOR EDUCATION,25/05/2016,Grants,Children's Services Special Educational Needs Group,NORTHUMBERLAND COUNTY COUNCIL,4000238169,49633.00,Grants to local authorities / other establishments within aggregate external funding or aggregate exchequer grant,,
Department for Education,DEPARTMENT FOR EDUCATION,25/05/2016,Grants,Adoption and Children in Care Division,NORTHUMBERLAND COUNTY COUNCIL,4000238169,16271.00,Grants to local authorities outside aggregate external funding or aggregate exchequer grant,,
Department for Education,DEPARTMENT FOR EDUCATION,25/05/2016,Grants,Children's Services Special Educational Needs Group,NORTHAMPTONSHIRE COUNTY COUNCIL,4000238170,118873.00,Grants to local authorities / other establishments within aggregate external funding or aggregate exchequer grant,,
Department for Education,DEPARTMENT FOR EDUCATION,25/05/2016,Grants,Adoption and Children in Care Division,NORTHAMPTONSHIRE COUNTY COUNCIL,4000238170,63606.00,Grants to local authorities outside aggregate external funding or aggregate exchequer grant,,
Department for Education,DEPARTMENT FOR EDUCATION,25/05/2016,Grants,Children's Services Special Educational Needs Group,SHROPSHIRE COUNCIL,4000238171,50708.00,Grants to local authorities / other establishments within aggregate external funding or aggregate exchequer grant,,
Department for Education,DEPARTMENT FOR EDUCATION,25/05/2016,Grants,Adoption and Children in Care Division,SHROPSHIRE COUNCIL,4000238171,23668.00,Grants to local authorities outside aggregate external funding or aggregate exchequer grant,,
Department for Education,DEPARTMENT FOR EDUCATION,25/05/2016,Grants,Children's Services Special Educational Needs Group,COVENTRY CITY COUNCIL,4000238173,55541.00,Grants to local authorities / other establishments within aggregate external funding or aggregate exchequer grant,,
Department for Education,DEPARTMENT FOR EDUCATION,25/05/2016,Grants,Adoption and Children in Care Division,COVENTRY CITY COUNCIL,4000238173,35501.00,Grants to local authorities outside aggregate external funding or aggregate exchequer grant,,
Department for Education,DEPARTMENT FOR EDUCATION,25/05/2016,Grants,Children's Services Special Educational Needs Group,NOTTINGHAM CITY COUNCIL,4000238175,53411.00,Grants to local authorities / other establishments within aggregate external funding or aggregate exchequer grant,,
Department for Education,DEPARTMENT FOR EDUCATION,25/05/2016,Grants,Adoption and Children in Care Division,NOTTINGHAM CITY COUNCIL,4000238175,41418.00,Grants to local authorities outside aggregate external funding or aggregate exchequer grant,,
Department for Education,DEPARTMENT FOR EDUCATION,25/05/2016,Grants,Children's Services Special Educational Needs Group,NOTTINGHAMSHIRE COUNTY COUNCIL,4000238176,122455.00,Grants to local authorities / other establishments within aggregate external funding or aggregate exchequer grant,,
Department for Education,DEPARTMENT FOR EDUCATION,25/05/2016,Grants,Adoption and Children in Care Division,NOTTINGHAMSHIRE COUNTY COUNCIL,4000238176,50293.00,Grants to local authorities outside aggregate external funding or aggregate exchequer grant,,
Department for Education,DEPARTMENT FOR EDUCATION,25/05/2016,Grants,Children's Services Special Educational Needs Group,BLACKPOOL BOROUGH COUNCIL,4000238177,22462.00,Grants to local authorities / other establishments within aggregate external funding or aggregate exchequer grant,,
Department for Education,DEPARTMENT FOR EDUCATION,25/05/2016,Grants,Adoption and Children in Care Division,BLACKPOOL BOROUGH COUNCIL,4000238177,11834.00,Grants to local authorities outside aggregate external funding or aggregate exchequer grant,,
Department for Education,DEPARTMENT FOR EDUCATION,25/05/2016,Grants,Children's Services Special Educational Needs Group,BLACKBURN WITH DARWEN BOROUGH COUNCIL,4000238178,30510.00,Grants to local authorities / other establishments within aggregate external funding or aggregate exchequer grant,,
Department for Education,DEPARTMENT FOR EDUCATION,25/05/2016,Grants,Adoption and Children in Care Division,BLACKBURN WITH DARWEN BOROUGH COUNCIL,4000238178,17751.00,Grants to local authorities outside aggregate external funding or aggregate exchequer grant,,
Department for Education,DEPARTMENT FOR EDUCATION,25/05/2016,Grants,Children's Services Special Educational Needs Group,LANCASHIRE COUNTY COUNCIL,4000238179,185120.00,Grants to local authorities / other establishments within aggregate external funding or aggregate exchequer grant,,
Department for Education,DEPARTMENT FOR EDUCATION,25/05/2016,Grants,Adoption and Children in Care Division,LANCASHIRE COUNTY COUNCIL,4000238179,73221.00,Grants to local authorities outside aggregate external funding or aggregate exchequer grant,,
Department for Education,DEPARTMENT FOR EDUCATION,25/05/2016,Grants,Children's Services Special Educational Needs Group,MEDWAY COUNCIL,4000238180,44634.00,Grants to local authorities / other establishments within aggregate external funding or aggregate exchequer grant,,
Department for Education,DEPARTMENT FOR EDUCATION,25/05/2016,Grants,Adoption and Children in Care Division,MEDWAY COUNCIL,4000238180,41418.00,Grants to local authorities outside aggregate external funding or aggregate exchequer grant,,
Department for Education,DEPARTMENT FOR EDUCATION,25/05/2016,Grants,Children's Services Special Educational Needs Group,KENT COUNTY COUNCIL,4000238181,239256.00,Grants to local authorities / other establishments within aggregate external funding or aggregate exchequer grant,,
Department for Education,DEPARTMENT FOR EDUCATION,25/05/2016,Grants,Adoption and Children in Care Division,KENT COUNTY COUNCIL,4000238181,198954.00,Grants to local authorities outside aggregate external funding or aggregate exchequer grant,,
Department for Education,DEPARTMENT FOR EDUCATION,25/05/2016,Grants,Children's Services Special Educational Needs Group,WORCESTERSHIRE COUNTY COUNCIL,4000238182,83671.00,Grants to local authorities / other establishments within aggregate external funding or aggregate exchequer grant,,
Department for Education,DEPARTMENT FOR EDUCATION,25/05/2016,Grants,Adoption and Children in Care Division,WORCESTERSHIRE COUNTY COUNCIL,4000238182,59169.00,Grants to local authorities outside aggregate external funding or aggregate exchequer grant,,
Department for Education,DEPARTMENT FOR EDUCATION,25/05/2016,Grants,Children's Services Special Educational Needs Group,HEREFORDSHIRE COUNCIL,4000238183,32614.00,Grants to local authorities / other establishments within aggregate external funding or aggregate exchequer grant,,
Department for Education,DEPARTMENT FOR EDUCATION,25/05/2016,Grants,Adoption and Children in Care Division,HEREFORDSHIRE COUNCIL,4000238183,19969.00,Grants to local authorities outside aggregate external funding or aggregate exchequer grant,,
Department for Education,DEPARTMENT FOR EDUCATION,25/05/2016,Grants,Children's Services Special Educational Needs Group,THURROCK COUNCIL,4000238184,29715.00,Grants to local authorities / other establishments within aggregate external funding or aggregate exchequer grant,,
Department for Education,DEPARTMENT FOR EDUCATION,25/05/2016,Grants,Adoption and Children in Care Division,THURROCK COUNCIL,4000238184,27366.00,Grants to local authorities outside aggregate external funding or aggregate exchequer grant,,
Department for Education,DEPARTMENT FOR EDUCATION,25/05/2016,Grants,Children's Services Special Educational Needs Group,SOUTHEND ON SEA BOROUGH COUNCIL,4000238185,27172.00,Grants to local authorities / other establishments within aggregate external funding or aggregate exchequer grant,,
Department for Education,DEPARTMENT FOR EDUCATION,25/05/2016,Grants,Adoption and Children in Care Division,SOUTHEND ON SEA BOROUGH COUNCIL,4000238185,28845.00,Grants to local authorities outside aggregate external funding or aggregate exchequer grant,,
Department for Education,DEPARTMENT FOR EDUCATION,25/05/2016,Grants,Children's Services Special Educational Needs Group,ESSEX COUNTY COUNCIL,4000238186,217102.00,Grants to local authorities / other establishments within aggregate external funding or aggregate exchequer grant,,
Department for Education,DEPARTMENT FOR EDUCATION,25/05/2016,Grants,Adoption and Children in Care Division,ESSEX COUNTY COUNCIL,4000238186,122035.00,Grants to local authorities outside aggregate external funding or aggregate exchequer grant,,
Department for Education,DEPARTMENT FOR EDUCATION,25/05/2016,Grants,Children's Services Special Educational Needs Group,TORBAY COUNCIL,4000238187,18827.00,Grants to local authorities / other establishments within aggregate external funding or aggregate exchequer grant,,
Department for Education,DEPARTMENT FOR EDUCATION,25/05/2016,Grants,Adoption and Children in Care Division,TORBAY COUNCIL,4000238187,12573.00,Grants to local authorities outside aggregate external funding or aggregate exchequer grant,,
Department for Education,DEPARTMENT FOR EDUCATION,25/05/2016,Grants,Children's Services Special Educational Needs Group,PLYMOUTH CITY COUNCIL,4000238188,38078.00,Grants to local authorities / other establishments within aggregate external funding or aggregate exchequer grant,,
Department for Education,DEPARTMENT FOR EDUCATION,25/05/2016,Grants,Adoption and Children in Care Division,PLYMOUTH CITY COUNCIL,4000238188,26626.00,Grants to local authorities outside aggregate external funding or aggregate exchequer grant,,
Department for Education,DEPARTMENT FOR EDUCATION,25/05/2016,Grants,Children's Services Special Educational Needs Group,DEVON COUNTY COUNCIL,4000238189,122022.00,Grants to local authorities / other establishments within aggregate external funding or aggregate exchequer grant,,
Department for Education,DEPARTMENT FOR EDUCATION,25/05/2016,Grants,Adoption and Children in Care Division,DEVON COUNTY COUNCIL,4000238189,39939.00,Grants to local authorities outside aggregate external funding or aggregate exchequer grant,,
Department for Education,DEPARTMENT FOR EDUCATION,25/05/2016,Grants,Children's Services Special Educational Needs Group,WARRINGTON BOROUGH COUNCIL,4000238190,29902.00,Grants to local authorities / other establishments within aggregate external funding or aggregate exchequer grant,,
Department for Education,DEPARTMENT FOR EDUCATION,25/05/2016,Grants,Adoption and Children in Care Division,WARRINGTON BOROUGH COUNCIL,4000238190,21449.00,Grants to local authorities outside aggregate external funding or aggregate exchequer grant,,
Department for Education,DEPARTMENT FOR EDUCATION,25/05/2016,Grants,Children's Services Special Educational Needs Group,WOLVERHAMPTON CITY COUNCIL,4000238191,44592.00,Grants to local authorities / other establishments within aggregate external funding or aggregate exchequer grant,,
Department for Education,DEPARTMENT FOR EDUCATION,25/05/2016,Grants,Adoption and Children in Care Division,WOLVERHAMPTON CITY COUNCIL,4000238191,19230.00,Grants to local authorities outside aggregate external funding or aggregate exchequer grant,,
Department for Education,DEPARTMENT FOR EDUCATION,25/05/2016,Grants,Children's Services Special Educational Needs Group,HALTON BOROUGH COUNCIL,4000238192,21514.00,Grants to local authorities / other establishments within aggregate external funding or aggregate exchequer grant,,
Department for Education,DEPARTMENT FOR EDUCATION,25/05/2016,Grants,Adoption and Children in Care Division,HALTON BOROUGH COUNCIL,4000238192,14792.00,Grants to local authorities outside aggregate external funding or aggregate exchequer grant,,
Department for Education,DEPARTMENT FOR EDUCATION,25/05/2016,Grants,Children's Services Special Educational Needs Group,PETERBOROUGH CITY COUNCIL,4000238193,36526.00,Grants to local authorities / other establishments within aggregate external funding or aggregate exchequer grant,,
Department for Education,DEPARTMENT FOR EDUCATION,25/05/2016,Grants,Adoption and Children in Care Division,PETERBOROUGH CITY COUNCIL,4000238193,28845.00,Grants to local authorities outside aggregate external funding or aggregate exchequer grant,,
Department for Education,DEPARTMENT FOR EDUCATION,25/05/2016,Grants,Children's Services Special Educational Needs Group,CAMBRIDGESHIRE COUNTY COUNCIL,4000238194,101669.00,Grants to local authorities / other establishments within aggregate external funding or aggregate exchequer grant,,
Department for Education,DEPARTMENT FOR EDUCATION,25/05/2016,Grants,Adoption and Children in Care Division,CAMBRIDGESHIRE COUNTY COUNCIL,4000238194,40678.00,Grants to local authorities outside aggregate external funding or aggregate exchequer grant,,
Department for Education,DEPARTMENT FOR EDUCATION,25/05/2016,Grants,Children's Services Special Educational Needs Group,THE ROYAL BOROUGH OF WINDSOR & MAIDENHEAD,4000238195,24359.00,Grants to local authorities / other establishments within aggregate external funding or aggregate exchequer grant,,
Department for Education,DEPARTMENT FOR EDUCATION,25/05/2016,Grants,Adoption and Children in Care Division,THE ROYAL BOROUGH OF WINDSOR & MAIDENHEAD,4000238195,8136.00,Grants to local authorities outside aggregate external funding or aggregate exchequer grant,,
Department for Education,DEPARTMENT FOR EDUCATION,25/05/2016,Grants,Children's Services Special Educational Needs Group,BRACKNELL FOREST BOROUGH COUNCIL,4000238196,19966.00,Grants to local authorities / other establishments within aggregate external funding or aggregate exchequer grant,,
Department for Education,DEPARTMENT FOR EDUCATION,25/05/2016,Grants,Adoption and Children in Care Division,BRACKNELL FOREST BOROUGH COUNCIL,4000238196,9615.00,Grants to local authorities outside aggregate external funding or aggregate exchequer grant,,
Department for Education,DEPARTMENT FOR EDUCATION,25/05/2016,Grants,Children's Services Special Educational Needs Group,SWINDON BOROUGH COUNCIL,4000238197,34174.00,Grants to local authorities / other establishments within aggregate external funding or aggregate exchequer grant,,
Department for Education,DEPARTMENT FOR EDUCATION,25/05/2016,Grants,Adoption and Children in Care Division,SWINDON BOROUGH COUNCIL,4000238197,42158.00,Grants to local authorities outside aggregate external funding or aggregate exchequer grant,,
Department for Education,DEPARTMENT FOR EDUCATION,25/05/2016,Grants,Children's Services Special Educational Needs Group,WILTSHIRE COUNCIL,4000238198,82199.00,Grants to local authorities / other establishments within aggregate external funding or aggregate exchequer grant,,
Department for Education,DEPARTMENT FOR EDUCATION,25/05/2016,Grants,Adoption and Children in Care Division,WILTSHIRE COUNCIL,4000238198,24407.00,Grants to local authorities outside aggregate external funding or aggregate exchequer grant,,
Department for Education,DEPARTMENT FOR EDUCATION,25/05/2016,Grants,Children's Services Special Educational Needs Group,HAMPSHIRE COUNTY COUNCIL,4000238199,202334.00,Grants to local authorities / other establishments within aggregate external funding or aggregate exchequer grant,,
Department for Education,DEPARTMENT FOR EDUCATION,25/05/2016,Grants,Adoption and Children in Care Division,HAMPSHIRE COUNTY COUNCIL,4000238199,102805.00,Grants to local authorities outside aggregate external funding or aggregate exchequer grant,,
Department for Education,DEPARTMENT FOR EDUCATION,25/05/2016,Grants,Children's Services Special Educational Needs Group,BRIGHTON & HOVE CITY COUNCIL,4000238200,36264.00,Grants to local authorities / other establishments within aggregate external funding or aggregate exchequer grant,,
Department for Education,DEPARTMENT FOR EDUCATION,25/05/2016,Grants,Adoption and Children in Care Division,BRIGHTON & HOVE CITY COUNCIL,4000238200,65825.00,Grants to local authorities outside aggregate external funding or aggregate exchequer grant,,
Department for Education,DEPARTMENT FOR EDUCATION,25/05/2016,Grants,Children's Services Special Educational Needs Group,DARLINGTON BOROUGH COUNCIL,4000238201,17366.00,Grants to local authorities / other establishments within aggregate external funding or aggregate exchequer grant,,
Department for Education,DEPARTMENT FOR EDUCATION,25/05/2016,Grants,Adoption and Children in Care Division,DARLINGTON BOROUGH COUNCIL,4000238201,11834.00,Grants to local authorities outside aggregate external funding or aggregate exchequer grant,,
Department for Education,DEPARTMENT FOR EDUCATION,25/05/2016,Grants,Children's Services Special Educational Needs Group,DURHAM COUNTY COUNCIL,4000238202,79909.00,Grants to local authorities / other establishments within aggregate external funding or aggregate exchequer grant,,
Department for Education,DEPARTMENT FOR EDUCATION,25/05/2016,Grants,Adoption and Children in Care Division,DURHAM COUNTY COUNCIL,4000238202,27366.00,Grants to local authorities outside aggregate external funding or aggregate exchequer grant,,
Department for Education,DEPARTMENT FOR EDUCATION,25/05/2016,Grants,Children's Services Special Educational Needs Group,LUTON BOROUGH COUNCIL,4000238203,42607.00,Grants to local authorities / other establishments within aggregate external funding or aggregate exchequer grant,,
Department for Education,DEPARTMENT FOR EDUCATION,25/05/2016,Grants,Adoption and Children in Care Division,LUTON BOROUGH COUNCIL,4000238203,36241.00,Grants to local authorities outside aggregate external funding or aggregate exchequer grant,,
Department for Education,DEPARTMENT FOR EDUCATION,25/05/2016,Grants,Children's Services Special Educational Needs Group,BEDFORD BOROUGH COUNCIL,4000238204,27802.00,Grants to local authorities / other establishments within aggregate external funding or aggregate exchequer grant,,
Department for Education,DEPARTMENT FOR EDUCATION,25/05/2016,Grants,Adoption and Children in Care Division,BEDFORD BOROUGH COUNCIL,4000238204,19230.00,Grants to local authorities outside aggregate external funding or aggregate exchequer grant,,
Department for Education,DEPARTMENT FOR EDUCATION,25/05/2016,Grants,Children's Services Special Educational Needs Group,YORK CITY COUNCIL,4000238206,26016.00,Grants to local authorities / other establishments within aggregate external funding or aggregate exchequer grant,,
Department for Education,DEPARTMENT FOR EDUCATION,25/05/2016,Grants,Adoption and Children in Care Division,YORK CITY COUNCIL,4000238206,22188.00,Grants to local authorities outside aggregate external funding or aggregate exchequer grant,,
Department for Education,DEPARTMENT FOR EDUCATION,25/05/2016,Grants,Children's Services Special Educational Needs Group,NORTH YORKSHIRE COUNTY COUNCIL,4000238207,100766.00,Grants to local authorities / other establishments within aggregate external funding or aggregate exchequer grant,,
Department for Education,DEPARTMENT FOR EDUCATION,25/05/2016,Grants,Adoption and Children in Care Division,NORTH YORKSHIRE COUNTY COUNCIL,4000238207,38460.00,Grants to local authorities outside aggregate external funding or aggregate exchequer grant,,
Department for Education,DEPARTMENT FOR EDUCATION,25/05/2016,Grants,Children's Services Special Educational Needs Group,STOCKTON ON TEES,4000238208,31126.00,Grants to local authorities / other establishments within aggregate external funding or aggregate exchequer grant,,
Department for Education,DEPARTMENT FOR EDUCATION,25/05/2016,Grants,Adoption and Children in Care Division,STOCKTON ON TEES,4000238208,19230.00,Grants to local authorities outside aggregate external funding or aggregate exchequer grant,,
Department for Education,DEPARTMENT FOR EDUCATION,25/05/2016,Grants,Children's Services Special Educational Needs Group,REDCAR & CLEVELAND BOROUGH COUNCIL,4000238209,21295.00,Grants to local authorities / other establishments within aggregate external funding or aggregate exchequer grant,,
Department for Education,DEPARTMENT FOR EDUCATION,25/05/2016,Grants,Adoption and Children in Care Division,REDCAR & CLEVELAND BOROUGH COUNCIL,4000238209,10355.00,Grants to local authorities outside aggregate external funding or aggregate exchequer grant,,
Department for Education,DEPARTMENT FOR EDUCATION,25/05/2016,Grants,Children's Services Special Educational Needs Group,MIDDLESBROUGH COUNCIL,4000238210,24988.00,Grants to local authorities / other establishments within aggregate external funding or aggregate exchequer grant,,
Department for Education,DEPARTMENT FOR EDUCATION,25/05/2016,Grants,Adoption and Children in Care Division,MIDDLESBROUGH COUNCIL,4000238210,25886.00,Grants to local authorities outside aggregate external funding or aggregate exchequer grant,,
Department for Education,DEPARTMENT FOR EDUCATION,25/05/2016,Grants,Children's Services Special Educational Needs Group,HARTLEPOOL BOROUGH COUNCIL,4000238211,15448.00,Grants to local authorities / other establishments within aggregate external funding or aggregate exchequer grant,,
Department for Education,DEPARTMENT FOR EDUCATION,25/05/2016,Grants,Adoption and Children in Care Division,HARTLEPOOL BOROUGH COUNCIL,4000238211,12573.00,Grants to local authorities outside aggregate external funding or aggregate exchequer grant,,
Department for Education,DEPARTMENT FOR EDUCATION,25/05/2016,Grants,Children's Services Special Educational Needs Group,SOUTH GLOUCEST,4000238212,40209.00,Grants to local authorities / other establishments within aggregate external funding or aggregate exchequer grant,,
Department for Education,DEPARTMENT FOR EDUCATION,25/05/2016,Grants,Adoption and Children in Care Division,SOUTH GLOUCEST,4000238212,17751.00,Grants to local authorities outside aggregate external funding or aggregate exchequer grant,,
Department for Education,DEPARTMENT FOR EDUCATION,25/05/2016,Grants,Children's Services Special Educational Needs Group,CENTRAL BEDFORDSHIRE COUNCIL,4000238213,43486.00,Grants to local authorities / other establishments within aggregate external funding or aggregate exchequer grant,,
Department for Education,DEPARTMENT FOR EDUCATION,25/05/2016,Grants,Adoption and Children in Care Division,CENTRAL BEDFORDSHIRE COUNCIL,4000238213,21449.00,Grants to local authorities outside aggregate external funding or aggregate exchequer grant,,
Department for Education,NATIONAL COLLEGE FOR TEACHING AND LEADERSHIP AGENCY,25/05/2016,Grants,Delivery Directorate,OAKWOOD ACADEMY,4000238217,60000.00,Grants to educational establishments or not for profit organisations including other businesses,,
Department for Education,DEPARTMENT FOR EDUCATION,25/05/2016,Grants,Children's Services Special Educational Needs Group,BOURNEMOUTH BOROUGH COUNCIL,4000238218,24316.00,Grants to local authorities / other establishments within aggregate external funding or aggregate exchequer grant,,
Department for Education,DEPARTMENT FOR EDUCATION,25/05/2016,Grants,Adoption and Children in Care Division,BOURNEMOUTH BOROUGH COUNCIL,4000238218,18490.00,Grants to local authorities outside aggregate external funding or aggregate exchequer grant,,
Department for Education,DEPARTMENT FOR EDUCATION,25/05/2016,Grants,Children's Services Special Educational Needs Group,POOLE BOROUGH COUNCIL,4000238219,20144.00,Grants to local authorities / other establishments within aggregate external funding or aggregate exchequer grant,,
Department for Education,DEPARTMENT FOR EDUCATION,25/05/2016,Grants,Adoption and Children in Care Division,POOLE BOROUGH COUNCIL,4000238219,11094.00,Grants to local authorities outside aggregate external funding or aggregate exchequer grant,,
Department for Education,DEPARTMENT FOR EDUCATION,25/05/2016,Grants,Children's Services Special Educational Needs Group,DORSET COUNTY COUNCIL,4000238220,60745.00,Grants to local authorities / other establishments within aggregate external funding or aggregate exchequer grant,,
Department for Education,DEPARTMENT FOR EDUCATION,25/05/2016,Grants,Adoption and Children in Care Division,DORSET COUNTY COUNCIL,4000238220,25147.00,Grants to local authorities outside aggregate external funding or aggregate exchequer grant,,
Department for Education,DEPARTMENT FOR EDUCATION,25/05/2016,Grants,Children's Services Special Educational Needs Group,DERBY CITY COUNCIL,4000238221,42788.00,Grants to local authorities / other establishments within aggregate external funding or aggregate exchequer grant,,
Department for Education,DEPARTMENT FOR EDUCATION,25/05/2016,Grants,Adoption and Children in Care Division,DERBY CITY COUNCIL,4000238221,34762.00,Grants to local authorities outside aggregate external funding or aggregate exchequer grant,,
Department for Education,DEPARTMENT FOR EDUCATION,25/05/2016,Grants,Children's Services Special Educational Needs Group,DERBYSHIRE COUNTY COUNCIL,4000238222,116311.00,Grants to local authorities / other establishments within aggregate external funding or aggregate exchequer grant,,
Department for Education,DEPARTMENT FOR EDUCATION,25/05/2016,Grants,Adoption and Children in Care Division,DERBYSHIRE COUNTY COUNCIL,4000238222,52512.00,Grants to local authorities outside aggregate external funding or aggregate exchequer grant,,
Department for Education,DEPARTMENT FOR EDUCATION,25/05/2016,Grants,Children's Services Special Educational Needs Group,NORTH LINCOLNSHIRE COUNCIL,4000238223,27888.00,Grants to local authorities / other establishments within aggregate external funding or aggregate exchequer grant,,
Department for Education,DEPARTMENT FOR EDUCATION,25/05/2016,Grants,Adoption and Children in Care Division,NORTH LINCOLNSHIRE COUNCIL,4000238223,4438.00,Grants to local authorities outside aggregate external funding or aggregate exchequer grant,,
Department for Education,DEPARTMENT FOR EDUCATION,25/05/2016,Grants,Children's Services Special Educational Needs Group,NORTH EAST LINCOLNSHIRE COUNCIL,4000238224,26396.00,Grants to local authorities / other establishments within aggregate external funding or aggregate exchequer grant,,
Department for Education,DEPARTMENT FOR EDUCATION,25/05/2016,Grants,Adoption and Children in Care Division,NORTH EAST LINCOLNSHIRE COUNCIL,4000238224,17751.00,Grants to local authorities outside aggregate external funding or aggregate exchequer grant,,
Department for Education,DEPARTMENT FOR EDUCATION,25/05/2016,Grants,Children's Services Special Educational Needs Group,EAST RIDING OF YORKSHIRE,4000238225,50964.00,Grants to local authorities / other establishments within aggregate external funding or aggregate exchequer grant,,
Department for Education,DEPARTMENT FOR EDUCATION,25/05/2016,Grants,Adoption and Children in Care Division,EAST RIDING OF YORKSHIRE,4000238225,24407.00,Grants to local authorities outside aggregate external funding or aggregate exchequer grant,,
Department for Education,DEPARTMENT FOR EDUCATION,25/05/2016,Grants,Children's Services Special Educational Needs Group,KINGSTON UPON HULL COUNCIL,4000238226,44100.00,Grants to local authorities / other establishments within aggregate external funding or aggregate exchequer grant,,
Department for Education,DEPARTMENT FOR EDUCATION,25/05/2016,Grants,Adoption and Children in Care Division,KINGSTON UPON HULL COUNCIL,4000238226,31803.00,Grants to local authorities outside aggregate external funding or aggregate exchequer grant,,
Department for Education,DEPARTMENT FOR EDUCATION,25/05/2016,Grants,Children's Services Special Educational Needs Group,NORTH SOMERSET COUNCIL,4000238227,31349.00,Grants to local authorities / other establishments within aggregate external funding or aggregate exchequer grant,,
Department for Education,DEPARTMENT FOR EDUCATION,25/05/2016,Grants,Adoption and Children in Care Division,NORTH SOMERSET COUNCIL,4000238227,13313.00,Grants to local authorities outside aggregate external funding or aggregate exchequer grant,,
Department for Education,DEPARTMENT FOR EDUCATION,25/05/2016,Grants,Children's Services Special Educational Needs Group,BRISTOL CITY COUNCIL,4000238228,69645.00,Grants to local authorities / other establishments within aggregate external funding or aggregate exchequer grant,,
Department for Education,DEPARTMENT FOR EDUCATION,25/05/2016,Grants,Adoption and Children in Care Division,BRISTOL CITY COUNCIL,4000238228,82096.00,Grants to local authorities outside aggregate external funding or aggregate exchequer grant,,
Department for Education,DEPARTMENT FOR EDUCATION,25/05/2016,Grants,Children's Services Special Educational Needs Group,BATH & NORTH EAST SOMERSET COUNCIL,4000238229,24907.00,Grants to local authorities / other establishments within aggregate external funding or aggregate exchequer grant,,
Department for Education,DEPARTMENT FOR EDUCATION,25/05/2016,Grants,Adoption and Children in Care Division,BATH & NORTH EAST SOMERSET COUNCIL,4000238229,22928.00,Grants to local authorities outside aggregate external funding or aggregate exchequer grant,,
Department for Education,DEPARTMENT FOR EDUCATION,25/05/2016,Grants,Children's Services Special Educational Needs Group,SOUTH TYNESIDE,4000238231,22162.00,Grants to local authorities / other establishments within aggregate external funding or aggregate exchequer grant,,
Department for Education,DEPARTMENT FOR EDUCATION,25/05/2016,Grants,Adoption and Children in Care Division,SOUTH TYNESIDE,4000238231,19230.00,Grants to local authorities outside aggregate external funding or aggregate exchequer grant,,
Department for Education,NATIONAL COLLEGE FOR TEACHING AND LEADERSHIP AGENCY,25/05/2016,Grants,Delivery Directorate,ST BONAVENTURES CATHOLIC SCHOOL,4000238235,60000.00,Grants to educational establishments or not for profit organisations including other businesses,,
Department for Education,DEPARTMENT FOR EDUCATION,25/05/2016,Grants,Children's Services Special Educational Needs Group,CONTACT A FAMILY,4000238236,57336.41,Grants to educational establishments or not for profit organisations including other businesses,,
Department for Education,DEPARTMENT FOR EDUCATION,25/05/2016,Programme costs,Adoption and Children in Care Division,MOTT MACDONALD LTD,4000238252,37246.65,Funding to deliver policies (excluding consultancy) paid to third parties via a service delivery contract,,
Department for Education,NATIONAL COLLEGE FOR TEACHING AND LEADERSHIP AGENCY,25/05/2016,Grants,Delivery Directorate,BRAMBLES PRIMARY ACADEMY,4000238256,60000.00,Grants to educational establishments or not for profit organisations including other businesses,,
Department for Education,NATIONAL COLLEGE FOR TEACHING AND LEADERSHIP AGENCY,25/05/2016,Programme costs,Delivery Directorate,UNIVERSITY OF MANCHESTER,4000238258,690884.03,Funding to deliver policies (excluding consultancy) paid to third parties via a service delivery contract,,
Department for Education,DEPARTMENT FOR EDUCATION,25/05/2016,Grants,Academies Delivery Group,ORRELL LAMBERHEAD GREEN PRIMARY SCHOOL,4000238265,25000.00,Grants to educational establishments or not for profit organisations including other businesses,,
Department for Education,DEPARTMENT FOR EDUCATION,25/05/2016,Grants,Academies Delivery Group,NORTHWICK MANOR PRIMARY SCHOOL,4000238266,25000.00,Grants to educational establishments or not for profit organisations including other businesses,,
Department for Education,DEPARTMENT FOR EDUCATION,25/05/2016,Grants,Academies Delivery Group,WORCESTERSHIRE COUNTY COUNCIL COUNTY FUND,4000238267,25000.00,Grants to educational establishments or not for profit organisations including other businesses,,
Department for Education,DEPARTMENT FOR EDUCATION,25/05/2016,Grants,Academies Delivery Group,CRANHAM PRIMARY SCHOOL,4000238268,25000.00,Grants to educational establishments or not for profit organisations including other businesses,,
